Workbook

Sheet Main
B10: 2022-05-04
B12: Sheet No. | C12: Template Name | D12: Summary
B13: 1 | C13: Future Intra | D13: For Intraday trading in F&O segment
B14: 2 | C14: Cash Intra | D14: For Intraday trading in cash market segment
B15: 3 | C15: Mid-cap Intra | D15: For Intraday trading in Mid-cap stocks
B16: 4 | C16: Bulk Deals | D16: Reveals Bulk Deals carried on NSE & BSE
B17: 5 | C17: Call Tracker
K27: `

Sheet Future Intra
M5: Back to Main Page
A6: FOR INTRA DAY TRADING | L6: =Main!B10 -> 2022-05-04
A9: Sr.no | B9: Sector | C9: Scrip | D9: Expiry Date | E9: CLOSE RATE | F9: Pivot Point | G9: Supports | J9: Resistances
E10: Point | F10: Point | G10: S1 | H10: S2 | I10: S3 | J10: R1 | K10: R2 | L10: R3 | M10: HIGH | N10: LOW | O10: OI | P10: % Change in OI
A11: 1 | B11: Index | C11: NIFTY | D11: 2022-05-26 | E11: 17084.25 | F11: 17042.42 | G11: 16966.83 | H11: 16849.42 | I11: 16773.83 | J11: 17159.83 | K11: 17235.42 | L11: 17352.83 | M11: 17118 | N11: 16925 | O11: 11139350 | P11: 4.91%
A12: 2 | B12: Index | C12: BANKNIFTY | D12: 2022-05-26 | E12: 36208.55 | F12: 36039.02 | G12: 35798.53 | H12: 35388.52 | I12: 35148.03 | J12: 36449.03 | K12: 36689.52 | L12: 37099.53 | M12: 36279.5 | N12: 35629 | O12: 2784225 | P12: -0.31%
A13: 3 | B13: Index | C13: FINNIFTY | D13: 2022-05-31 | E13: 16681.70 | F13: 16637.28 | G13: 16544.62 | H13: 16407.53 | I13: 16314.87 | J13: 16774.37 | K13: 16867.03 | L13: 17004.12 | M13: 16729.95 | N13: 16500.2 | O13: 3360 | P13: -7.69%
A14: 4 | B14: Index | C14: MIDCPNIFTY | D14: 2022-05-31 | E14: 7173.05 | F14: 7159.55 | G14: 7015.65 | H14: 6858.25 | I14: 6714.35 | J14: 7316.95 | K14: 7460.85 | L14: 7618.25 | M14: 7303.45 | N14: 7002.15 | O14: 1425 | P14: 18.75%
A15: 5 | B15: Chemical | C15: AARTIIND | D15: 2022-05-26 | E15: 851.90 | F15: 860.58 | G15: 836.17 | H15: 820.43 | I15: 796.02 | J15: 876.32 | K15: 900.73 | L15: 916.47 | M15: 885 | N15: 844.85 | O15: 2778650 | P15: 17.17%
A16: 6 | B16: Capital_Goods | C16: ABB | D16: 2022-05-26 | E16: 2059.15 | F16: 2067.65 | G16: 2042.20 | H16: 2025.25 | I16: 1999.80 | J16: 2084.60 | K16: 2110.05 | L16: 2127.00 | M16: 2093.1 | N16: 2050.7 | O16: 257250 | P16: -1.91%
A17: 7 | B17: Pharma | C17: ABBOTINDIA | D17: 2022-05-26 | E17: 17150.20 | F17: 17073.23 | G17: 16952.57 | H17: 16754.93 | I17: 16634.27 | J17: 17270.87 | K17: 17391.53 | L17: 17589.17 | M17: 17193.9 | N17: 16875.6 | O17: 31555 | P17: 0.56%
A18: 8 | B18: Others | C18: ABCAPITAL | D18: 2022-05-26 | E18: 117.35 | F18: 117.70 | G18: 115.50 | H18: 113.65 | I18: 111.45 | J18: 119.55 | K18: 121.75 | L18: 123.60 | M18: 119.9 | N18: 115.85 | O18: 22624800 | P18: -3.20%
A19: 9 | B19: Textile | C19: ABFRL | D19: 2022-05-26 | E19: 283.40 | F19: 282.73 | G19: 280.67 | H19: 277.93 | I19: 275.87 | J19: 285.47 | K19: 287.53 | L19: 290.27 | M19: 284.8 | N19: 280 | O19: 10134800 | P19: -1.09%
A20: 10 | B20: Cement | C20: ACC | D20: 2022-05-26 | E20: 2354.05 | F20: 2346.02 | G20: 2328.03 | H20: 2302.02 | I20: 2284.03 | J20: 2372.03 | K20: 2390.02 | L20: 2416.03 | M20: 2364 | N20: 2320 | O20: 2700250 | P20: 0.33%
A21: 11 | B21: Others | C21: ADANIENT | D21: 2022-05-26 | E21: 2350.05 | F21: 2346.48 | G21: 2321.57 | H21: 2293.08 | I21: 2268.17 | J21: 2374.97 | K21: 2399.88 | L21: 2428.37 | M21: 2371.4 | N21: 2318 | O21: 18869500 | P21: 0.21%
A22: 12 | B22: Others | C22: ADANIPORTS | D22: 2022-05-26 | E22: 860.50 | F22: 855.85 | G22: 845.65 | H22: 830.80 | I22: 820.60 | J22: 870.70 | K22: 880.90 | L22: 895.75 | M22: 866.05 | N22: 841 | O22: 77552500 | P22: -0.03%
A23: 13 | B23: Pharma | C23: ALKEM | D23: 2022-05-26 | E23: 3281.70 | F23: 3257.68 | G23: 3195.32 | H23: 3108.93 | I23: 3046.57 | J23: 3344.07 | K23: 3406.43 | L23: 3492.82 | M23: 3320.05 | N23: 3171.3 | O23: 256200 | P23: 8.28%
A24: 14 | B24: Automobile | C24: AMARAJABAT | D24: 2022-05-26 | E24: 555.80 | F24: 556.13 | G24: 551.77 | H24: 547.73 | I24: 543.37 | J24: 560.17 | K24: 564.53 | L24: 568.57 | M24: 560.5 | N24: 552.1 | O24: 6555000 | P24: 1.55%
A25: 15 | B25: Cement | C25: AMBUJACEM | D25: 2022-05-26 | E25: 380.00 | F25: 377.62 | G25: 373.03 | H25: 366.07 | I25: 361.48 | J25: 384.58 | K25: 389.17 | L25: 396.13 | M25: 382.2 | N25: 370.65 | O25: 37942800 | P25: 2.81%
A26: 16 | B26: Pharma | C26: APLLTD | D26: 2022-05-26 | E26: 787.55 | F26: 783.30 | G26: 775.60 | H26: 763.65 | I26: 755.95 | J26: 795.25 | K26: 802.95 | L26: 814.90 | M26: 791 | N26: 771.35 | O26: 1453200 | P26: -2.26%
A27: 17 | B27: Others | C27: APOLLOHOSP | D27: 2022-05-26 | E27: 4311.35 | F27: 4348.95 | G27: 4255.10 | H27: 4198.85 | I27: 4105.00 | J27: 4405.20 | K27: 4499.05 | L27: 4555.30 | M27: 4442.8 | N27: 4292.7 | O27: 1951625 | P27: 2.13%
A28: 18 | B28: Automobile | C28: APOLLOTYRE | D28: 2022-05-26 | E28: 203.10 | F28: 202.92 | G28: 200.93 | H28: 198.77 | I28: 196.78 | J28: 205.08 | K28: 207.07 | L28: 209.23 | M28: 204.9 | N28: 200.75 | O28: 14088500 | P28: -0.59%
A29: 19 | B29: Automobile | C29: ASHOKLEY | D29: 2022-05-26 | E29: 126.35 | F29: 125.48 | G29: 123.22 | H29: 120.08 | I29: 117.82 | J29: 128.62 | K29: 130.88 | L29: 134.02 | M29: 127.75 | N29: 122.35 | O29: 32072500 | P29: -5.88%
A30: 20 | B30: FMCG | C30: ASIANPAINT | D30: 2022-05-26 | E30: 3203.85 | F30: 3196.27 | G30: 3175.13 | H30: 3146.42 | I30: 3125.28 | J30: 3224.98 | K30: 3246.12 | L30: 3274.83 | M30: 3217.4 | N30: 3167.55 | O30: 5150900 | P30: 1.15%
A31: 21 | B31: Others | C31: ASTRAL | D31: 2022-05-26 | E31: 2060.10 | F31: 2076.87 | G31: 1999.83 | H31: 1939.57 | I31: 1862.53 | J31: 2137.13 | K31: 2214.17 | L31: 2274.43 | M31: 2153.9 | N31: 2016.6 | O31: 432025 | P31: -12.19%
A32: 22 | B32: Others | C32: ATUL | D32: 2022-05-26 | E32: 8844.05 | F32: 8821.35 | G32: 8742.70 | H32: 8641.35 | I32: 8562.70 | J32: 8922.70 | K32: 9001.35 | L32: 9102.70 | M32: 8900 | N32: 8720 | O32: 182475 | P32: 0.66%
A33: 23 | B33: Banking | C33: AUBANK | D33: 2022-05-26 | E33: 1375.15 | F33: 1373.92 | G33: 1360.83 | H33: 1346.52 | I33: 1333.43 | J33: 1388.23 | K33: 1401.32 | L33: 1415.63 | M33: 1387 | N33: 1359.6 | O33: 2615500 | P33: 2.73%
A34: 24 | B34: Pharma | C34: AUROPHARMA | D34: 2022-05-26 | E34: 644.15 | F34: 642.13 | G34: 629.27 | H34: 614.38 | I34: 601.52 | J34: 657.02 | K34: 669.88 | L34: 684.77 | M34: 655 | N34: 627.25 | O34: 15329500 | P34: 1.29%
A35: 25 | B35: Banking | C35: AXISBANK | D35: 2022-05-26 | E35: 730.70 | F35: 730.30 | G35: 721.80 | H35: 712.90 | I35: 704.40 | J35: 739.20 | K35: 747.70 | L35: 756.60 | M35: 738.8 | N35: 721.4 | O35: 59468400 | P35: 2.12%
A36: 26 | B36: Automobile | C36: BAJAJ-AUTO | D36: 2022-05-26 | E36: 3609.40 | F36: 3628.80 | G36: 3568.00 | H36: 3526.60 | I36: 3465.80 | J36: 3670.20 | K36: 3731.00 | L36: 3772.40 | M36: 3689.6 | N36: 3587.4 | O36: 2661750 | P36: 9.30%
A37: 27 | B37: Finance | C37: BAJAJFINSV | D37: 2022-05-26 | E37: 15022.25 | F37: 14916.53 | G37: 14749.22 | H37: 14476.18 | I37: 14308.87 | J37: 15189.57 | K37: 15356.88 | L37: 15629.92 | M37: 15083.85 | N37: 14643.5 | O37: 647400 | P37: 1.80%
A38: 28 | B38: Finance | C38: BAJFINANCE | D38: 2022-05-26 | E38: 6656.90 | F38: 6630.70 | G38: 6583.40 | H38: 6509.90 | I38: 6462.60 | J38: 6704.20 | K38: 6751.50 | L38: 6825.00 | M38: 6678 | N38: 6557.2 | O38: 5253625 | P38: 2.18%
A39: 29 | B39: Automobile | C39: BALKRISIND | D39: 2022-05-26 | E39: 2108.00 | F39: 2113.95 | G39: 2079.05 | H39: 2050.10 | I39: 2015.20 | J39: 2142.90 | K39: 2177.80 | L39: 2206.75 | M39: 2148.85 | N39: 2085 | O39: 1186200 | P39: 0.02%
A40: 30 | B40: Others | C40: BALRAMCHIN | D40: 2022-05-26 | E40: 448.10 | F40: 445.95 | G40: 438.65 | H40: 429.20 | I40: 421.90 | J40: 455.40 | K40: 462.70 | L40: 472.15 | M40: 453.25 | N40: 436.5 | O40: 6988800 | P40: 0.74%
A41: 31 | B41: Banking | C41: BANDHANBNK | D41: 2022-05-26 | E41: 337.05 | F41: 334.60 | G41: 330.40 | H41: 323.75 | I41: 319.55 | J41: 341.25 | K41: 345.45 | L41: 352.10 | M41: 338.8 | N41: 327.95 | O41: 32988600 | P41: -0.56%
A42: 32 | B42: Banking | C42: BANKBARODA | D42: 2022-05-26 | E42: 113.35 | F42: 112.80 | G42: 111.85 | H42: 110.35 | I42: 109.40 | J42: 114.30 | K42: 115.25 | L42: 116.75 | M42: 113.75 | N42: 111.3 | O42: 112606650 | P42: 0.66%
A43: 33 | B43: FMCG | C43: BATAINDIA | D43: 2022-05-26 | E43: 1973.40 | F43: 1955.97 | G43: 1935.93 | H43: 1898.47 | I43: 1878.43 | J43: 1993.43 | K43: 2013.47 | L43: 2050.93 | M43: 1976 | N43: 1918.5 | O43: 1439350 | P43: -1.75%
A44: 34 | B44: Capital_Goods | C44: BEL | D44: 2022-05-26 | E44: 238.75 | F44: 237.92 | G44: 235.73 | H44: 232.72 | I44: 230.53 | J44: 240.93 | K44: 243.12 | L44: 246.13 | M44: 240.1 | N44: 234.9 | O44: 30685000 | P44: 0.95%
A45: 35 | B45: FMCG | C45: BERGEPAINT | D45: 2022-05-26 | E45: 716.25 | F45: 714.12 | G45: 710.63 | H45: 705.02 | I45: 701.53 | J45: 719.73 | K45: 723.22 | L45: 728.83 | M45: 717.6 | N45: 708.5 | O45: 4112900 | P45: -1.66%
A46: 36 | B46: Automobile | C46: BHARATFORG | D46: 2022-05-26 | E46: 681.10 | F46: 683.45 | G46: 673.10 | H46: 665.10 | I46: 654.75 | J46: 691.45 | K46: 701.80 | L46: 709.80 | M46: 693.8 | N46: 675.45 | O46: 6201750 | P46: 0.25%
A47: 37 | B47: Telecom | C47: BHARTIARTL | D47: 2022-05-26 | E47: 741.85 | F47: 739.67 | G47: 735.48 | H47: 729.12 | I47: 724.93 | J47: 746.03 | K47: 750.22 | L47: 756.58 | M47: 743.85 | N47: 733.3 | O47: 47979750 | P47: 0.76%
A48: 38 | B48: Capital_Goods | C48: BHEL | D48: 2022-05-26 | E48: 52.65 | F48: 52.32 | G48: 51.83 | H48: 51.02 | I48: 50.53 | J48: 53.13 | K48: 53.62 | L48: 54.43 | M48: 52.8 | N48: 51.5 | O48: 106438500 | P48: 0.96%
A49: 39 | B49: Pharma | C49: BIOCON | D49: 2022-05-26 | E49: 374.30 | F49: 373.22 | G49: 367.48 | H49: 360.67 | I49: 354.93 | J49: 380.03 | K49: 385.77 | L49: 392.58 | M49: 378.95 | N49: 366.4 | O49: 10858300 | P49: 0.34%
A50: 40 | B50: Automobile | C50: BOSCHLTD | D50: 2022-05-26 | E50: 14482.35 | F50: 14438.90 | G50: 14277.45 | H50: 14072.55 | I50: 13911.10 | J50: 14643.80 | K50: 14805.25 | L50: 15010.15 | M50: 14600.35 | N50: 14234 | O50: 130050 | P50: 1.40%
A51: 41 | B51: Oil_Gas | C51: BPCL | D51: 2022-05-26 | E51: 368.05 | F51: 365.22 | G51: 360.98 | H51: 353.92 | I51: 349.68 | J51: 372.28 | K51: 376.52 | L51: 383.58 | M51: 369.45 | N51: 358.15 | O51: 16907400 | P51: -2.04%
A52: 42 | B52: FMCG | C52: BRITANNIA | D52: 2022-05-26 | E52: 3275.40 | F52: 3255.83 | G52: 3225.82 | H52: 3176.23 | I52: 3146.22 | J52: 3305.42 | K52: 3335.43 | L52: 3385.02 | M52: 3285.85 | N52: 3206.25 | O52: 1441600 | P52: 2.18%
A53: 43 | B53: Technology | C53: BSOFT | D53: 2022-05-26 | E53: 407.80 | F53: 410.22 | G53: 403.08 | H53: 398.37 | I53: 391.23 | J53: 414.93 | K53: 422.07 | L53: 426.78 | M53: 417.35 | N53: 405.5 | O53: 3725800 | P53: -2.38%
A54: 44 | B54: Banking | C54: CANBK | D54: 2022-05-26 | E54: 230.85 | F54: 229.50 | G54: 227.65 | H54: 224.45 | I54: 222.60 | J54: 232.70 | K54: 234.55 | L54: 237.75 | M54: 231.35 | N54: 226.3 | O54: 41669100 | P54: -0.77%
A55: 45 | B55: Finance | C55: CANFINHOME | D55: 2022-05-26 | E55: 643.90 | F55: 630.13 | G55: 608.22 | H55: 572.53 | I55: 550.62 | J55: 665.82 | K55: 687.73 | L55: 723.42 | M55: 652.05 | N55: 594.45 | O55: 3649425 | P55: 12.20%
A56: 46 | B56: Others | C56: CHAMBLFERT | D56: 2022-05-26 | E56: 459.55 | F56: 455.33 | G56: 447.52 | H56: 435.48 | I56: 427.67 | J56: 467.37 | K56: 475.18 | L56: 487.22 | M56: 463.15 | N56: 443.3 | O56: 2892000 | P56: 0.10%
A57: 47 | B57: Finance | C57: CHOLAFIN | D57: 2022-05-26 | E57: 748.50 | F57: 743.42 | G57: 736.23 | H57: 723.97 | I57: 716.78 | J57: 755.68 | K57: 762.87 | L57: 775.13 | M57: 750.6 | N57: 731.15 | O57: 8853750 | P57: 1.04%
A58: 48 | B58: Pharma | C58: CIPLA | D58: 2022-05-26 | E58: 979.20 | F58: 981.28 | G58: 971.57 | H58: 963.93 | I58: 954.22 | J58: 988.92 | K58: 998.63 | L58: 1006.27 | M58: 991 | N58: 973.65 | O58: 8237450 | P58: 0.23%
A59: 49 | B59: Others | C59: COALINDIA | D59: 2022-05-26 | E59: 187.95 | F59: 185.38 | G59: 181.67 | H59: 175.38 | I59: 171.67 | J59: 191.67 | K59: 195.38 | L59: 201.67 | M59: 189.1 | N59: 179.1 | O59: 45624600 | P59: -0.79%
A60: 50 | B60: Technology | C60: COFORGE | D60: 2022-05-26 | E60: 4108.20 | F60: 4111.43 | G60: 4051.77 | H60: 3995.33 | I60: 3935.67 | J60: 4167.87 | K60: 4227.53 | L60: 4283.97 | M60: 4171.1 | N60: 4055 | O60: 824600 | P60: 0.28%
A61: 51 | B61: FMCG | C61: COLPAL | D61: 2022-05-26 | E61: 1624.05 | F61: 1629.43 | G61: 1609.62 | H61: 1595.18 | I61: 1575.37 | J61: 1643.87 | K61: 1663.68 | L61: 1678.12 | M61: 1649.25 | N61: 1615 | O61: 2344650 | P61: 0.34%
A62: 52 | B62: Others | C62: CONCOR | D62: 2022-05-26 | E62: 645.60 | F62: 648.70 | G62: 635.80 | H62: 626.00 | I62: 613.10 | J62: 658.50 | K62: 671.40 | L62: 681.20 | M62: 661.6 | N62: 638.9 | O62: 6188800 | P62: 0.29%
A63: 53 | B63: Others | C63: COROMANDEL | D63: 2022-05-26 | E63: 915.20 | F63: 910.40 | G63: 900.00 | H63: 884.80 | I63: 874.40 | J63: 925.60 | K63: 936.00 | L63: 951.20 | M63: 920.8 | N63: 895.2 | O63: 1429425 | P63: 1.13%
A64: 54 | B64: Capital_Goods | C64: CROMPTON | D64: 2022-05-26 | E64: 379.90 | F64: 381.62 | G64: 376.83 | H64: 373.77 | I64: 368.98 | J64: 384.68 | K64: 389.47 | L64: 392.53 | M64: 386.4 | N64: 378.55 | O64: 4065800 | P64: 0.01%
A65: 55 | B65: Banking | C65: CUB | D65: 2022-05-26 | E65: 134.20 | F65: 134.87 | G65: 132.88 | H65: 131.57 | I65: 129.58 | J65: 136.18 | K65: 138.17 | L65: 139.48 | M65: 136.85 | N65: 133.55 | O65: 11519000 | P65: -1.35%
A66: 56 | B66: Capital_Goods | C66: CUMMINSIND | D66: 2022-05-26 | E66: 1036.85 | F66: 1030.90 | G66: 1020.95 | H66: 1005.05 | I66: 995.10 | J66: 1046.80 | K66: 1056.75 | L66: 1072.65 | M66: 1040.85 | N66: 1015 | O66: 1434000 | P66: -1.32%
A67: 57 | B67: FMCG | C67: DABUR | D67: 2022-05-26 | E67: 558.55 | F67: 557.20 | G67: 553.55 | H67: 548.55 | I67: 544.90 | J67: 562.20 | K67: 565.85 | L67: 570.85 | M67: 560.85 | N67: 552.2 | O67: 12742500 | P67: -0.92%
A68: 58 | B68: Cement | C68: DALBHARAT | D68: 2022-05-26 | E68: 1505.70 | F68: 1499.20 | G68: 1485.90 | H68: 1466.10 | I68: 1452.80 | J68: 1519.00 | K68: 1532.30 | L68: 1552.10 | M68: 1512.5 | N68: 1479.4 | O68: 1350250 | P68: 1.29%
A69: 59 | B69: Chemical | C69: DEEPAKNTR | D69: 2022-05-26 | E69: 2300.30 | F69: 2303.52 | G69: 2264.83 | H69: 2229.37 | I69: 2190.68 | J69: 2338.98 | K69: 2377.67 | L69: 2413.13 | M69: 2342.2 | N69: 2268.05 | O69: 1523250 | P69: 0.78%
A70: 60 | B70: Others | C70: DELTACORP | D70: 2022-05-26 | E70: 266.05 | F70: 263.22 | G70: 259.68 | H70: 253.32 | I70: 249.78 | J70: 269.58 | K70: 273.12 | L70: 279.48 | M70: 266.75 | N70: 256.85 | O70: 13986300 | P70: -0.39%
A71: 61 | B71: Pharma | C71: DIVISLAB | D71: 2022-05-26 | E71: 4525.15 | F71: 4523.12 | G71: 4486.43 | H71: 4447.72 | I71: 4411.03 | J71: 4561.83 | K71: 4598.52 | L71: 4637.23 | M71: 4559.8 | N71: 4484.4 | O71: 2162650 | P71: 0.97%
A72: 62 | B72: Others | C72: DIXON | D72: 2022-05-26 | E72: 3958.65 | F72: 3989.62 | G72: 3812.08 | H72: 3665.52 | I72: 3487.98 | J72: 4136.18 | K72: 4313.72 | L72: 4460.28 | M72: 4167.15 | N72: 3843.05 | O72: 805250 | P72: 41.33%
A73: 63 | B73: Realty | C73: DLF | D73: 2022-05-26 | E73: 369.35 | F73: 369.38 | G73: 365.52 | H73: 361.68 | I73: 357.82 | J73: 373.22 | K73: 377.08 | L73: 380.92 | M73: 373.25 | N73: 365.55 | O73: 40045500 | P73: 1.20%
A74: 64 | B74: Pharma | C74: DRREDDY | D74: 2022-05-26 | E74: 4141.30 | F74: 4126.70 | G74: 4097.90 | H74: 4054.50 | I74: 4025.70 | J74: 4170.10 | K74: 4198.90 | L74: 4242.30 | M74: 4155.5 | N74: 4083.3 | O74: 2570375 | P74: 0.91%
A75: 65 | B75: Automobile | C75: EICHERMOT | D75: 2022-05-26 | E75: 2555.95 | F75: 2570.52 | G75: 2513.03 | H75: 2470.12 | I75: 2412.63 | J75: 2613.43 | K75: 2670.92 | L75: 2713.83 | M75: 2628 | N75: 2527.6 | O75: 3265850 | P75: 0.20%
A76: 66 | B76: Automobile | C76: ESCORTS | D76: 2022-05-26 | E76: 1585.95 | F76: 1599.83 | G76: 1560.12 | H76: 1534.28 | I76: 1494.57 | J76: 1625.67 | K76: 1665.38 | L76: 1691.22 | M76: 1639.55 | N76: 1574 | O76: 3878050 | P76: 37.61%
A77: 67 | B77: Automobile | C77: EXIDEIND | D77: 2022-05-26 | E77: 151.90 | F77: 151.78 | G77: 150.62 | H77: 149.33 | I77: 148.17 | J77: 153.07 | K77: 154.23 | L77: 155.52 | M77: 152.95 | N77: 150.5 | O77: 20732400 | P77: 3.75%
A78: 68 | B78: Banking | C78: FEDERALBNK | D78: 2022-05-26 | E78: 95.05 | F78: 95.28 | G78: 93.62 | H78: 92.18 | I78: 90.52 | J78: 96.72 | K78: 98.38 | L78: 99.82 | M78: 96.95 | N78: 93.85 | O78: 60140000 | P78: 3.69%
A79: 69 | B79: Technology | C79: FSL | D79: 2022-05-26 | E79: 123.05 | F79: 123.10 | G79: 121.75 | H79: 120.45 | I79: 119.10 | J79: 124.40 | K79: 125.75 | L79: 127.05 | M79: 124.45 | N79: 121.8 | O79: 10764000 | P79: 1.40%
A80: 70 | B80: Oil_Gas | C80: GAIL | D80: 2022-05-26 | E80: 158.25 | F80: 158.30 | G80: 156.85 | H80: 155.45 | I80: 154.00 | J80: 159.70 | K80: 161.15 | L80: 162.55 | M80: 159.75 | N80: 156.9 | O80: 38911900 | P80: 4.28%
A81: 71 | B81: Pharma | C81: GLENMARK | D81: 2022-05-26 | E81: 437.75 | F81: 435.25 | G81: 431.65 | H81: 425.55 | I81: 421.95 | J81: 441.35 | K81: 444.95 | L81: 451.05 | M81: 438.85 | N81: 429.15 | O81: 6512450 | P81: 1.60%
A82: 72 | B82: Infrastructure | C82: GMRINFRA | D82: 2022-05-26 | E82: 37.80 | F82: 37.47 | G82: 36.93 | H82: 36.07 | I82: 35.53 | J82: 38.33 | K82: 38.87 | L82: 39.73 | M82: 38 | N82: 36.6 | O82: 95805000 | P82: -1.78%
A83: 73 | B83: Others | C83: GNFC | D83: 2022-05-26 | E83: 837.10 | F83: 833.55 | G83: 825.85 | H83: 814.60 | I83: 806.90 | J83: 844.80 | K83: 852.50 | L83: 863.75 | M83: 841.25 | N83: 822.3 | O83: 3543800 | P83: 7.87%
A84: 74 | B84: FMCG | C84: GODREJCP | D84: 2022-05-26 | E84: 774.55 | F84: 779.90 | G84: 766.05 | H84: 757.55 | I84: 743.70 | J84: 788.40 | K84: 802.25 | L84: 810.75 | M84: 793.75 | N84: 771.4 | O84: 5866000 | P84: 2.95%
A85: 75 | B85: Realty | C85: GODREJPROP | D85: 2022-05-26 | E85: 1623.65 | F85: 1603.62 | G85: 1570.23 | H85: 1516.82 | I85: 1483.43 | J85: 1657.03 | K85: 1690.42 | L85: 1743.83 | M85: 1637 | N85: 1550.2 | O85: 4057300 | P85: 5.45%
A86: 76 | B86: Pharma | C86: GRANULES | D86: 2022-05-26 | E86: 278.75 | F86: 279.12 | G86: 274.78 | H86: 270.82 | I86: 266.48 | J86: 283.08 | K86: 287.42 | L86: 291.38 | M86: 283.45 | N86: 275.15 | O86: 11114450 | P86: 0.44%
A87: 77 | B87: Cement | C87: GRASIM | D87: 2022-05-26 | E87: 1682.25 | F87: 1679.78 | G87: 1663.87 | H87: 1645.48 | I87: 1629.57 | J87: 1698.17 | K87: 1714.08 | L87: 1732.47 | M87: 1695.7 | N87: 1661.4 | O87: 9482900 | P87: 0.80%
A88: 78 | B88: Oil_Gas | C88: GSPL | D88: 2022-05-26 | E88: 265.40 | F88: 263.95 | G88: 260.50 | H88: 255.60 | I88: 252.15 | J88: 268.85 | K88: 272.30 | L88: 277.20 | M88: 267.4 | N88: 259.05 | O88: 2646900 | P88: -1.77%
A89: 79 | B89: Oil_Gas | C89: GUJGASLTD | D89: 2022-05-26 | E89: 490.60 | F89: 483.18 | G89: 474.87 | H89: 459.13 | I89: 450.82 | J89: 498.92 | K89: 507.23 | L89: 522.97 | M89: 491.5 | N89: 467.45 | O89: 4127500 | P89: -1.40%
A90: 80 | B90: Others | C90: HAL | D90: 2022-05-26 | E90: 1582.90 | F90: 1589.15 | G90: 1568.85 | H90: 1554.80 | I90: 1534.50 | J90: 1603.20 | K90: 1623.50 | L90: 1637.55 | M90: 1609.45 | N90: 1575.1 | O90: 2593025 | P90: 1.77%
A91: 81 | B91: Capital_Goods | C91: HAVELLS | D91: 2022-05-26 | E91: 1291.60 | F91: 1297.53 | G91: 1279.27 | H91: 1266.93 | I91: 1248.67 | J91: 1309.87 | K91: 1328.13 | L91: 1340.47 | M91: 1315.8 | N91: 1285.2 | O91: 4635000 | P91: -3.96%
A92: 82 | B92: Technology | C92: HCLTECH | D92: 2022-05-26 | E92: 1070.80 | F92: 1071.88 | G92: 1060.77 | H92: 1050.73 | I92: 1039.62 | J92: 1081.92 | K92: 1093.03 | L92: 1103.07 | M92: 1083 | N92: 1061.85 | O92: 22430100 | P92: -0.52%
A93: 83 | B93: Finance | C93: HDFC | D93: 2022-05-26 | E93: 2267.90 | F93: 2243.25 | G93: 2211.70 | H93: 2155.50 | I93: 2123.95 | J93: 2299.45 | K93: 2331.00 | L93: 2387.20 | M93: 2274.8 | N93: 2187.05 | O93: 20226900 | P93: -0.18%
A94: 84 | B94: Finance | C94: HDFCAMC | D94: 2022-05-26 | E94: 2035.85 | F94: 2024.45 | G94: 2008.90 | H94: 1981.95 | I94: 1966.40 | J94: 2051.40 | K94: 2066.95 | L94: 2093.90 | M94: 2040 | N94: 1997.5 | O94: 3636500 | P94: 1.14%
A95: 85 | B95: Banking | C95: HDFCBANK | D95: 2022-05-26 | E95: 1389.85 | F95: 1378.23 | G95: 1363.72 | H95: 1337.58 | I95: 1323.07 | J95: 1404.37 | K95: 1418.88 | L95: 1445.02 | M95: 1392.75 | N95: 1352.1 | O95: 83003250 | P95: -1.10%
A96: 86 | B96: Finance | C96: HDFCLIFE | D96: 2022-05-26 | E96: 581.95 | F96: 581.37 | G96: 576.23 | H96: 570.52 | I96: 565.38 | J96: 587.08 | K96: 592.22 | L96: 597.93 | M96: 586.5 | N96: 575.65 | O96: 23072500 | P96: -0.44%
A97: 87 | B97: Automobile | C97: HEROMOTOCO | D97: 2022-05-26 | E97: 2491.35 | F97: 2483.77 | G97: 2458.58 | H97: 2425.82 | I97: 2400.63 | J97: 2516.53 | K97: 2541.72 | L97: 2574.48 | M97: 2508.95 | N97: 2451 | O97: 3444900 | P97: -3.66%
A98: 88 | B98: Metals | C98: HINDALCO | D98: 2022-05-26 | E98: 485.10 | F98: 480.88 | G98: 475.02 | H98: 464.93 | I98: 459.07 | J98: 490.97 | K98: 496.83 | L98: 506.92 | M98: 486.75 | N98: 470.8 | O98: 39250400 | P98: 3.08%
A99: 89 | B99: Metals | C99: HINDCOPPER | D99: 2022-05-26 | E99: 113.20 | F99: 112.27 | G99: 111.18 | H99: 109.17 | I99: 108.08 | J99: 114.28 | K99: 115.37 | L99: 117.38 | M99: 113.35 | N99: 110.25 | O99: 16490500 | P99: 1.89%
A100: 90 | B100: Oil_Gas | C100: HINDPETRO | D100: 2022-05-26 | E100: 273.05 | F100: 271.55 | G100: 269.15 | H100: 265.25 | I100: 262.85 | J100: 275.45 | K100: 277.85 | L100: 281.75 | M100: 273.95 | N100: 267.65 | O100: 12676500 | P100: -8.18%
A101: 91 | B101: FMCG | C101: HINDUNILVR | D101: 2022-05-26 | E101: 2239.10 | F101: 2235.82 | G101: 2216.83 | H101: 2194.57 | I101: 2175.58 | J101: 2258.08 | K101: 2277.07 | L101: 2299.33 | M101: 2254.8 | N101: 2213.55 | O101: 11360400 | P101: -1.28%
A102: 92 | B102: Others | C102: HONAUT | D102: 2022-05-26 | E102: 39855.10 | F102: 39734.60 | G102: 39556.70 | H102: 39258.30 | I102: 39080.40 | J102: 40033.00 | K102: 40210.90 | L102: 40509.30 | M102: 39912.5 | N102: 39436.2 | O102: 5565 | P102: 6.92%
A103: 93 | B103: Finance | C103: IBULHSGFIN | D103: 2022-05-26 | E103: 151.65 | F103: 151.63 | G103: 149.27 | H103: 146.88 | I103: 144.52 | J103: 154.02 | K103: 156.38 | L103: 158.77 | M103: 154 | N103: 149.25 | O103: 37295800 | P103: -1.03%
A104: 94 | B104: Banking | C104: ICICIBANK | D104: 2022-05-26 | E104: 744.35 | F104: 741.63 | G104: 736.37 | H104: 728.38 | I104: 723.12 | J104: 749.62 | K104: 754.88 | L104: 762.87 | M104: 746.9 | N104: 733.65 | O104: 113476000 | P104: 1.22%
A105: 95 | B105: Finance | C105: ICICIGI | D105: 2022-05-26 | E105: 1289.45 | F105: 1280.18 | G105: 1267.07 | H105: 1244.68 | I105: 1231.57 | J105: 1302.57 | K105: 1315.68 | L105: 1338.07 | M105: 1293.3 | N105: 1257.8 | O105: 3145850 | P105: -0.15%
A106: 96 | B106: Finance | C106: ICICIPRULI | D106: 2022-05-26 | E106: 521.35 | F106: 523.07 | G106: 515.33 | H106: 509.32 | I106: 501.58 | J106: 529.08 | K106: 536.82 | L106: 542.83 | M106: 530.8 | N106: 517.05 | O106: 5576250 | P106: -0.13%
A107: 97 | B107: Telecom | C107: IDEA | D107: 2022-05-26 | E107: 9.35 | F107: 9.40 | G107: 9.25 | H107: 9.15 | I107: 9.00 | J107: 9.50 | K107: 9.65 | L107: 9.75 | M107: 9.55 | N107: 9.3 | O107: 779240000 | P107: 0.02%
A108: 98 | B108: Finance | C108: IDFC | D108: 2022-05-26 | E108: 56.50 | F108: 56.50 | G108: 55.70 | H108: 54.90 | I108: 54.10 | J108: 57.30 | K108: 58.10 | L108: 58.90 | M108: 57.3 | N108: 55.7 | O108: 107490000 | P108: -1.13%
A109: 99 | B109: Banking | C109: IDFCFIRSTB | D109: 2022-05-26 | E109: 38.95 | F109: 39.33 | G109: 37.97 | H109: 36.98 | I109: 35.62 | J109: 40.32 | K109: 41.68 | L109: 42.67 | M109: 40.7 | N109: 38.35 | O109: 230134800 | P109: 2.65%
A110: 100 | B110: Others | C110: IEX | D110: 2022-05-26 | E110: 211.50 | F110: 211.63 | G110: 209.07 | H110: 206.63 | I110: 204.07 | J110: 214.07 | K110: 216.63 | L110: 219.07 | M110: 214.2 | N110: 209.2 | O110: 49597500 | P110: 1.40%
A111: 101 | B111: Oil_Gas | C111: IGL | D111: 2022-05-26 | E111: 346.95 | F111: 347.50 | G111: 342.15 | H111: 337.35 | I111: 332.00 | J111: 352.30 | K111: 357.65 | L111: 362.45 | M111: 352.85 | N111: 342.7 | O111: 15184125 | P111: 1.60%
A112: 102 | B112: Infrastructure | C112: INDHOTEL | D112: 2022-05-26 | E112: 262.90 | F112: 260.95 | G112: 255.10 | H112: 247.30 | I112: 241.45 | J112: 268.75 | K112: 274.60 | L112: 282.40 | M112: 266.8 | N112: 253.15 | O112: 22583530 | P112: -2.28%
A113: 103 | B113: Cement | C113: INDIACEM | D113: 2022-05-26 | E113: 205.00 | F113: 203.87 | G113: 201.33 | H113: 197.67 | I113: 195.13 | J113: 207.53 | K113: 210.07 | L113: 213.73 | M113: 206.4 | N113: 200.2 | O113: 14021500 | P113: -0.12%
A114: 104 | B114: Others | C114: INDIAMART | D114: 2022-05-26 | E114: 4611.10 | F114: 4600.72 | G114: 4546.98 | H114: 4482.87 | I114: 4429.13 | J114: 4664.83 | K114: 4718.57 | L114: 4782.68 | M114: 4654.45 | N114: 4536.6 | O114: 309300 | P114: 6.73%
A115: 105 | B115: Others | C115: INDIGO | D115: 2022-05-26 | E115: 1871.70 | F115: 1858.18 | G115: 1838.62 | H115: 1805.53 | I115: 1785.97 | J115: 1891.27 | K115: 1910.83 | L115: 1943.92 | M115: 1877.75 | N115: 1825.1 | O115: 2417400 | P115: 0.22%
A116: 106 | B116: Banking | C116: INDUSINDBK | D116: 2022-05-26 | E116: 1019.60 | F116: 1004.17 | G116: 978.68 | H116: 937.77 | I116: 912.28 | J116: 1045.08 | K116: 1070.57 | L116: 1111.48 | M116: 1029.65 | N116: 963.25 | O116: 25681500 | P116: -1.44%
A117: 107 | B117: Telecom | C117: INDUSTOWER | D117: 2022-05-26 | E117: 204.55 | F117: 205.32 | G117: 202.63 | H117: 200.72 | I117: 198.03 | J117: 207.23 | K117: 209.92 | L117: 211.83 | M117: 208 | N117: 203.4 | O117: 12824000 | P117: 0.02%
A118: 108 | B118: Technology | C118: INFY | D118: 2022-05-26 | E118: 1544.85 | F118: 1511.60 | G118: 1468.25 | H118: 1391.65 | I118: 1348.30 | J118: 1588.20 | K118: 1631.55 | L118: 1708.15 | M118: 1554.95 | N118: 1435 | O118: 42116100 | P118: 1.82%
A119: 109 | B119: Technology | C119: INTELLECT | D119: 2022-05-26 | E119: 788.85 | F119: 786.25 | G119: 777.50 | H119: 766.15 | I119: 757.40 | J119: 797.60 | K119: 806.35 | L119: 817.70 | M119: 795 | N119: 774.9 | O119: 1506750 | P119: 1.93%
A120: 110 | B120: Oil_Gas | C120: IOC | D120: 2022-05-26 | E120: 127.15 | F120: 126.30 | G120: 125.10 | H120: 123.05 | I120: 121.85 | J120: 128.35 | K120: 129.55 | L120: 131.60 | M120: 127.5 | N120: 124.25 | O120: 53339000 | P120: -1.58%
A121: 111 | B121: Pharma | C121: IPCALAB | D121: 2022-05-26 | E121: 1004.65 | F121: 1001.40 | G121: 993.30 | H121: 981.95 | I121: 973.85 | J121: 1012.75 | K121: 1020.85 | L121: 1032.20 | M121: 1009.5 | N121: 990.05 | O121: 663300 | P121: 2.22%
A122: 112 | B122: Others | C122: IRCTC | D122: 2022-05-26 | E122: 719.75 | F122: 720.97 | G122: 709.33 | H122: 698.92 | I122: 687.28 | J122: 731.38 | K122: 743.02 | L122: 753.43 | M122: 732.6 | N122: 710.55 | O122: 13724375 | P122: 1.26%
A123: 113 | B123: FMCG | C123: ITC | D123: 2022-05-26 | E123: 262.60 | F123: 260.72 | G123: 258.48 | H123: 254.37 | I123: 252.13 | J123: 264.83 | K123: 267.07 | L123: 271.18 | M123: 262.95 | N123: 256.6 | O123: 102531200 | P123: -2.48%
A124: 114 | B124: Metals | C124: JINDALSTEL | D124: 2022-05-26 | E124: 535.20 | F124: 532.05 | G124: 523.40 | H124: 511.60 | I124: 502.95 | J124: 543.85 | K124: 552.50 | L124: 564.30 | M124: 540.7 | N124: 520.25 | O124: 30631250 | P124: -2.07%
A125: 115 | B125: Cement | C125: JKCEMENT | D125: 2022-05-26 | E125: 2595.05 | F125: 2596.30 | G125: 2549.90 | H125: 2504.75 | I125: 2458.35 | J125: 2641.45 | K125: 2687.85 | L125: 2733.00 | M125: 2642.7 | N125: 2551.15 | O125: 300125 | P125: 8.27%
A126: 116 | B126: Metals | C126: JSWSTEEL | D126: 2022-05-26 | E126: 732.35 | F126: 725.82 | G126: 716.63 | H126: 700.92 | I126: 691.73 | J126: 741.53 | K126: 750.72 | L126: 766.43 | M126: 735 | N126: 710.1 | O126: 26875800 | P126: 1.04%
A127: 117 | B127: Others | C127: JUBLFOOD | D127: 2022-05-26 | E127: 549.35 | F127: 543.88 | G127: 535.77 | H127: 522.18 | I127: 514.07 | J127: 557.47 | K127: 565.58 | L127: 579.17 | M127: 552 | N127: 530.3 | O127: 9176250 | P127: 0.37%
A128: 118 | B128: Banking | C128: KOTAKBANK | D128: 2022-05-26 | E128: 1778.75 | F128: 1773.10 | G128: 1762.70 | H128: 1746.65 | I128: 1736.25 | J128: 1789.15 | K128: 1799.55 | L128: 1815.60 | M128: 1783.5 | N128: 1757.05 | O128: 13807200 | P128: 1.93%
A129: 119 | B129: Finance | C129: L&TFH | D129: 2022-05-26 | E129: 85.10 | F129: 85.28 | G129: 82.92 | H129: 80.73 | I129: 78.37 | J129: 87.47 | K129: 89.83 | L129: 92.02 | M129: 87.65 | N129: 83.1 | O129: 58354036 | P129: 1.19%
A130: 120 | B130: Others | C130: LALPATHLAB | D130: 2022-05-26 | E130: 2463.70 | F130: 2489.58 | G130: 2414.17 | H130: 2364.63 | I130: 2289.22 | J130: 2539.12 | K130: 2614.53 | L130: 2664.07 | M130: 2565 | N130: 2440.05 | O130: 719125 | P130: 5.85%
A131: 121 | B131: Pharma | C131: LAURUSLABS | D131: 2022-05-26 | E131: 593.80 | F131: 592.27 | G131: 582.53 | H131: 571.27 | I131: 561.53 | J131: 603.53 | K131: 613.27 | L131: 624.53 | M131: 602 | N131: 581 | O131: 7865100 | P131: -4.87%
A132: 122 | B132: Finance | C132: LICHSGFIN | D132: 2022-05-26 | E132: 390.50 | F132: 386.48 | G132: 380.32 | H132: 370.13 | I132: 363.97 | J132: 396.67 | K132: 402.83 | L132: 413.02 | M132: 392.65 | N132: 376.3 | O132: 20258000 | P132: 1.91%
A133: 123 | B133: Capital_Goods | C133: LT | D133: 2022-05-26 | E133: 1683.00 | F133: 1679.28 | G133: 1667.77 | H133: 1652.53 | I133: 1641.02 | J133: 1694.52 | K133: 1706.03 | L133: 1721.27 | M133: 1690.8 | N133: 1664.05 | O133: 13656100 | P133: 3.51%
A134: 124 | B134: Technology | C134: LTI | D134: 2022-05-26 | E134: 4738.10 | F134: 4740.43 | G134: 4678.67 | H134: 4619.23 | I134: 4557.47 | J134: 4799.87 | K134: 4861.63 | L134: 4921.07 | M134: 4802.2 | N134: 4681 | O134: 1725000 | P134: 4.91%
A135: 125 | B135: Technology | C135: LTTS | D135: 2022-05-26 | E135: 3960.40 | F135: 3977.47 | G135: 3889.93 | H135: 3819.47 | I135: 3731.93 | J135: 4047.93 | K135: 4135.47 | L135: 4205.93 | M135: 4065 | N135: 3907 | O135: 928400 | P135: 0.76%
A136: 126 | B136: Pharma | C136: LUPIN | D136: 2022-05-26 | E136: 743.25 | F136: 744.25 | G136: 735.00 | H136: 726.75 | I136: 717.50 | J136: 752.50 | K136: 761.75 | L136: 770.00 | M136: 753.5 | N136: 736 | O136: 8194850 | P136: 1.63%
A137: 127 | B137: Automobile | C137: M&M | D137: 2022-05-26 | E137: 924.00 | F137: 923.52 | G137: 912.03 | H137: 900.07 | I137: 888.58 | J137: 935.48 | K137: 946.97 | L137: 958.93 | M137: 935 | N137: 911.55 | O137: 11095000 | P137: 1.98%
A138: 128 | B138: Finance | C138: M&MFIN | D138: 2022-05-26 | E138: 182.15 | F138: 181.53 | G138: 176.82 | H138: 171.48 | I138: 166.77 | J138: 186.87 | K138: 191.58 | L138: 196.92 | M138: 186.25 | N138: 176.2 | O138: 31708000 | P138: 1.84%
A139: 129 | B139: Finance | C139: MANAPPURAM | D139: 2022-05-26 | E139: 114.60 | F139: 114.05 | G139: 113.05 | H139: 111.50 | I139: 110.50 | J139: 115.60 | K139: 116.60 | L139: 118.15 | M139: 115.05 | N139: 112.5 | O139: 29793000 | P139: 0.00%
A140: 130 | B140: FMCG | C140: MARICO | D140: 2022-05-26 | E140: 524.25 | F140: 522.57 | G140: 517.88 | H140: 511.52 | I140: 506.83 | J140: 528.93 | K140: 533.62 | L140: 539.98 | M140: 527.25 | N140: 516.2 | O140: 8512000 | P140: -0.06%
A141: 131 | B141: Automobile | C141: MARUTI | D141: 2022-05-26 | E141: 7646.15 | F141: 7660.85 | G141: 7556.70 | H141: 7467.25 | I141: 7363.10 | J141: 7750.30 | K141: 7854.45 | L141: 7943.90 | M141: 7765 | N141: 7571.4 | O141: 2805900 | P141: -2.94%
A142: 132 | B142: FMCG | C142: MCDOWELL-N | D142: 2022-05-26 | E142: 849.70 | F142: 848.93 | G142: 837.92 | H142: 826.13 | I142: 815.12 | J142: 860.72 | K142: 871.73 | L142: 883.52 | M142: 859.95 | N142: 837.15 | O142: 13243125 | P142: 1.39%
A143: 133 | B143: Others | C143: MCX | D143: 2022-05-26 | E143: 1437.55 | F143: 1421.80 | G143: 1399.65 | H143: 1361.75 | I143: 1339.60 | J143: 1459.70 | K143: 1481.85 | L143: 1519.75 | M143: 1443.95 | N143: 1383.9 | O143: 2422750 | P143: 15.99%
A144: 134 | B144: Pharma | C144: METROPOLIS | D144: 2022-05-26 | E144: 2254.80 | F144: 2266.27 | G144: 2214.28 | H144: 2173.77 | I144: 2121.78 | J144: 2306.78 | K144: 2358.77 | L144: 2399.28 | M144: 2318.25 | N144: 2225.75 | O144: 332000 | P144: 11.78%
A145: 135 | B145: Finance | C145: MFSL | D145: 2022-05-26 | E145: 737.95 | F145: 741.52 | G145: 732.03 | H145: 726.12 | I145: 716.63 | J145: 747.43 | K145: 756.92 | L145: 762.83 | M145: 751 | N145: 735.6 | O145: 2029300 | P145: 2.09%
A146: 136 | B146: Oil_Gas | C146: MGL | D146: 2022-05-26 | E146: 772.60 | F146: 768.05 | G146: 759.95 | H146: 747.30 | I146: 739.20 | J146: 780.70 | K146: 788.80 | L146: 801.45 | M146: 776.15 | N146: 755.4 | O146: 2935600 | P146: 0.05%
A147: 137 | B147: Technology | C147: MINDTREE | D147: 2022-05-26 | E147: 3494.65 | F147: 3477.20 | G147: 3432.45 | H147: 3370.25 | I147: 3325.50 | J147: 3539.40 | K147: 3584.15 | L147: 3646.35 | M147: 3521.95 | N147: 3415 | O147: 2728600 | P147: -3.20%
A148: 138 | B148: Automobile | C148: MOTHERSUMI | D148: 2022-05-26 | E148: 133.50 | F148: 134.27 | G148: 131.78 | H148: 130.07 | I148: 127.58 | J148: 135.98 | K148: 138.47 | L148: 140.18 | M148: 136.75 | N148: 132.55 | O148: 30427000 | P148: 6.52%
A149: 139 | B149: Technology | C149: MPHASIS | D149: 2022-05-26 | E149: 2752.25 | F149: 2777.40 | G149: 2714.85 | H149: 2677.45 | I149: 2614.90 | J149: 2814.80 | K149: 2877.35 | L149: 2914.75 | M149: 2839.95 | N149: 2740 | O149: 1730400 | P149: 0.83%
A150: 140 | B150: Automobile | C150: MRF | D150: 2022-05-26 | E150: 72229.15 | F150: 71638.73 | G150: 70890.52 | H150: 69551.88 | I150: 68803.67 | J150: 72977.37 | K150: 73725.58 | L150: 75064.22 | M150: 72386.95 | N150: 70300.1 | O150: 103840 | P150: -0.10%
A151: 141 | B151: Finance | C151: MUTHOOTFIN | D151: 2022-05-26 | E151: 1275.65 | F151: 1267.88 | G151: 1257.77 | H151: 1239.88 | I151: 1229.77 | J151: 1285.77 | K151: 1295.88 | L151: 1313.77 | M151: 1278 | N151: 1250 | O151: 3271500 | P151: -1.79%
A152: 142 | B152: Others | C152: NAM-INDIA | D152: 2022-05-26 | E152: 313.10 | F152: 314.37 | G152: 309.93 | H152: 306.77 | I152: 302.33 | J152: 317.53 | K152: 321.97 | L152: 325.13 | M152: 318.8 | N152: 311.2 | O152: 3776000 | P152: 4.56%
A153: 143 | B153: Metals | C153: NATIONALUM | D153: 2022-05-26 | E153: 106.70 | F153: 105.78 | G153: 104.57 | H153: 102.43 | I153: 101.22 | J153: 107.92 | K153: 109.13 | L153: 111.27 | M153: 107 | N153: 103.65 | O153: 75764750 | P153: -1.83%
A154: 144 | B154: Others | C154: NAUKRI | D154: 2022-05-26 | E154: 4538.00 | F154: 4579.17 | G154: 4472.13 | H154: 4406.27 | I154: 4299.23 | J154: 4645.03 | K154: 4752.07 | L154: 4817.93 | M154: 4686.2 | N154: 4513.3 | O154: 1349500 | P154: 1.49%
A155: 145 | B155: Chemical | C155: NAVINFLUOR | D155: 2022-05-26 | E155: 3934.25 | F155: 3914.75 | G155: 3879.50 | H155: 3824.75 | I155: 3789.50 | J155: 3969.50 | K155: 4004.75 | L155: 4059.50 | M155: 3950 | N155: 3860 | O155: 299475 | P155: -1.92%
A156: 146 | B156: Others | C156: NBCC | D156: 2022-05-26 | E156: 37.40 | F156: 37.42 | G156: 36.93 | H156: 36.47 | I156: 35.98 | J156: 37.88 | K156: 38.37 | L156: 38.83 | M156: 37.9 | N156: 36.95 | O156: 28608000 | P156: 0.85%
A157: 147 | B157: FMCG | C157: NESTLEIND | D157: 2022-05-26 | E157: 18490.95 | F157: 18419.93 | G157: 18327.72 | H157: 18164.48 | I157: 18072.27 | J157: 18583.17 | K157: 18675.38 | L157: 18838.62 | M157: 18512.15 | N157: 18256.7 | O157: 293965 | P157: 0.00%
A158: 148 | B158: Metals | C158: NMDC | D158: 2022-05-26 | E158: 160.90 | F158: 160.20 | G158: 158.90 | H158: 156.90 | I158: 155.60 | J158: 162.20 | K158: 163.50 | L158: 165.50 | M158: 161.5 | N158: 158.2 | O158: 51603400 | P158: -0.70%
A159: 149 | B159: Power | C159: NTPC | D159: 2022-05-26 | E159: 157.65 | F159: 156.22 | G159: 154.43 | H159: 151.22 | I159: 149.43 | J159: 159.43 | K159: 161.22 | L159: 164.43 | M159: 158 | N159: 153 | O159: 66462000 | P159: -0.44%
A160: 150 | B160: Realty | C160: OBEROIRLTY | D160: 2022-05-26 | E160: 953.00 | F160: 954.63 | G160: 942.97 | H160: 932.93 | I160: 921.27 | J160: 964.67 | K160: 976.33 | L160: 986.37 | M160: 966.3 | N160: 944.6 | O160: 4167800 | P160: 1.83%
A161: 151 | B161: Technology | C161: OFSS | D161: 2022-05-26 | E161: 3503.40 | F161: 3507.85 | G161: 3476.80 | H161: 3450.20 | I161: 3419.15 | J161: 3534.45 | K161: 3565.50 | L161: 3592.10 | M161: 3538.9 | N161: 3481.25 | O161: 384125 | P161: 0.29%
A162: 152 | B162: Oil_Gas | C162: ONGC | D162: 2022-05-26 | E162: 157.15 | F162: 157.90 | G162: 155.70 | H162: 154.25 | I162: 152.05 | J162: 159.35 | K162: 161.55 | L162: 163.00 | M162: 160.1 | N162: 156.45 | O162: 51693950 | P162: 7.91%
A163: 153 | B163: Textile | C163: PAGEIND | D163: 2022-05-26 | E163: 45728.15 | F163: 45605.73 | G163: 45189.12 | H163: 44650.08 | I163: 44233.47 | J163: 46144.77 | K163: 46561.38 | L163: 47100.42 | M163: 46022.35 | N163: 45066.7 | O163: 76860 | P163: 0.85%
A164: 154 | B164: Pharma | C164: PEL | D164: 2022-05-26 | E164: 2138.95 | F164: 2138.17 | G164: 2119.33 | H164: 2099.72 | I164: 2080.88 | J164: 2157.78 | K164: 2176.62 | L164: 2196.23 | M164: 2157 | N164: 2118.55 | O164: 3388000 | P164: 1.41%
A165: 155 | B165: Technology | C165: PERSISTENT | D165: 2022-05-26 | E165: 4162.80 | F165: 4210.35 | G165: 4095.70 | H165: 4028.60 | I165: 3913.95 | J165: 4277.45 | K165: 4392.10 | L165: 4459.20 | M165: 4325 | N165: 4143.25 | O165: 489450 | P165: -3.32%
A166: 156 | B166: Oil_Gas | C166: PETRONET | D166: 2022-05-26 | E166: 208.30 | F166: 206.95 | G166: 204.40 | H166: 200.50 | I166: 197.95 | J166: 210.85 | K166: 213.40 | L166: 217.30 | M166: 209.5 | N166: 203.05 | O166: 16185000 | P166: -5.76%
A167: 157 | B167: Finance | C167: PFC | D167: 2022-05-26 | E167: 117.30 | F167: 116.98 | G167: 116.32 | H167: 115.33 | I167: 114.67 | J167: 117.97 | K167: 118.63 | L167: 119.62 | M167: 117.65 | N167: 116 | O167: 40386800 | P167: 0.62%
A168: 158 | B168: FMCG | C168: PIDILITIND | D168: 2022-05-26 | E168: 2428.20 | F168: 2426.68 | G168: 2409.77 | H168: 2391.33 | I168: 2374.42 | J168: 2445.12 | K168: 2462.03 | L168: 2480.47 | M168: 2443.6 | N168: 2408.25 | O168: 2924250 | P168: -0.64%
A169: 159 | B169: Chemical | C169: PIIND | D169: 2022-05-26 | E169: 2871.45 | F169: 2857.65 | G169: 2837.00 | H169: 2802.55 | I169: 2781.90 | J169: 2892.10 | K169: 2912.75 | L169: 2947.20 | M169: 2878.3 | N169: 2823.2 | O169: 1498750 | P169: 0.55%
A170: 160 | B170: Banking | C170: PNB | D170: 2022-05-26 | E170: 35.20 | F170: 35.07 | G170: 34.83 | H170: 34.47 | I170: 34.23 | J170: 35.43 | K170: 35.67 | L170: 36.03 | M170: 35.3 | N170: 34.7 | O170: 241568000 | P170: 1.01%
A171: 161 | B171: Others | C171: POLYCAB | D171: 2022-05-26 | E171: 2478.80 | F171: 2477.27 | G171: 2445.28 | H171: 2411.77 | I171: 2379.78 | J171: 2510.78 | K171: 2542.77 | L171: 2576.28 | M171: 2509.25 | N171: 2443.75 | O171: 662700 | P171: 0.73%
A172: 162 | B172: Power | C172: POWERGRID | D172: 2022-05-26 | E172: 232.15 | F172: 230.53 | G172: 228.22 | H172: 224.28 | I172: 221.97 | J172: 234.47 | K172: 236.78 | L172: 240.72 | M172: 232.85 | N172: 226.6 | O172: 39256213 | P172: 1.21%
A173: 163 | B173: Media | C173: PVR | D173: 2022-05-26 | E173: 1813.15 | F173: 1814.97 | G173: 1797.93 | H173: 1782.72 | I173: 1765.68 | J173: 1830.18 | K173: 1847.22 | L173: 1862.43 | M173: 1832 | N173: 1799.75 | O173: 2377694 | P173: -2.26%
A174: 164 | B174: Others | C174: RAIN | D174: 2022-05-26 | E174: 168.05 | F174: 168.15 | G174: 165.40 | H174: 162.75 | I174: 160.00 | J174: 170.80 | K174: 173.55 | L174: 176.20 | M174: 170.9 | N174: 165.5 | O174: 6649500 | P174: 0.90%
A175: 165 | B175: Cement | C175: RAMCOCEM | D175: 2022-05-26 | E175: 787.85 | F175: 785.35 | G175: 777.70 | H175: 767.55 | I175: 759.90 | J175: 795.50 | K175: 803.15 | L175: 813.30 | M175: 793 | N175: 775.2 | O175: 2716600 | P175: -2.71%
A176: 166 | B176: Banking | C176: RBLBANK | D176: 2022-05-26 | E176: 117.65 | F176: 118.18 | G176: 116.22 | H176: 114.78 | I176: 112.82 | J176: 119.62 | K176: 121.58 | L176: 123.02 | M176: 120.15 | N176: 116.75 | O176: 49057600 | P176: -0.05%
A177: 167 | B177: Power | C177: RECLTD | D177: 2022-05-26 | E177: 126.75 | F177: 126.45 | G177: 125.60 | H177: 124.45 | I177: 123.60 | J177: 127.60 | K177: 128.45 | L177: 129.60 | M177: 127.3 | N177: 125.3 | O177: 28020000 | P177: 0.73%
A178: 168 | B178: Oil_Gas | C178: RELIANCE | D178: 2022-05-26 | E178: 2788.35 | F178: 2787.75 | G178: 2765.75 | H178: 2743.15 | I178: 2721.15 | J178: 2810.35 | K178: 2832.35 | L178: 2854.95 | M178: 2809.75 | N178: 2765.15 | O178: 35012500 | P178: 0.59%
A179: 169 | B179: Metals | C179: SAIL | D179: 2022-05-26 | E179: 97.20 | F179: 96.40 | G179: 95.30 | H179: 93.40 | I179: 92.30 | J179: 98.30 | K179: 99.40 | L179: 101.30 | M179: 97.5 | N179: 94.5 | O179: 135757000 | P179: 0.74%
A180: 170 | B180: Banking | C180: SBICARD | D180: 2022-05-26 | E180: 821.25 | F180: 821.27 | G180: 806.53 | H180: 791.82 | I180: 777.08 | J180: 835.98 | K180: 850.72 | L180: 865.43 | M180: 836 | N180: 806.55 | O180: 7637400 | P180: -2.45%
A181: 171 | B181: Finance | C181: SBILIFE | D181: 2022-05-26 | E181: 1084.70 | F181: 1083.00 | G181: 1069.50 | H181: 1054.30 | I181: 1040.80 | J181: 1098.20 | K181: 1111.70 | L181: 1126.90 | M181: 1096.5 | N181: 1067.8 | O181: 7442250 | P181: 1.68%
A182: 172 | B182: Banking | C182: SBIN | D182: 2022-05-26 | E182: 492.40 | F182: 490.62 | G182: 484.83 | H182: 477.27 | I182: 471.48 | J182: 498.18 | K182: 503.97 | L182: 511.53 | M182: 496.4 | N182: 483.05 | O182: 61887000 | P182: 2.42%
A183: 173 | B183: Cement | C183: SHREECEM | D183: 2022-05-26 | E183: 26147.35 | F183: 25746.92 | G183: 25248.83 | H183: 24350.32 | I183: 23852.23 | J183: 26645.43 | K183: 27143.52 | L183: 28042.03 | M183: 26245 | N183: 24848.4 | O183: 191450 | P183: 3.12%
A184: 174 | B184: Capital_Goods | C184: SIEMENS | D184: 2022-05-26 | E184: 2251.45 | F184: 2250.83 | G184: 2223.22 | H184: 2194.98 | I184: 2167.37 | J184: 2279.07 | K184: 2306.68 | L184: 2334.92 | M184: 2278.45 | N184: 2222.6 | O184: 1588675 | P184: 0.54%
A185: 175 | B185: Textile | C185: SRF | D185: 2022-05-26 | E185: 2511.25 | F185: 2500.13 | G185: 2481.32 | H185: 2451.38 | I185: 2432.57 | J185: 2530.07 | K185: 2548.88 | L185: 2578.82 | M185: 2518.95 | N185: 2470.2 | O185: 3014625 | P185: -0.29%
A186: 176 | B186: Finance | C186: SRTRANSFIN | D186: 2022-05-26 | E186: 1231.50 | F186: 1220.70 | G186: 1202.00 | H186: 1172.50 | I186: 1153.80 | J186: 1250.20 | K186: 1268.90 | L186: 1298.40 | M186: 1239.4 | N186: 1191.2 | O186: 5165200 | P186: -1.45%
A187: 177 | B187: Pharma | C187: STAR | D187: 2022-05-26 | E187: 326.90 | F187: 326.35 | G187: 321.05 | H187: 315.20 | I187: 309.90 | J187: 332.20 | K187: 337.50 | L187: 343.35 | M187: 331.65 | N187: 320.5 | O187: 4504500 | P187: -0.40%
A188: 178 | B188: Pharma | C188: SUNPHARMA | D188: 2022-05-26 | E188: 924.55 | F188: 918.38 | G188: 909.77 | H188: 894.98 | I188: 886.37 | J188: 933.17 | K188: 941.78 | L188: 956.57 | M188: 927 | N188: 903.6 | O188: 17350200 | P188: -0.84%
A189: 179 | B189: Media | C189: SUNTV | D189: 2022-05-26 | E189: 482.00 | F189: 480.82 | G189: 477.23 | H189: 472.47 | I189: 468.88 | J189: 485.58 | K189: 489.17 | L189: 493.93 | M189: 484.4 | N189: 476.05 | O189: 12678000 | P189: -1.05%
A190: 180 | B190: Pharma | C190: SYNGENE | D190: 2022-05-26 | E190: 623.20 | F190: 625.35 | G190: 615.90 | H190: 608.60 | I190: 599.15 | J190: 632.65 | K190: 642.10 | L190: 649.40 | M190: 634.8 | N190: 618.05 | O190: 831300 | P190: 0.41%
A191: 181 | B191: Chemical | C191: TATACHEM | D191: 2022-05-26 | E191: 1038.55 | F191: 1020.12 | G191: 988.23 | H191: 937.92 | I191: 906.03 | J191: 1070.43 | K191: 1102.32 | L191: 1152.63 | M191: 1052 | N191: 969.8 | O191: 6366000 | P191: 18.15%
A192: 182 | B192: Telecom | C192: TATACOMM | D192: 2022-05-26 | E192: 1084.85 | F192: 1076.48 | G192: 1057.97 | H192: 1031.08 | I192: 1012.57 | J192: 1103.37 | K192: 1121.88 | L192: 1148.77 | M192: 1095 | N192: 1049.6 | O192: 5109100 | P192: -2.93%
A193: 183 | B193: FMCG | C193: TATACONSUM | D193: 2022-05-26 | E193: 823.35 | F193: 818.90 | G193: 810.80 | H193: 798.25 | I193: 790.15 | J193: 831.45 | K193: 839.55 | L193: 852.10 | M193: 827 | N193: 806.35 | O193: 6361875 | P193: 1.53%
A194: 184 | B194: Automobile | C194: TATAMOTORS | D194: 2022-05-26 | E194: 434.05 | F194: 435.77 | G194: 427.18 | H194: 420.32 | I194: 411.73 | J194: 442.63 | K194: 451.22 | L194: 458.08 | M194: 444.35 | N194: 428.9 | O194: 83569125 | P194: 1.51%
A195: 185 | B195: Power | C195: TATAPOWER | D195: 2022-05-26 | E195: 249.15 | F195: 246.03 | G195: 242.27 | H195: 235.38 | I195: 231.62 | J195: 252.92 | K195: 256.68 | L195: 263.57 | M195: 249.8 | N195: 239.15 | O195: 100436625 | P195: -2.95%
A196: 186 | B196: Metals | C196: TATASTEEL | D196: 2022-05-26 | E196: 1289.90 | F196: 1279.05 | G196: 1257.15 | H196: 1224.40 | I196: 1202.50 | J196: 1311.80 | K196: 1333.70 | L196: 1366.45 | M196: 1300.95 | N196: 1246.3 | O196: 29416375 | P196: 0.54%
A197: 187 | B197: Technology | C197: TCS | D197: 2022-05-26 | E197: 3532.55 | F197: 3519.02 | G197: 3501.58 | H197: 3470.62 | I197: 3453.18 | J197: 3549.98 | K197: 3567.42 | L197: 3598.38 | M197: 3536.45 | N197: 3488.05 | O197: 11224050 | P197: 1.69%
A198: 188 | B198: Technology | C198: TECHM | D198: 2022-05-26 | E198: 1235.80 | F198: 1232.97 | G198: 1214.13 | H198: 1192.47 | I198: 1173.63 | J198: 1254.63 | K198: 1273.47 | L198: 1295.13 | M198: 1251.8 | N198: 1211.3 | O198: 17167800 | P198: 4.68%
A199: 189 | B199: FMCG | C199: TITAN | D199: 2022-05-26 | E199: 2389.50 | F199: 2406.72 | G199: 2358.03 | H199: 2326.57 | I199: 2277.88 | J199: 2438.18 | K199: 2486.87 | L199: 2518.33 | M199: 2455.4 | N199: 2375.25 | O199: 5993250 | P199: 8.53%
A200: 190 | B200: Pharma | C200: TORNTPHARM | D200: 2022-05-26 | E200: 2799.35 | F200: 2798.85 | G200: 2764.10 | H200: 2728.85 | I200: 2694.10 | J200: 2834.10 | K200: 2868.85 | L200: 2904.10 | M200: 2833.6 | N200: 2763.6 | O200: 616500 | P200: 1.99%
A201: 191 | B201: Power | C201: TORNTPOWER | D201: 2022-05-26 | E201: 537.05 | F201: 534.42 | G201: 529.98 | H201: 522.92 | I201: 518.48 | J201: 541.48 | K201: 545.92 | L201: 552.98 | M201: 538.85 | N201: 527.35 | O201: 3013500 | P201: 0.45%
A202: 192 | B202: Others | C202: TRENT | D202: 2022-05-26 | E202: 1220.90 | F202: 1221.95 | G202: 1209.85 | H202: 1198.80 | I202: 1186.70 | J202: 1233.00 | K202: 1245.10 | L202: 1256.15 | M202: 1234.05 | N202: 1210.9 | O202: 2762975 | P202: 4.61%
A203: 193 | B203: Automobile | C203: TVSMOTOR | D203: 2022-05-26 | E203: 651.50 | F203: 653.03 | G203: 644.47 | H203: 637.43 | I203: 628.87 | J203: 660.07 | K203: 668.63 | L203: 675.67 | M203: 661.6 | N203: 646 | O203: 6650000 | P203: -0.08%
A204: 194 | B204: FMCG | C204: UBL | D204: 2022-05-26 | E204: 1557.20 | F204: 1567.72 | G204: 1536.13 | H204: 1515.07 | I204: 1483.48 | J204: 1588.78 | K204: 1620.37 | L204: 1641.43 | M204: 1599.3 | N204: 1546.65 | O204: 1262400 | P204: -1.43%
A205: 195 | B205: Cement | C205: ULTRACEMCO | D205: 2022-05-26 | E205: 6689.85 | F205: 6661.40 | G205: 6579.80 | H205: 6469.75 | I205: 6388.15 | J205: 6771.45 | K205: 6853.05 | L205: 6963.10 | M205: 6743 | N205: 6551.35 | O205: 2029700 | P205: -0.53%
A206: 196 | B206: Chemical | C206: UPL | D206: 2022-05-26 | E206: 831.60 | F206: 828.58 | G206: 818.52 | H206: 805.43 | I206: 795.37 | J206: 841.67 | K206: 851.73 | L206: 864.82 | M206: 838.65 | N206: 815.5 | O206: 22066200 | P206: 0.77%
... 21 more rows

Sheet Cash Intra
M5: Back to Main Page
A6: FOR INTRA DAY TRADING | K6: =Main!B10 -> 2022-05-04
A8: Sr.no | C8: CLOSE RATE | D8: Pivot Point | E8: Supports | H8: Resistances
E9: S1 | F9: S2 | G9: S3 | H9: R1 | I9: R2 | J9: R3 | K9: HIGH | L9: LOW | M9: Total Trade Quanity in Lakhs
A10: 1 | B10: Nifty 50 | C10: 17069.1 | D10: 17026.20 | E10: 16960.15 | F10: 16851.20 | G10: 16785.15 | H10: 17135.15 | I10: 17201.20 | J10: 17310.15 | K10: 17092.25 | L10: 16917.25
A11: 2 | B11: Nifty Bank | C11: 36163.75 | D11: 36005.73 | E11: 35776.22 | F11: 35388.68 | G11: 35159.17 | H11: 36393.27 | I11: 36622.78 | J11: 37010.32 | K11: 36235.25 | L11: 35618.2
A12: 3 | B12: Nifty CPSE | C12: 2654.05 | D12: 2641.52 | E12: 2622.63 | F12: 2591.22 | G12: 2572.33 | H12: 2672.93 | I12: 2691.82 | J12: 2723.23 | K12: 2660.4 | L12: 2610.1
A13: 4 | B13: Nifty Infra | C13: 5122.1 | D13: 5106.85 | E13: 5088.10 | F13: 5054.10 | G13: 5035.35 | H13: 5140.85 | I13: 5159.60 | J13: 5193.60 | K13: 5125.6 | L13: 5072.85
A14: 5 | B14: Nifty IT | C14: 31138.8 | D14: 31163.03 | E14: 30916.42 | F14: 30694.03 | G14: 30447.42 | H14: 31385.42 | I14: 31632.03 | J14: 31854.42 | K14: 31409.65 | L14: 30940.65
A15: 6 | B15: Nifty PSE | C15: 4242.05 | D15: 4225.05 | E15: 4198.75 | F15: 4155.45 | G15: 4129.15 | H15: 4268.35 | I15: 4294.65 | J15: 4337.95 | K15: 4251.35 | L15: 4181.75
A16: 7 | B16: Nifty Midcap 50 | C16: 8120.15 | D16: 8102.80 | E16: 8072.40 | F16: 8024.65 | G16: 7994.25 | H16: 8150.55 | I16: 8180.95 | J16: 8228.70 | K16: 8133.2 | L16: 8055.05
A17: 8 | B17: ACC | C17: 2347.2 | D17: 2338.40 | E17: 2318.50 | F17: 2289.80 | G17: 2269.90 | H17: 2367.10 | I17: 2387.00 | J17: 2415.70 | K17: 2358.3 | L17: 2309.7 | M17: 4.90846
A18: 9 | B18: AUBANK | C18: 1371.1 | D18: 1372.52 | E18: 1354.63 | F18: 1338.17 | G18: 1320.28 | H18: 1388.98 | I18: 1406.87 | J18: 1423.33 | K18: 1390.4 | L18: 1356.05 | M18: 10.35462
A19: 10 | B19: AARTIIND | C19: 847.65 | D19: 856.02 | E19: 830.18 | F19: 812.72 | G19: 786.88 | H19: 873.48 | I19: 899.32 | J19: 916.78 | K19: 881.85 | L19: 838.55 | M19: 13.11997
A20: 11 | B20: ADANIENT | C20: 2339.5 | D20: 2337.60 | E20: 2312.90 | F20: 2286.30 | G20: 2261.60 | H20: 2364.20 | I20: 2388.90 | J20: 2415.50 | K20: 2362.3 | L20: 2311 | M20: 10.06544
A21: 12 | B21: ADANIGREEN | C21: 2830.35 | D21: 2844.78 | E21: 2794.57 | F21: 2758.78 | G21: 2708.57 | H21: 2880.57 | I21: 2930.78 | J21: 2966.57 | K21: 2895 | L21: 2809 | M21: 3.74592
A22: 13 | B22: ADANIPORTS | C22: 856.55 | D22: 852.48 | E22: 842.12 | F22: 827.68 | G22: 817.32 | H22: 866.92 | I22: 877.28 | J22: 891.72 | K22: 862.85 | L22: 838.05 | M22: 57.60499
A23: 14 | B23: ATGL | C23: 2488.2 | D23: 2483.45 | E23: 2446.90 | F23: 2405.60 | G23: 2369.05 | H23: 2524.75 | I23: 2561.30 | J23: 2602.60 | K23: 2520 | L23: 2442.15 | M23: 3.05245
A24: 15 | B24: ADANITRANS | C24: 2804.45 | D24: 2779.15 | E24: 2720.30 | F24: 2636.15 | G24: 2577.30 | H24: 2863.30 | I24: 2922.15 | J24: 3006.30 | K24: 2838 | L24: 2695 | M24: 3.15168
A25: 16 | B25: ABCAPITAL | C25: 116.95 | D25: 117.32 | E25: 115.18 | F25: 113.42 | G25: 111.28 | H25: 119.08 | I25: 121.22 | J25: 122.98 | K25: 119.45 | L25: 115.55 | M25: 48.44723
A26: 17 | B26: ABFRL | C26: 282.45 | D26: 282.37 | E26: 279.78 | F26: 277.12 | G26: 274.53 | H26: 285.03 | I26: 287.62 | J26: 290.28 | K26: 284.95 | L26: 279.7 | M26: 8.17211
A27: 18 | B27: AJANTPHARM | C27: 1803.15 | D27: 1795.62 | E27: 1727.53 | F27: 1651.92 | G27: 1583.83 | H27: 1871.23 | I27: 1939.32 | J27: 2014.93 | K27: 1863.7 | L27: 1720 | M27: 2.87821
A28: 19 | B28: APLLTD | C28: 786.6 | D28: 779.52 | E28: 767.03 | F28: 747.47 | G28: 734.98 | H28: 799.08 | I28: 811.57 | J28: 831.13 | K28: 792 | L28: 759.95 | M28: 1.90613
A29: 20 | B29: ALKEM | C29: 3272.8 | D29: 3268.63 | E29: 3223.57 | F29: 3174.33 | G29: 3129.27 | H29: 3317.87 | I29: 3362.93 | J29: 3412.17 | K29: 3313.7 | L29: 3219.4 | M29: 0.51958
A30: 21 | B30: AMARAJABAT | C30: 554.05 | D30: 555.28 | E30: 550.17 | F30: 546.28 | G30: 541.17 | H30: 559.17 | I30: 564.28 | J30: 568.17 | K30: 560.4 | L30: 551.4 | M30: 2.22903
A31: 22 | B31: AMBUJACEM | C31: 378.15 | D31: 375.80 | E31: 371.10 | F31: 364.05 | G31: 359.35 | H31: 382.85 | I31: 387.55 | J31: 394.60 | K31: 380.5 | L31: 368.75 | M31: 59.59678
A32: 23 | B32: APOLLOHOSP | C32: 4304.75 | D32: 4344.92 | E32: 4249.83 | F32: 4194.92 | G32: 4099.83 | H32: 4399.83 | I32: 4494.92 | J32: 4549.83 | K32: 4440 | L32: 4290 | M32: 5.6861
A33: 24 | B33: APOLLOTYRE | C33: 202.6 | D33: 201.70 | E33: 199.40 | F33: 196.20 | G33: 193.90 | H33: 204.90 | I33: 207.20 | J33: 210.40 | K33: 204 | L33: 198.5 | M33: 18.4262
A34: 25 | B34: ASHOKLEY | C34: 126.2 | D34: 125.28 | E34: 123.12 | F34: 120.03 | G34: 117.87 | H34: 128.37 | I34: 130.53 | J34: 133.62 | K34: 127.45 | L34: 122.2 | M34: 133.62735
A35: 26 | B35: ASIANPAINT | C35: 3200 | D35: 3188.52 | E35: 3165.53 | F35: 3131.07 | G35: 3108.08 | H35: 3222.98 | I35: 3245.97 | J35: 3280.43 | K35: 3211.5 | L35: 3154.05 | M35: 5.95522
A36: 27 | B36: ASTRAL | C36: 2065.95 | D36: 2078.33 | E36: 2002.67 | F36: 1939.38 | G36: 1863.72 | H36: 2141.62 | I36: 2217.28 | J36: 2280.57 | K36: 2154 | L36: 2015.05 | M36: 5.7719
A37: 28 | B37: AUROPHARMA | C37: 642.5 | D37: 639.98 | E37: 626.97 | F37: 611.43 | G37: 598.42 | H37: 655.52 | I37: 668.53 | J37: 684.07 | K37: 653 | L37: 624.45 | M37: 26.05546
A38: 29 | B38: DMART | C38: 3983.35 | D38: 3956.72 | E38: 3915.63 | F38: 3847.92 | G38: 3806.83 | H38: 4024.43 | I38: 4065.52 | J38: 4133.23 | K38: 3997.8 | L38: 3889 | M38: 2.65831
A39: 30 | B39: AXISBANK | C39: 727.35 | D39: 728.02 | E39: 717.83 | F39: 708.32 | G39: 698.13 | H39: 737.53 | I39: 747.72 | J39: 757.23 | K39: 738.2 | L39: 718.5 | M39: 161.3604
A40: 31 | B40: BAJAJ-AUTO | C40: 3623.45 | D40: 3649.82 | E40: 3579.63 | F40: 3535.82 | G40: 3465.63 | H40: 3693.63 | I40: 3763.82 | J40: 3807.63 | K40: 3720 | L40: 3606 | M40: 3.7666
A41: 32 | B41: BAJFINANCE | C41: 6626.15 | D41: 6600.50 | E41: 6551.15 | F41: 6476.15 | G41: 6426.80 | H41: 6675.50 | I41: 6724.85 | J41: 6799.85 | K41: 6649.85 | L41: 6525.5 | M41: 12.38741
A42: 33 | B42: BAJAJFINSV | C42: 14957.45 | D42: 14860.08 | E42: 14697.42 | F42: 14437.38 | G42: 14274.72 | H42: 15120.12 | I42: 15282.78 | J42: 15542.82 | K42: 15022.75 | L42: 14600.05 | M42: 1.90798
A43: 34 | B43: BAJAJHLDNG | C43: 5325.4 | D43: 5286.80 | E43: 5203.60 | F43: 5081.80 | G43: 4998.60 | H43: 5408.60 | I43: 5491.80 | J43: 5613.60 | K43: 5370 | L43: 5165 | M43: 1.35333
A44: 35 | B44: BALKRISIND | C44: 2103.95 | D44: 2111.65 | E44: 2075.40 | F44: 2046.85 | G44: 2010.60 | H44: 2140.20 | I44: 2176.45 | J44: 2205.00 | K44: 2147.9 | L44: 2083.1 | M44: 2.95744
A45: 36 | B45: BANDHANBNK | C45: 336.5 | D45: 333.87 | E45: 329.73 | F45: 322.97 | G45: 318.83 | H45: 340.63 | I45: 344.77 | J45: 351.53 | K45: 338 | L45: 327.1 | M45: 44.45938
A46: 37 | B46: BANKBARODA | C46: 112.75 | D46: 112.28 | E46: 111.32 | F46: 109.88 | G46: 108.92 | H46: 113.72 | I46: 114.68 | J46: 116.12 | K46: 113.25 | L46: 110.85 | M46: 145.26547
A47: 38 | B47: BANKINDIA | C47: 47.7 | D47: 47.78 | E47: 47.27 | F47: 46.83 | G47: 46.32 | H47: 48.22 | I47: 48.73 | J47: 49.17 | K47: 48.3 | L47: 47.35 | M47: 15.1551
A48: 39 | B48: BATAINDIA | C48: 1967.8 | D48: 1950.62 | E48: 1930.23 | F48: 1892.67 | G48: 1872.28 | H48: 1988.18 | I48: 2008.57 | J48: 2046.13 | K48: 1971 | L48: 1913.05 | M48: 1.39236
A49: 40 | B49: BERGEPAINT | C49: 713.35 | D49: 711.52 | E49: 707.38 | F49: 701.42 | G49: 697.28 | H49: 717.48 | I49: 721.62 | J49: 727.58 | K49: 715.65 | L49: 705.55 | M49: 1.61853
A50: 41 | B50: BEL | C50: 238.15 | D50: 237.08 | E50: 234.77 | F50: 231.38 | G50: 229.07 | H50: 240.47 | I50: 242.78 | J50: 246.17 | K50: 239.4 | L50: 233.7 | M50: 46.47385
A51: 42 | B51: BHARATFORG | C51: 678.45 | D51: 681.00 | E51: 671.55 | F51: 664.65 | G51: 655.20 | H51: 687.90 | I51: 697.35 | J51: 704.25 | K51: 690.45 | L51: 674.1 | M51: 13.39651
A52: 43 | B52: BHEL | C52: 52.4 | D52: 52.12 | E52: 51.63 | F52: 50.87 | G52: 50.38 | H52: 52.88 | I52: 53.37 | J52: 54.13 | K52: 52.6 | L52: 51.35 | M52: 162.80662
A53: 44 | B53: BPCL | C53: 366.45 | D53: 364.02 | E53: 360.08 | F53: 353.72 | G53: 349.78 | H53: 370.38 | I53: 374.32 | J53: 380.68 | K53: 367.95 | L53: 357.65 | M53: 32.00238
A54: 45 | B54: BHARTIARTL | C54: 741.35 | D54: 738.22 | E54: 733.48 | F54: 725.62 | G54: 720.88 | H54: 746.08 | I54: 750.82 | J54: 758.68 | K54: 742.95 | L54: 730.35 | M54: 39.38533
A55: 46 | B55: BIOCON | C55: 372.8 | D55: 371.22 | E55: 364.88 | F55: 356.97 | G55: 350.63 | H55: 379.13 | I55: 385.47 | J55: 393.38 | K55: 377.55 | L55: 363.3 | M55: 31.55507
A56: 47 | B56: BOSCHLTD | C56: 14460.55 | D56: 14430.98 | E56: 14259.57 | F56: 14058.58 | G56: 13887.17 | H56: 14631.97 | I56: 14803.38 | J56: 15004.37 | K56: 14602.4 | L56: 14230 | M56: 0.18509
A57: 48 | B57: BRITANNIA | C57: 3271.3 | D57: 3253.07 | E57: 3221.23 | F57: 3171.17 | G57: 3139.33 | H57: 3303.13 | I57: 3334.97 | J57: 3385.03 | K57: 3284.9 | L57: 3203 | M57: 2.15783
A58: 49 | B58: INTELLECT | C58: 787.55 | D58: 783.32 | E58: 772.38 | F58: 757.22 | G58: 746.28 | H58: 798.48 | I58: 809.42 | J58: 824.58 | K58: 794.25 | L58: 768.15 | M58: 2.70717
A59: 50 | B59: CANBK | C59: 229.75 | D59: 228.73 | E59: 227.12 | F59: 224.48 | G59: 222.87 | H59: 231.37 | I59: 232.98 | J59: 235.62 | K59: 230.35 | L59: 226.1 | M59: 46.88902
A60: 51 | B60: CASTROLIND | C60: 108.5 | D60: 108.05 | E60: 107.10 | F60: 105.70 | G60: 104.75 | H60: 109.45 | I60: 110.40 | J60: 111.80 | K60: 109 | L60: 106.65 | M60: 10.19753
A61: 52 | B61: CHOLAFIN | C61: 746.5 | D61: 741.52 | E61: 733.13 | F61: 719.77 | G61: 711.38 | H61: 754.88 | I61: 763.27 | J61: 776.63 | K61: 749.9 | L61: 728.15 | M61: 10.31975
A62: 53 | B62: CIPLA | C62: 976.6 | D62: 979.38 | E62: 969.02 | F62: 961.43 | G62: 951.07 | H62: 986.97 | I62: 997.33 | J62: 1004.92 | K62: 989.75 | L62: 971.8 | M62: 17.67117
A63: 54 | B63: CUB | C63: 134.05 | D63: 134.77 | E63: 132.43 | F63: 130.82 | G63: 128.48 | H63: 136.38 | I63: 138.72 | J63: 140.33 | K63: 137.1 | L63: 133.15 | M63: 6.51115
A64: 55 | B64: COALINDIA | C64: 187.65 | D64: 185.13 | E64: 181.37 | F64: 175.08 | G64: 171.32 | H64: 191.42 | I64: 195.18 | J64: 201.47 | K64: 188.9 | L64: 178.85 | M64: 212.89439
A65: 56 | B65: COFORGE | C65: 4116.55 | D65: 4117.42 | E65: 4059.83 | F65: 4003.12 | G65: 3945.53 | H65: 4174.13 | I65: 4231.72 | J65: 4288.43 | K65: 4175 | L65: 4060.7 | M65: 1.3013
A66: 57 | B66: COLPAL | C66: 1643 | D66: 1649.43 | E66: 1626.87 | F66: 1610.73 | G66: 1588.17 | H66: 1665.57 | I66: 1688.13 | J66: 1704.27 | K66: 1672 | L66: 1633.3 | M66: 1.92906
A67: 58 | B67: CONCOR | C67: 644.5 | D67: 647.05 | E67: 633.10 | F67: 621.70 | G67: 607.75 | H67: 658.45 | I67: 672.40 | J67: 683.80 | K67: 661 | L67: 635.65 | M67: 12.42193
A68: 59 | B68: COROMANDEL | C68: 910.1 | D68: 905.57 | E68: 893.18 | F68: 876.27 | G68: 863.88 | H68: 922.48 | I68: 934.87 | J68: 951.78 | K68: 917.95 | L68: 888.65 | M68: 10.40924
A69: 60 | B69: CROMPTON | C69: 378.55 | D69: 380.40 | E69: 375.60 | F69: 372.65 | G69: 367.85 | H69: 383.35 | I69: 388.15 | J69: 391.10 | K69: 385.2 | L69: 377.45 | M69: 8.66725
A70: 61 | B70: CUMMINSIND | C70: 1031 | D70: 1026.53 | E70: 1015.47 | F70: 999.93 | G70: 988.87 | H70: 1042.07 | I70: 1053.13 | J70: 1068.67 | K70: 1037.6 | L70: 1011 | M70: 3.80054
A71: 62 | B71: DLF | C71: 367.55 | D71: 367.82 | E71: 363.93 | F71: 360.32 | G71: 356.43 | H71: 371.43 | I71: 375.32 | J71: 378.93 | K71: 371.7 | L71: 364.2 | M71: 36.06478
A72: 63 | B72: DABUR | C72: 557.2 | D72: 555.30 | E72: 551.15 | F72: 545.10 | G72: 540.95 | H72: 561.35 | I72: 565.50 | J72: 571.55 | K72: 559.45 | L72: 549.25 | M72: 10.89778
A73: 64 | B73: DALBHARAT | C73: 1501.75 | D73: 1499.08 | E73: 1479.02 | F73: 1456.28 | G73: 1436.22 | H73: 1521.82 | I73: 1541.88 | J73: 1564.62 | K73: 1519.15 | L73: 1476.35 | M73: 0.8245
A74: 65 | B74: DEEPAKNTR | C74: 2298.3 | D74: 2301.87 | E74: 2265.88 | F74: 2233.47 | G74: 2197.48 | H74: 2334.28 | I74: 2370.27 | J74: 2402.68 | K74: 2337.85 | L74: 2269.45 | M74: 6.23462
A75: 66 | B75: DHANI | C75: 53.7 | D75: 55.17 | E75: 52.03 | F75: 50.37 | G75: 47.23 | H75: 56.83 | I75: 59.97 | J75: 61.63 | K75: 58.3 | L75: 53.5 | M75: 25.75294
A76: 67 | B76: DIVISLAB | C76: 4509.65 | D76: 4509.63 | E76: 4465.07 | F76: 4420.48 | G76: 4375.92 | H76: 4554.22 | I76: 4598.78 | J76: 4643.37 | K76: 4554.2 | L76: 4465.05 | M76: 3.00278
A77: 68 | B77: DIXON | C77: 3994.85 | D77: 4076.78 | E77: 3885.92 | F77: 3776.98 | G77: 3586.12 | H77: 4185.72 | I77: 4376.58 | J77: 4485.52 | K77: 4267.65 | L77: 3967.85 | M77: 14.59355
A78: 69 | B78: LALPATHLAB | C78: 2490.6 | D78: 2527.08 | E78: 2443.52 | F78: 2396.43 | G78: 2312.87 | H78: 2574.17 | I78: 2657.73 | J78: 2704.82 | K78: 2610.65 | L78: 2480 | M78: 2.84783
A79: 70 | B79: DRREDDY | C79: 4123.9 | D79: 4113.05 | E79: 4080.85 | F79: 4037.80 | G79: 4005.60 | H79: 4156.10 | I79: 4188.30 | J79: 4231.35 | K79: 4145.25 | L79: 4070 | M79: 1.8506
A80: 71 | B80: EICHERMOT | C80: 2552.5 | D80: 2566.93 | E80: 2507.12 | F80: 2461.73 | G80: 2401.92 | H80: 2612.32 | I80: 2672.13 | J80: 2717.52 | K80: 2626.75 | L80: 2521.55 | M80: 4.97152
A81: 72 | B81: EMAMILTD | C81: 490.4 | D81: 488.78 | E81: 484.27 | F81: 478.13 | G81: 473.62 | H81: 494.92 | I81: 499.43 | J81: 505.57 | K81: 493.3 | L81: 482.65 | M81: 2.56314
A82: 73 | B82: ENDURANCE | C82: 1231.65 | D82: 1222.10 | E82: 1196.20 | F82: 1160.75 | G82: 1134.85 | H82: 1257.55 | I82: 1283.45 | J82: 1318.90 | K82: 1248 | L82: 1186.65 | M82: 1.6046
A83: 74 | B83: ESCORTS | C83: 1577 | D83: 1591.25 | E83: 1551.25 | F83: 1525.50 | G83: 1485.50 | H83: 1617.00 | I83: 1657.00 | J83: 1682.75 | K83: 1631.25 | L83: 1565.5 | M83: 25.86739
A84: 75 | B84: EXIDEIND | C84: 151.55 | D84: 151.50 | E84: 150.25 | F84: 148.95 | G84: 147.70 | H84: 152.80 | I84: 154.05 | J84: 155.35 | K84: 152.75 | L84: 150.2 | M84: 14.60717
A85: 76 | B85: FEDERALBNK | C85: 94.55 | D85: 94.87 | E85: 93.18 | F85: 91.82 | G85: 90.13 | H85: 96.23 | I85: 97.92 | J85: 99.28 | K85: 96.55 | L85: 93.5 | M85: 95.17127
A86: 77 | B86: FORTIS | C86: 264.05 | D86: 265.12 | E86: 261.48 | F86: 258.92 | G86: 255.28 | H86: 267.68 | I86: 271.32 | J86: 273.88 | K86: 268.75 | L86: 262.55 | M86: 4.3466
A87: 78 | B87: GAIL | C87: 157.55 | D87: 157.93 | E87: 156.22 | F87: 154.88 | G87: 153.17 | H87: 159.27 | I87: 160.98 | J87: 162.32 | K87: 159.65 | L87: 156.6 | M87: 62.04947
A88: 79 | B88: GMRINFRA | C88: 37.75 | D88: 37.50 | E88: 36.90 | F88: 36.05 | G88: 35.45 | H88: 38.35 | I88: 38.95 | J88: 39.80 | K88: 38.1 | L88: 36.65 | M88: 65.56068
A89: 80 | B89: GLAND | C89: 3205.05 | D89: 3212.83 | E89: 3185.72 | F89: 3166.38 | G89: 3139.27 | H89: 3232.17 | I89: 3259.28 | J89: 3278.62 | K89: 3239.95 | L89: 3193.5 | M89: 1.05016
A90: 81 | B90: GLENMARK | C90: 437.45 | D90: 434.98 | E90: 430.77 | F90: 424.08 | G90: 419.87 | H90: 441.67 | I90: 445.88 | J90: 452.57 | K90: 439.2 | L90: 428.3 | M90: 5.16075
A91: 82 | B91: GODREJCP | C91: 771.85 | D91: 777.30 | E91: 762.55 | F91: 753.25 | G91: 738.50 | H91: 786.60 | I91: 801.35 | J91: 810.65 | K91: 792.05 | L91: 768 | M91: 9.22151
A92: 83 | B92: GODREJIND | C92: 486.65 | D92: 486.48 | E92: 480.17 | F92: 473.68 | G92: 467.37 | H92: 492.97 | I92: 499.28 | J92: 505.77 | K92: 492.8 | L92: 480 | M92: 0.95002
A93: 84 | B93: GODREJPROP | C93: 1615.75 | D93: 1596.60 | E93: 1563.20 | F93: 1510.65 | G93: 1477.25 | H93: 1649.15 | I93: 1682.55 | J93: 1735.10 | K93: 1630 | L93: 1544.05 | M93: 9.89562
A94: 85 | B94: GRASIM | C94: 1679.55 | D94: 1675.23 | E94: 1661.52 | F94: 1643.48 | G94: 1629.77 | H94: 1693.27 | I94: 1706.98 | J94: 1725.02 | K94: 1688.95 | L94: 1657.2 | M94: 4.37101
A95: 86 | B95: GUJGASLTD | C95: 495.9 | D95: 490.97 | E95: 484.93 | F95: 473.97 | G95: 467.93 | H95: 501.93 | I95: 507.97 | J95: 518.93 | K95: 497 | L95: 480 | M95: 19.96495
A96: 87 | B96: GSPL | C96: 265.15 | D96: 263.87 | E96: 260.38 | F96: 255.62 | G96: 252.13 | H96: 268.63 | I96: 272.12 | J96: 276.88 | K96: 267.35 | L96: 259.1 | M96: 4.88032
A97: 88 | B97: HCLTECH | C97: 1066.9 | D97: 1070.30 | E97: 1058.60 | F97: 1050.30 | G97: 1038.60 | H97: 1078.60 | I97: 1090.30 | J97: 1098.60 | K97: 1082 | L97: 1062 | M97: 25.84604
A98: 89 | B98: HDFCAMC | C98: 2028.8 | D98: 2025.53 | E98: 2012.27 | F98: 1995.73 | G98: 1982.47 | H98: 2042.07 | I98: 2055.33 | J98: 2071.87 | K98: 2038.8 | L98: 2009 | M98: 2.14189
A99: 90 | B99: HDFCBANK | C99: 1403.7 | D99: 1390.73 | E99: 1375.02 | F99: 1346.33 | G99: 1330.62 | H99: 1419.42 | I99: 1435.13 | J99: 1463.82 | K99: 1406.45 | L99: 1362.05 | M99: 97.47158
A100: 91 | B100: HDFCLIFE | C100: 579.85 | D100: 580.10 | E100: 574.45 | F100: 569.05 | G100: 563.40 | H100: 585.50 | I100: 591.15 | J100: 596.55 | K100: 585.75 | L100: 574.7 | M100: 30.25011
A101: 92 | B101: HAVELLS | C101: 1289.85 | D101: 1294.53 | E101: 1278.17 | F101: 1266.48 | G101: 1250.12 | H101: 1306.22 | I101: 1322.58 | J101: 1334.27 | K101: 1310.9 | L101: 1282.85 | M101: 7.82353
A102: 93 | B102: HEROMOTOCO | C102: 2487.3 | D102: 2480.33 | E102: 2455.07 | F102: 2422.83 | G102: 2397.57 | H102: 2512.57 | I102: 2537.83 | J102: 2570.07 | K102: 2505.6 | L102: 2448.1 | M102: 6.67551
A103: 94 | B103: HINDALCO | C103: 484.4 | D103: 479.97 | E103: 473.93 | F103: 463.47 | G103: 457.43 | H103: 490.43 | I103: 496.47 | J103: 506.93 | K103: 486 | L103: 469.5 | M103: 146.25673
A104: 95 | B104: HAL | C104: 1575.2 | D104: 1583.65 | E104: 1560.20 | F104: 1545.20 | G104: 1521.75 | H104: 1598.65 | I104: 1622.10 | J104: 1637.10 | K104: 1607.1 | L104: 1568.65 | M104: 5.80754
A105: 96 | B105: HINDCOPPER | C105: 112.8 | D105: 111.97 | E105: 110.93 | F105: 109.07 | G105: 108.03 | H105: 113.83 | I105: 114.87 | J105: 116.73 | K105: 113 | L105: 110.1 | M105: 22.62626
A106: 97 | B106: HINDPETRO | C106: 272.4 | D106: 270.98 | E106: 268.72 | F106: 265.03 | G106: 262.77 | H106: 274.67 | I106: 276.93 | J106: 280.62 | K106: 273.25 | L106: 267.3 | M106: 31.22625
A107: 98 | B107: HINDUNILVR | C107: 2230.5 | D107: 2229.47 | E107: 2206.93 | F107: 2183.37 | G107: 2160.83 | H107: 2253.03 | I107: 2275.57 | J107: 2299.13 | K107: 2252 | L107: 2205.9 | M107: 15.43544
A108: 99 | B108: HINDZINC | C108: 323.35 | D108: 322.73 | E108: 316.67 | F108: 309.98 | G108: 303.92 | H108: 329.42 | I108: 335.48 | J108: 342.17 | K108: 328.8 | L108: 316.05 | M108: 6.99894
A109: 100 | B109: HDFC | C109: 2264 | D109: 2239.33 | E109: 2208.67 | F109: 2153.33 | G109: 2122.67 | H109: 2294.67 | I109: 2325.33 | J109: 2380.67 | K109: 2270 | L109: 2184 | M109: 38.78583
A110: 101 | B110: ICICIBANK | C110: 741 | D110: 738.63 | E110: 733.47 | F110: 725.93 | G110: 720.77 | H110: 746.17 | I110: 751.33 | J110: 758.87 | K110: 743.8 | L110: 731.1 | M110: 109.03446
A111: 102 | B111: ICICIGI | C111: 1283.9 | D111: 1274.73 | E111: 1261.17 | F111: 1238.43 | G111: 1224.87 | H111: 1297.47 | I111: 1311.03 | J111: 1333.77 | K111: 1288.3 | L111: 1252 | M111: 3.78864
A112: 103 | B112: ICICIPRULI | C112: 518.9 | D112: 520.63 | E112: 512.87 | F112: 506.83 | G112: 499.07 | H112: 526.67 | I112: 534.43 | J112: 540.47 | K112: 528.4 | L112: 514.6 | M112: 9.15849
A113: 104 | B113: ISEC | C113: 540.15 | D113: 544.57 | E113: 528.83 | F113: 517.52 | G113: 501.78 | H113: 555.88 | I113: 571.62 | J113: 582.93 | K113: 560.3 | L113: 533.25 | M113: 5.31089
A114: 105 | B114: IDFCFIRSTB | C114: 38.85 | D114: 39.27 | E114: 37.88 | F114: 36.92 | G114: 35.53 | H114: 40.23 | I114: 41.62 | J114: 42.58 | K114: 40.65 | L114: 38.3 | M114: 535.1958
A115: 106 | B115: ITC | C115: 263.15 | D115: 261.57 | E115: 258.63 | F115: 254.12 | G115: 251.18 | H115: 266.08 | I115: 269.02 | J115: 273.53 | K115: 264.5 | L115: 257.05 | M115: 189.6582
A116: 107 | B116: INDIAMART | C116: 4877.25 | D116: 4865.77 | E116: 4811.53 | F116: 4745.82 | G116: 4691.58 | H116: 4931.48 | I116: 4985.72 | J116: 5051.43 | K116: 4920 | L116: 4800.05 | M116: 1.00824
A117: 108 | B117: INDIANB | C117: 160.9 | D117: 160.23 | E117: 158.92 | F117: 156.93 | G117: 155.62 | H117: 162.22 | I117: 163.53 | J117: 165.52 | K117: 161.55 | L117: 158.25 | M117: 7.0529
A118: 109 | B118: INDHOTEL | C118: 261.7 | D118: 260.07 | E118: 254.63 | F118: 247.57 | G118: 242.13 | H118: 267.13 | I118: 272.57 | J118: 279.63 | K118: 265.5 | L118: 253 | M118: 149.27385
A119: 110 | B119: IOC | C119: 126.65 | D119: 125.98 | E119: 124.67 | F119: 122.68 | G119: 121.37 | H119: 127.97 | I119: 129.28 | J119: 131.27 | K119: 127.3 | L119: 124 | M119: 57.49158
A120: 111 | B120: IRCTC | C120: 737.5 | D120: 736.78 | E120: 730.87 | F120: 724.23 | G120: 718.32 | H120: 743.42 | I120: 749.33 | J120: 755.97 | K120: 742.7 | L120: 730.15 | M120: 12.9917
A121: 112 | B121: IRFC | C121: 22.25 | D121: 22.23 | E121: 22.17 | F121: 22.08 | G121: 22.02 | H121: 22.32 | I121: 22.38 | J121: 22.47 | K121: 22.3 | L121: 22.15 | M121: 55.74697
A122: 113 | B122: IGL | C122: 350.3 | D122: 350.37 | E122: 345.23 | F122: 340.17 | G122: 335.03 | H122: 355.43 | I122: 360.57 | J122: 365.63 | K122: 355.5 | L122: 345.3 | M122: 28.12859
A123: 114 | B123: INDUSTOWER | C123: 204.2 | D123: 205.60 | E123: 202.35 | F123: 200.50 | G123: 197.25 | H123: 207.45 | I123: 210.70 | J123: 212.55 | K123: 208.85 | L123: 203.75 | M123: 21.42059
A124: 115 | B124: INDUSINDBK | C124: 1018.1 | D124: 1003.52 | E124: 981.03 | F124: 943.97 | G124: 921.48 | H124: 1040.58 | I124: 1063.07 | J124: 1100.13 | K124: 1026 | L124: 966.45 | M124: 89.62019
A125: 116 | B125: NAUKRI | C125: 4530.05 | D125: 4571.37 | E125: 4459.98 | F125: 4389.92 | G125: 4278.53 | H125: 4641.43 | I125: 4752.82 | J125: 4822.88 | K125: 4682.75 | L125: 4501.3 | M125: 2.55911
A126: 117 | B126: INFY | C126: 1541 | D126: 1541.58 | E126: 1530.42 | F126: 1519.83 | G126: 1508.67 | H126: 1552.17 | I126: 1563.33 | J126: 1573.92 | K126: 1552.75 | L126: 1531 | M126: 70.72627
A127: 118 | B127: INDIGO | C127: 1866.85 | D127: 1853.58 | E127: 1832.17 | F127: 1797.48 | G127: 1776.07 | H127: 1888.27 | I127: 1909.68 | J127: 1944.37 | K127: 1875 | L127: 1818.9 | M127: 2.71403
A128: 119 | B128: IPCALAB | C128: 1010.4 | D128: 1009.03 | E128: 1000.37 | F128: 990.33 | G128: 981.67 | H128: 1019.07 | I128: 1027.73 | J128: 1037.77 | K128: 1017.7 | L128: 999 | M128: 0.98194
A129: 120 | B129: JSWENERGY | C129: 304.95 | D129: 307.20 | E129: 299.55 | F129: 294.15 | G129: 286.50 | H129: 312.60 | I129: 320.25 | J129: 325.65 | K129: 314.85 | L129: 301.8 | M129: 10.30502
A130: 121 | B130: JSWSTEEL | C130: 731.95 | D130: 725.07 | E130: 715.93 | F130: 699.92 | G130: 690.78 | H130: 741.08 | I130: 750.22 | J130: 766.23 | K130: 734.2 | L130: 709.05 | M130: 28.02163
A131: 122 | B131: JINDALSTEL | C131: 532.85 | D131: 530.83 | E131: 522.27 | F131: 511.68 | G131: 503.12 | H131: 541.42 | I131: 549.98 | J131: 560.57 | K131: 539.4 | L131: 520.25 | M131: 39.66334
A132: 123 | B132: JUBLFOOD | C132: 547.25 | D132: 542.08 | E132: 534.17 | F132: 521.08 | G132: 513.17 | H132: 555.17 | I132: 563.08 | J132: 576.17 | K132: 550 | L132: 529 | M132: 34.30114
A133: 124 | B133: KOTAKBANK | C133: 1774.35 | D133: 1768.28 | E133: 1756.12 | F133: 1737.88 | G133: 1725.72 | H133: 1786.52 | I133: 1798.68 | J133: 1816.92 | K133: 1780.45 | L133: 1750.05 | M133: 19.79466
A134: 125 | B134: L&TFH | C134: 84.7 | D134: 84.95 | E134: 82.60 | F134: 80.50 | G134: 78.15 | H134: 87.05 | I134: 89.40 | J134: 91.50 | K134: 87.3 | L134: 82.85 | M134: 192.13078
A135: 126 | B135: LTTS | C135: 3943.8 | D135: 3959.53 | E135: 3874.27 | F135: 3804.73 | G135: 3719.47 | H135: 4029.07 | I135: 4114.33 | J135: 4183.87 | K135: 4044.8 | L135: 3890 | M135: 3.55318
A136: 127 | B136: LICHSGFIN | C136: 389.35 | D136: 385.23 | E136: 378.77 | F136: 368.18 | G136: 361.72 | H136: 395.82 | I136: 402.28 | J136: 412.87 | K136: 391.7 | L136: 374.65 | M136: 25.61277
A137: 128 | B137: LTI | C137: 4716.65 | D137: 4728.88 | E137: 4657.77 | F137: 4598.88 | G137: 4527.77 | H137: 4787.77 | I137: 4858.88 | J137: 4917.77 | K137: 4800 | L137: 4670 | M137: 4.1449
A138: 129 | B138: LT | C138: 1679.45 | D138: 1673.48 | E138: 1661.02 | F138: 1642.58 | G138: 1630.12 | H138: 1691.92 | I138: 1704.38 | J138: 1722.82 | K138: 1685.95 | L138: 1655.05 | M138: 13.99802
A139: 130 | B139: LAURUSLABS | C139: 593.35 | D139: 590.75 | E139: 579.55 | F139: 565.75 | G139: 554.55 | H139: 604.55 | I139: 615.75 | J139: 629.55 | K139: 601.95 | L139: 576.95 | M139: 30.04844
A140: 131 | B140: LUPIN | C140: 741.85 | D140: 745.18 | E140: 730.37 | F140: 718.88 | G140: 704.07 | H140: 756.67 | I140: 771.48 | J140: 782.97 | K140: 760 | L140: 733.7 | M140: 4.74601
A141: 132 | B141: MRF | C141: 72597.5 | D141: 72408.67 | E141: 71967.33 | F141: 71337.17 | G141: 70895.83 | H141: 73038.83 | I141: 73480.17 | J141: 74110.33 | K141: 72850 | L141: 71778.5 | M141: 0.05432
A142: 133 | B142: MGL | C142: 771.4 | D142: 767.58 | E142: 760.32 | F142: 749.23 | G142: 741.97 | H142: 778.67 | I142: 785.93 | J142: 797.02 | K142: 774.85 | L142: 756.5 | M142: 4.1097
A143: 134 | B143: M&MFIN | C143: 182 | D143: 181.18 | E143: 176.82 | F143: 171.63 | G143: 167.27 | H143: 186.37 | I143: 190.73 | J143: 195.92 | K143: 185.55 | L143: 176 | M143: 64.92185
A144: 135 | B144: M&M | C144: 921.35 | D144: 921.58 | E144: 909.47 | F144: 897.58 | G144: 885.47 | H144: 933.47 | I144: 945.58 | J144: 957.47 | K144: 933.7 | L144: 909.7 | M144: 27.40823
A145: 136 | B145: MANAPPURAM | C145: 114.35 | D145: 113.83 | E145: 112.92 | F145: 111.48 | G145: 110.57 | H145: 115.27 | I145: 116.18 | J145: 117.62 | K145: 114.75 | L145: 112.4 | M145: 22.98229
A146: 137 | B146: MARICO | C146: 522.9 | D146: 521.38 | E146: 516.77 | F146: 510.63 | G146: 506.02 | H146: 527.52 | I146: 532.13 | J146: 538.27 | K146: 526 | L146: 515.25 | M146: 9.23844
A147: 138 | B147: MARUTI | C147: 7634.75 | D147: 7643.02 | E147: 7536.03 | F147: 7437.32 | G147: 7330.33 | H147: 7741.73 | I147: 7848.72 | J147: 7947.43 | K147: 7750 | L147: 7544.3 | M147: 5.44053
A148: 139 | B148: MFSL | C148: 734.6 | D148: 739.22 | E148: 727.68 | F148: 720.77 | G148: 709.23 | H148: 746.13 | I148: 757.67 | J148: 764.58 | K148: 750.75 | L148: 732.3 | M148: 2.71279
A149: 140 | B149: MINDTREE | C149: 3480 | D149: 3469.02 | E149: 3418.03 | F149: 3356.07 | G149: 3305.08 | H149: 3530.98 | I149: 3581.97 | J149: 3643.93 | K149: 3520 | L149: 3407.05 | M149: 7.86602
A150: 141 | B150: MPHASIS | C150: 2740.1 | D150: 2764.38 | E150: 2705.77 | F150: 2671.43 | G150: 2612.82 | H150: 2798.72 | I150: 2857.33 | J150: 2891.67 | K150: 2823 | L150: 2730.05 | M150: 2.82493
A151: 142 | B151: MUTHOOTFIN | C151: 1273.65 | D151: 1266.30 | E151: 1255.90 | F151: 1238.15 | G151: 1227.75 | H151: 1284.05 | I151: 1294.45 | J151: 1312.20 | K151: 1276.7 | L151: 1248.55 | M151: 2.72103
A152: 143 | B152: NATCOPHARM | C152: 786.75 | D152: 788.08 | E152: 773.87 | F152: 760.98 | G152: 746.77 | H152: 800.97 | I152: 815.18 | J152: 828.07 | K152: 802.3 | L152: 775.2 | M152: 0.89325
A153: 144 | B153: NMDC | C153: 160.35 | D153: 159.70 | E153: 158.20 | F153: 156.05 | G153: 154.55 | H153: 161.85 | I153: 163.35 | J153: 165.50 | K153: 161.2 | L153: 157.55 | M153: 42.02666
A154: 145 | B154: NTPC | C154: 157.5 | D154: 156.28 | E154: 154.22 | F154: 150.93 | G154: 148.87 | H154: 159.57 | I154: 161.63 | J154: 164.92 | K154: 158.35 | L154: 153 | M154: 133.68198
A155: 146 | B155: NATIONALUM | C155: 106.45 | D155: 105.48 | E155: 104.22 | F155: 101.98 | G155: 100.72 | H155: 107.72 | I155: 108.98 | J155: 111.22 | K155: 106.75 | L155: 103.25 | M155: 142.64215
A156: 147 | B156: NAVINFLUOR | C156: 3919.4 | D156: 3903.17 | E156: 3869.28 | F156: 3819.17 | G156: 3785.28 | H156: 3953.28 | I156: 3987.17 | J156: 4037.28 | K156: 3937.05 | L156: 3853.05 | M156: 0.54298
A157: 148 | B157: NESTLEIND | C157: 18440.55 | D157: 18376.85 | E157: 18273.70 | F157: 18106.85 | G157: 18003.70 | H157: 18543.70 | I157: 18646.85 | J157: 18813.70 | K157: 18480 | L157: 18210 | M157: 0.41597
A158: 149 | B158: NAM-INDIA | C158: 311.35 | D158: 313.02 | E158: 308.08 | F158: 304.82 | G158: 299.88 | H158: 316.28 | I158: 321.22 | J158: 324.48 | K158: 317.95 | L158: 309.75 | M158: 6.12204
A159: 150 | B159: OBEROIRLTY | C159: 948.95 | D159: 950.65 | E159: 939.30 | F159: 929.65 | G159: 918.30 | H159: 960.30 | I159: 971.65 | J159: 981.30 | K159: 962 | L159: 941 | M159: 3.71226
A160: 151 | B160: ONGC | C160: 156.35 | D160: 157.17 | E160: 155.08 | F160: 153.82 | G160: 151.73 | H160: 158.43 | I160: 160.52 | J160: 161.78 | K160: 159.25 | L160: 155.9 | M160: 234.05519
A161: 152 | B161: OIL | C161: 219.7 | D161: 222.77 | E161: 216.03 | F161: 212.37 | G161: 205.63 | H161: 226.43 | I161: 233.17 | J161: 236.83 | K161: 229.5 | L161: 219.1 | M161: 14.14628
A162: 153 | B162: PIIND | C162: 2866.4 | D162: 2854.62 | E162: 2834.38 | F162: 2802.37 | G162: 2782.13 | H162: 2886.63 | I162: 2906.87 | J162: 2938.88 | K162: 2874.85 | L162: 2822.6 | M162: 1.10519
A163: 154 | B163: PAGEIND | C163: 45595.45 | D163: 45461.43 | E163: 45134.02 | F163: 44672.58 | G163: 44345.17 | H163: 45922.87 | I163: 46250.28 | J163: 46711.72 | K163: 45788.85 | L163: 45000 | M163: 0.17293
A164: 155 | B164: PETRONET | C164: 208.05 | D164: 206.38 | E164: 203.57 | F164: 199.08 | G164: 196.27 | H164: 210.87 | I164: 213.68 | J164: 218.17 | K164: 209.2 | L164: 201.9 | M164: 30.35954
A165: 156 | B165: PFIZER | C165: 4373.9 | D165: 4359.60 | E165: 4320.20 | F165: 4266.50 | G165: 4227.10 | H165: 4413.30 | I165: 4452.70 | J165: 4506.40 | K165: 4399 | L165: 4305.9 | M165: 0.12912
A166: 157 | B166: PIDILITIND | C166: 2424.1 | D166: 2417.52 | E166: 2404.18 | F166: 2384.27 | G166: 2370.93 | H166: 2437.43 | I166: 2450.77 | J166: 2470.68 | K166: 2430.85 | L166: 2397.6 | M166: 1.81102
A167: 158 | B167: PEL | C167: 2129.8 | D167: 2131.58 | E167: 2110.22 | F167: 2090.63 | G167: 2069.27 | H167: 2151.17 | I167: 2172.53 | J167: 2192.12 | K167: 2152.95 | L167: 2112 | M167: 2.5154
A168: 159 | B168: POLYCAB | C168: 2467.25 | D168: 2472.43 | E168: 2439.87 | F168: 2412.48 | G168: 2379.92 | H168: 2499.82 | I168: 2532.38 | J168: 2559.77 | K168: 2505 | L168: 2445.05 | M168: 1.73852
A169: 160 | B169: PFC | C169: 116.85 | D169: 116.72 | E169: 116.03 | F169: 115.22 | G169: 114.53 | H169: 117.53 | I169: 118.22 | J169: 119.03 | K169: 117.4 | L169: 115.9 | M169: 23.34609
A170: 161 | B170: POWERGRID | C170: 231.55 | D170: 230.23 | E170: 227.22 | F170: 222.88 | G170: 219.87 | H170: 234.57 | I170: 237.58 | J170: 241.92 | K170: 233.25 | L170: 225.9 | M170: 94.75765
A171: 162 | B171: PRESTIGE | C171: 479.35 | D171: 475.13 | E171: 468.52 | F171: 457.68 | G171: 451.07 | H171: 485.97 | I171: 492.58 | J171: 503.42 | K171: 481.75 | L171: 464.3 | M171: 3.25126
A172: 163 | B172: PGHH | C172: 13790.85 | D172: 13890.73 | E172: 13553.47 | F172: 13316.08 | G172: 12978.82 | H172: 14128.12 | I172: 14465.38 | J172: 14702.77 | K172: 14228 | L172: 13653.35 | M172: 0.08356
A173: 164 | B173: PNB | C173: 35.05 | D173: 34.97 | E173: 34.73 | F173: 34.42 | G173: 34.18 | H173: 35.28 | I173: 35.52 | J173: 35.83 | K173: 35.2 | L173: 34.65 | M173: 208.22885
A174: 165 | B174: RBLBANK | C174: 117.25 | D174: 117.93 | E174: 115.87 | F174: 114.48 | G174: 112.42 | H174: 119.32 | I174: 121.38 | J174: 122.77 | K174: 120 | L174: 116.55 | M174: 101.67792
A175: 166 | B175: RECLTD | C175: 126.5 | D175: 126.20 | E175: 125.45 | F175: 124.40 | G175: 123.65 | H175: 127.25 | I175: 128.00 | J175: 129.05 | K175: 126.95 | L175: 125.15 | M175: 15.89097
A176: 167 | B176: RELIANCE | C176: 2780.45 | D176: 2781.33 | E176: 2757.17 | F176: 2733.88 | G176: 2709.72 | H176: 2804.62 | I176: 2828.78 | J176: 2852.07 | K176: 2805.5 | L176: 2758.05 | M176: 43.69022
A177: 168 | B177: SBICARD | C177: 820.15 | D177: 820.08 | E177: 805.27 | F177: 790.38 | G177: 775.57 | H177: 834.97 | I177: 849.78 | J177: 864.67 | K177: 834.9 | L177: 805.2 | M177: 35.77848
A178: 169 | B178: SBILIFE | C178: 1081.05 | D178: 1079.55 | E178: 1065.70 | F178: 1050.35 | G178: 1036.50 | H178: 1094.90 | I178: 1108.75 | J178: 1124.10 | K178: 1093.4 | L178: 1064.2 | M178: 19.25857
A179: 170 | B179: SRF | C179: 2504.8 | D179: 2494.83 | E179: 2477.02 | F179: 2449.23 | G179: 2431.42 | H179: 2522.62 | I179: 2540.43 | J179: 2568.22 | K179: 2512.65 | L179: 2467.05 | M179: 2.22731
A180: 171 | B180: SANOFI | C180: 6940.7 | D180: 6953.90 | E180: 6897.80 | F180: 6854.90 | G180: 6798.80 | H180: 6996.80 | I180: 7052.90 | J180: 7095.80 | K180: 7010 | L180: 6911 | M180: 0.17342
A181: 172 | B181: SHREECEM | C181: 26230.2 | D181: 26038.80 | E181: 25792.85 | F181: 25355.50 | G181: 25109.55 | H181: 26476.15 | I181: 26722.10 | J181: 27159.45 | K181: 26284.75 | L181: 25601.45 | M181: 0.33592
A182: 173 | B182: SRTRANSFIN | C182: 1230.25 | D182: 1217.40 | E182: 1197.80 | F182: 1165.35 | G182: 1145.75 | H182: 1249.85 | I182: 1269.45 | J182: 1301.90 | K182: 1237 | L182: 1184.95 | M182: 19.98919
A183: 174 | B183: SIEMENS | C183: 2247.1 | D183: 2245.12 | E183: 2215.98 | F183: 2184.87 | G183: 2155.73 | H183: 2276.23 | I183: 2305.37 | J183: 2336.48 | K183: 2274.25 | L183: 2214 | M183: 3.4405
A184: 175 | B184: SBIN | C184: 491 | D184: 489.10 | E184: 483.20 | F184: 475.40 | G184: 469.50 | H184: 496.90 | I184: 502.80 | J184: 510.60 | K184: 495 | L184: 481.3 | M184: 185.90895
A185: 176 | B185: SAIL | C185: 96.85 | D185: 96.15 | E185: 95.15 | F185: 93.45 | G185: 92.45 | H185: 97.85 | I185: 98.85 | J185: 100.55 | K185: 97.15 | L185: 94.45 | M185: 229.31138
A186: 177 | B186: SUNPHARMA | C186: 923.4 | D186: 916.98 | E186: 908.97 | F186: 894.53 | G186: 886.52 | H186: 931.42 | I186: 939.43 | J186: 953.87 | K186: 925 | L186: 902.55 | M186: 21.19174
A187: 178 | B187: SUNTV | C187: 481.4 | D187: 480.20 | E187: 476.80 | F187: 472.20 | G187: 468.80 | H187: 484.80 | I187: 488.20 | J187: 492.80 | K187: 483.6 | L187: 475.6 | M187: 5.02602
A188: 179 | B188: SYNGENE | C188: 620.15 | D188: 623.25 | E188: 613.50 | F188: 606.85 | G188: 597.10 | H188: 629.90 | I188: 639.65 | J188: 646.30 | K188: 633 | L188: 616.6 | M188: 1.97055
A189: 180 | B189: TVSMOTOR | C189: 649.05 | D189: 650.60 | E189: 641.50 | F189: 633.95 | G189: 624.85 | H189: 658.15 | I189: 667.25 | J189: 674.80 | K189: 659.7 | L189: 643.05 | M189: 8.53787
A190: 181 | B190: TATACHEM | C190: 1033 | D190: 1017.00 | E190: 986.00 | F190: 939.00 | G190: 908.00 | H190: 1064.00 | I190: 1095.00 | J190: 1142.00 | K190: 1048 | L190: 970 | M190: 135.62497
A191: 182 | B191: TATACOMM | C191: 1083.5 | D191: 1074.65 | E191: 1057.25 | F191: 1031.00 | G191: 1013.60 | H191: 1100.90 | I191: 1118.30 | J191: 1144.55 | K191: 1092.05 | L191: 1048.4 | M191: 5.69417
A192: 183 | B192: TCS | C192: 3542.4 | D192: 3527.70 | E192: 3507.45 | F192: 3472.50 | G192: 3452.25 | H192: 3562.65 | I192: 3582.90 | J192: 3617.85 | K192: 3547.95 | L192: 3492.75 | M192: 13.24161
A193: 184 | B193: TATACONSUM | C193: 824.4 | D193: 821.02 | E193: 813.38 | F193: 802.37 | G193: 794.73 | H193: 832.03 | I193: 839.67 | J193: 850.68 | K193: 828.65 | L193: 810 | M193: 14.39813
A194: 185 | B194: TATAELXSI | C194: 7672.25 | D194: 7673.60 | E194: 7529.65 | F194: 7387.05 | G194: 7243.10 | H194: 7816.20 | I194: 7960.15 | J194: 8102.75 | K194: 7817.55 | L194: 7531 | M194: 4.1779
A195: 186 | B195: TATAMOTORS | C195: 432.85 | D195: 434.77 | E195: 426.58 | F195: 420.32 | G195: 412.13 | H195: 441.03 | I195: 449.22 | J195: 455.48 | K195: 442.95 | L195: 428.5 | M195: 189.45234
A196: 187 | B196: TATAPOWER | C196: 248.5 | D196: 245.52 | E196: 241.38 | F196: 234.27 | G196: 230.13 | H196: 252.63 | I196: 256.77 | J196: 263.88 | K196: 249.65 | L196: 238.4 | M196: 265.35475
A197: 188 | B197: TATASTEEL | C197: 1295.2 | D197: 1282.23 | E197: 1261.72 | F197: 1228.23 | G197: 1207.72 | H197: 1315.72 | I197: 1336.23 | J197: 1369.72 | K197: 1302.75 | L197: 1248.75 | M197: 54.42617
A198: 189 | B198: TECHM | C198: 1231.2 | D198: 1234.80 | E198: 1220.60 | F198: 1210.00 | G198: 1195.80 | H198: 1245.40 | I198: 1259.60 | J198: 1270.20 | K198: 1249 | L198: 1224.2 | M198: 21.49957
A199: 190 | B199: RAMCOCEM | C199: 787.05 | D199: 784.87 | E199: 776.48 | F199: 765.92 | G199: 757.53 | H199: 795.43 | I199: 803.82 | J199: 814.38 | K199: 793.25 | L199: 774.3 | M199: 2.02478
A200: 191 | B200: TITAN | C200: 2386.55 | D200: 2398.63 | E200: 2360.27 | F200: 2333.98 | G200: 2295.62 | H200: 2424.92 | I200: 2463.28 | J200: 2489.57 | K200: 2437 | L200: 2372.35 | M200: 12.87401
A201: 192 | B201: TORNTPHARM | C201: 2792.5 | D201: 2792.35 | E201: 2753.70 | F201: 2714.90 | G201: 2676.25 | H201: 2831.15 | I201: 2869.80 | J201: 2908.60 | K201: 2831 | L201: 2753.55 | M201: 0.47341
A202: 193 | B202: TORNTPOWER | C202: 536.7 | D202: 533.72 | E202: 529.23 | F202: 521.77 | G202: 517.28 | H202: 541.18 | I202: 545.67 | J202: 553.13 | K202: 538.2 | L202: 526.25 | M202: 3.27466
A203: 194 | B203: TRENT | C203: 1220.2 | D203: 1219.22 | E203: 1206.58 | F203: 1192.97 | G203: 1180.33 | H203: 1232.83 | I203: 1245.47 | J203: 1259.08 | K203: 1231.85 | L203: 1205.6 | M203: 4.88409
A204: 195 | B204: UPL | C204: 830.25 | D204: 826.88 | E204: 816.07 | F204: 801.88 | G204: 791.07 | H204: 841.07 | I204: 851.88 | J204: 866.07 | K204: 837.7 | L204: 812.7 | M204: 38.55822
A205: 196 | B205: ULTRACEMCO | C205: 6679 | D205: 6650.63 | E205: 6571.27 | F205: 6463.53 | G205: 6384.17 | H205: 6758.37 | I205: 6837.73 | J205: 6945.47 | K205: 6730 | L205: 6542.9 | M205: 3.29548
... 29 more rows

Sheet MidCap Intra
L5: Back To Main Page
A6: FOR INTRA DAY TRADING | K6: =Main!B10 -> 2022-05-04
A9: Sr.no | B9: Scrip | C9: CLOSE RATE | D9: Pivot Point | E9: Supports | H9: Resistances
E10: S1 | F10: S2 | G10: S3 | H10: R1 | I10: R2 | J10: R3 | K10: HIGH | L10: LOW | M10: Total Trade Quanity in Lakhs
A11: 1 | B11: 3MINDIA | C11: 19831.1 | D11: 19844.03 | E11: 19587.07 | F11: 19343.03 | G11: 19086.07 | H11: 20088.07 | I11: 20345.03 | J11: 20589.07 | K11: 20101 | L11: 19600 | M11: 0.05191
A12: 2 | B12: AARTIDRUGS | C12: 457.25 | D12: 455.95 | E12: 451.90 | F12: 446.55 | G12: 442.50 | H12: 461.30 | I12: 465.35 | J12: 470.70 | K12: 460 | L12: 450.6 | M12: 0.53806
A13: 3 | B13: AARTIIND | C13: 847.65 | D13: 856.02 | E13: 830.18 | F13: 812.72 | G13: 786.88 | H13: 873.48 | I13: 899.32 | J13: 916.78 | K13: 881.85 | L13: 838.55 | M13: 13.11997
A14: 4 | B14: AAVAS | C14: 2289.4 | D14: 2278.13 | E14: 2261.27 | F14: 2233.13 | G14: 2216.27 | H14: 2306.27 | I14: 2323.13 | J14: 2351.27 | K14: 2295 | L14: 2250 | M14: 0.31684
A15: 5 | B15: ABB | C15: 2051.35 | D15: 2063.10 | E15: 2029.70 | F15: 2008.05 | G15: 1974.65 | H15: 2084.75 | I15: 2118.15 | J15: 2139.80 | K15: 2096.5 | L15: 2041.45 | M15: 0.48561
A16: 6 | B16: ABBOTINDIA | C16: 17081.55 | D16: 17042.63 | E16: 16885.32 | F16: 16689.08 | G16: 16531.77 | H16: 17238.87 | I16: 17396.18 | J16: 17592.42 | K16: 17199.95 | L16: 16846.4 | M16: 0.08825
A17: 7 | B17: ABCAPITAL | C17: 116.95 | D17: 117.32 | E17: 115.18 | F17: 113.42 | G17: 111.28 | H17: 119.08 | I17: 121.22 | J17: 122.98 | K17: 119.45 | L17: 115.55 | M17: 48.44723
A18: 8 | B18: ABFRL | C18: 282.45 | D18: 282.37 | E18: 279.78 | F18: 277.12 | G18: 274.53 | H18: 285.03 | I18: 287.62 | J18: 290.28 | K18: 284.95 | L18: 279.7 | M18: 8.17211
A19: 9 | B19: ACC | C19: 2347.2 | D19: 2338.40 | E19: 2318.50 | F19: 2289.80 | G19: 2269.90 | H19: 2367.10 | I19: 2387.00 | J19: 2415.70 | K19: 2358.3 | L19: 2309.7 | M19: 4.90846
A20: 10 | B20: ADANIENT | C20: 2339.5 | D20: 2337.60 | E20: 2312.90 | F20: 2286.30 | G20: 2261.60 | H20: 2364.20 | I20: 2388.90 | J20: 2415.50 | K20: 2362.3 | L20: 2311 | M20: 10.06544
A21: 11 | B21: ADANIGREEN | C21: 2830.35 | D21: 2844.78 | E21: 2794.57 | F21: 2758.78 | G21: 2708.57 | H21: 2880.57 | I21: 2930.78 | J21: 2966.57 | K21: 2895 | L21: 2809 | M21: 3.74592
A22: 12 | B22: ADANIPORTS | C22: 856.55 | D22: 852.48 | E22: 842.12 | F22: 827.68 | G22: 817.32 | H22: 866.92 | I22: 877.28 | J22: 891.72 | K22: 862.85 | L22: 838.05 | M22: 57.60499
A23: 13 | B23: ADANITRANS | C23: 2804.45 | D23: 2779.15 | E23: 2720.30 | F23: 2636.15 | G23: 2577.30 | H23: 2863.30 | I23: 2922.15 | J23: 3006.30 | K23: 2838 | L23: 2695 | M23: 3.15168
A24: 14 | B24: ADVENZYMES | C24: 295.15 | D24: 297.00 | E24: 292.15 | F24: 289.15 | G24: 284.30 | H24: 300.00 | I24: 304.85 | J24: 307.85 | K24: 301.85 | L24: 294 | M24: 0.75464
A25: 15 | B25: AEGISCHEM | C25: 217.7 | D25: 218.52 | E25: 215.28 | F25: 212.87 | G25: 209.63 | H25: 220.93 | I25: 224.17 | J25: 226.58 | K25: 221.75 | L25: 216.1 | M25: 3.07736
A26: 16 | B26: AFFLE | C26: 1219.65 | D26: 1216.08 | E26: 1203.57 | F26: 1187.48 | G26: 1174.97 | H26: 1232.17 | I26: 1244.68 | J26: 1260.77 | K26: 1228.6 | L26: 1200 | M26: 1.43936
A27: 17 | B27: AIAENG | C27: 1941 | D27: 1960.33 | E27: 1900.67 | F27: 1860.33 | G27: 1800.67 | H27: 2000.67 | I27: 2060.33 | J27: 2100.67 | K27: 2020 | L27: 1920 | M27: 1.59963
A28: 18 | B28: AJANTPHARM | C28: 1803.15 | D28: 1795.62 | E28: 1727.53 | F28: 1651.92 | G28: 1583.83 | H28: 1871.23 | I28: 1939.32 | J28: 2014.93 | K28: 1863.7 | L28: 1720 | M28: 2.87821
A29: 19 | B29: ALEMBICLTD | C29: 77.6 | D29: 77.68 | E29: 75.97 | F29: 74.33 | G29: 72.62 | H29: 79.32 | I29: 81.03 | J29: 82.67 | K29: 79.4 | L29: 76.05 | M29: 1.56753
A30: 20 | B30: ALKEM | C30: 3272.8 | D30: 3268.63 | E30: 3223.57 | F30: 3174.33 | G30: 3129.27 | H30: 3317.87 | I30: 3362.93 | J30: 3412.17 | K30: 3313.7 | L30: 3219.4 | M30: 0.51958
A31: 21 | B31: ALKYLAMINE | C31: 3131.7 | D31: 3139.27 | E31: 3093.53 | F31: 3055.37 | G31: 3009.63 | H31: 3177.43 | I31: 3223.17 | J31: 3261.33 | K31: 3185 | L31: 3101.1 | M31: 0.27541
A32: 22 | B32: ALOKINDS | C32: 24.85 | D32: 25.10 | E32: 24.35 | F32: 23.85 | G32: 23.10 | H32: 25.60 | I32: 26.35 | J32: 26.85 | K32: 25.85 | L32: 24.6 | M32: 146.57337
A33: 23 | B33: AMARAJABAT | C33: 554.05 | D33: 555.28 | E33: 550.17 | F33: 546.28 | G33: 541.17 | H33: 559.17 | I33: 564.28 | J33: 568.17 | K33: 560.4 | L33: 551.4 | M33: 2.22903
A34: 24 | B34: AMBER | C34: 3915.5 | D34: 3875.45 | E34: 3724.95 | F34: 3534.40 | G34: 3383.90 | H34: 4066.00 | I34: 4216.50 | J34: 4407.05 | K34: 4025.95 | L34: 3684.9 | M34: 4.62379
A35: 25 | B35: AMBUJACEM | C35: 378.15 | D35: 375.80 | E35: 371.10 | F35: 364.05 | G35: 359.35 | H35: 382.85 | I35: 387.55 | J35: 394.60 | K35: 380.5 | L35: 368.75 | M35: 59.59678
A36: 26 | B36: ANGELONE | C36: 1812.7 | D36: 1849.60 | E36: 1755.10 | F36: 1697.50 | G36: 1603.00 | H36: 1907.20 | I36: 2001.70 | J36: 2059.30 | K36: 1944.1 | L36: 1792 | M36: 10.30916
A37: 27 | B37: ANURAS | C37: 843 | D37: 832.28 | E37: 814.57 | F37: 786.13 | G37: 768.42 | H37: 860.72 | I37: 878.43 | J37: 906.87 | K37: 850 | L37: 803.85 | M37: 1.42125
A38: 28 | B38: APLAPOLLO | C38: 1029 | D38: 1030.50 | E38: 1001.80 | F38: 974.60 | G38: 945.90 | H38: 1057.70 | I38: 1086.40 | J38: 1113.60 | K38: 1059.2 | L38: 1003.3 | M38: 2.39598
A39: 29 | B39: APLLTD | C39: 786.6 | D39: 779.52 | E39: 767.03 | F39: 747.47 | G39: 734.98 | H39: 799.08 | I39: 811.57 | J39: 831.13 | K39: 792 | L39: 759.95 | M39: 1.90613
A40: 30 | B40: APOLLOHOSP | C40: 4304.75 | D40: 4344.92 | E40: 4249.83 | F40: 4194.92 | G40: 4099.83 | H40: 4399.83 | I40: 4494.92 | J40: 4549.83 | K40: 4440 | L40: 4290 | M40: 5.6861
A41: 31 | B41: APOLLOTYRE | C41: 202.6 | D41: 201.70 | E41: 199.40 | F41: 196.20 | G41: 193.90 | H41: 204.90 | I41: 207.20 | J41: 210.40 | K41: 204 | L41: 198.5 | M41: 18.4262
A42: 32 | B42: ASAHIINDIA | C42: 470.15 | D42: 469.03 | E42: 459.82 | F42: 449.48 | G42: 440.27 | H42: 479.37 | I42: 488.58 | J42: 498.92 | K42: 478.25 | L42: 458.7 | M42: 2.68904
A43: 33 | B43: ASHOKA | C43: 84.9 | D43: 85.05 | E43: 84.15 | F43: 83.40 | G43: 82.50 | H43: 85.80 | I43: 86.70 | J43: 87.45 | K43: 85.95 | L43: 84.3 | M43: 4.15249
A44: 34 | B44: ASHOKLEY | C44: 126.2 | D44: 125.28 | E44: 123.12 | F44: 120.03 | G44: 117.87 | H44: 128.37 | I44: 130.53 | J44: 133.62 | K44: 127.45 | L44: 122.2 | M44: 133.62735
A45: 35 | B45: ASIANPAINT | C45: 3200 | D45: 3188.52 | E45: 3165.53 | F45: 3131.07 | G45: 3108.08 | H45: 3222.98 | I45: 3245.97 | J45: 3280.43 | K45: 3211.5 | L45: 3154.05 | M45: 5.95522
A46: 36 | B46: ASTERDM | C46: 190 | D46: 189.62 | E46: 187.23 | F46: 184.47 | G46: 182.08 | H46: 192.38 | I46: 194.77 | J46: 197.53 | K46: 192 | L46: 186.85 | M46: 2.35592
A47: 37 | B47: ASTRAL | C47: 2065.95 | D47: 2078.33 | E47: 2002.67 | F47: 1939.38 | G47: 1863.72 | H47: 2141.62 | I47: 2217.28 | J47: 2280.57 | K47: 2154 | L47: 2015.05 | M47: 5.7719
A48: 38 | B48: ASTRAZEN | C48: 2749 | D48: 2740.67 | E48: 2708.33 | F48: 2667.67 | G48: 2635.33 | H48: 2781.33 | I48: 2813.67 | J48: 2854.33 | K48: 2773 | L48: 2700 | M48: 0.05037
A49: 39 | B49: ATGL | C49: 2488.2 | D49: 2483.45 | E49: 2446.90 | F49: 2405.60 | G49: 2369.05 | H49: 2524.75 | I49: 2561.30 | J49: 2602.60 | K49: 2520 | L49: 2442.15 | M49: 3.05245
A50: 40 | B50: ATUL | C50: 8885.4 | D50: 8863.95 | E50: 8781.50 | F50: 8677.60 | G50: 8595.15 | H50: 8967.85 | I50: 9050.30 | J50: 9154.20 | K50: 8946.4 | L50: 8760.05 | M50: 0.27366
A51: 41 | B51: AUBANK | C51: 1371.1 | D51: 1372.52 | E51: 1354.63 | F51: 1338.17 | G51: 1320.28 | H51: 1388.98 | I51: 1406.87 | J51: 1423.33 | K51: 1390.4 | L51: 1356.05 | M51: 10.35462
A52: 42 | B52: AUROPHARMA | C52: 642.5 | D52: 639.98 | E52: 626.97 | F52: 611.43 | G52: 598.42 | H52: 655.52 | I52: 668.53 | J52: 684.07 | K52: 653 | L52: 624.45 | M52: 26.05546
A53: 43 | B53: AVANTIFEED | C53: 429.95 | D53: 429.68 | E53: 424.47 | F53: 418.98 | G53: 413.77 | H53: 435.17 | I53: 440.38 | J53: 445.87 | K53: 434.9 | L53: 424.2 | M53: 1.35272
A54: 44 | B54: AXISBANK | C54: 727.35 | D54: 728.02 | E54: 717.83 | F54: 708.32 | G54: 698.13 | H54: 737.53 | I54: 747.72 | J54: 757.23 | K54: 738.2 | L54: 718.5 | M54: 161.3604
A55: 45 | B55: BAJAJ-AUTO | C55: 3623.45 | D55: 3649.82 | E55: 3579.63 | F55: 3535.82 | G55: 3465.63 | H55: 3693.63 | I55: 3763.82 | J55: 3807.63 | K55: 3720 | L55: 3606 | M55: 3.7666
A56: 46 | B56: BAJAJCON | C56: 166.55 | D56: 166.52 | E56: 165.13 | F56: 163.72 | G56: 162.33 | H56: 167.93 | I56: 169.32 | J56: 170.73 | K56: 167.9 | L56: 165.1 | M56: 1.70188
A57: 47 | B57: BAJAJELEC | C57: 1097.75 | D57: 1102.72 | E57: 1080.43 | F57: 1063.12 | G57: 1040.83 | H57: 1120.03 | I57: 1142.32 | J57: 1159.63 | K57: 1125 | L57: 1085.4 | M57: 0.76661
A58: 48 | B58: BAJAJFINSV | C58: 14957.45 | D58: 14860.08 | E58: 14697.42 | F58: 14437.38 | G58: 14274.72 | H58: 15120.12 | I58: 15282.78 | J58: 15542.82 | K58: 15022.75 | L58: 14600.05 | M58: 1.90798
A59: 49 | B59: BAJAJHLDNG | C59: 5325.4 | D59: 5286.80 | E59: 5203.60 | F59: 5081.80 | G59: 4998.60 | H59: 5408.60 | I59: 5491.80 | J59: 5613.60 | K59: 5370 | L59: 5165 | M59: 1.35333
A60: 50 | B60: BAJFINANCE | C60: 6626.15 | D60: 6600.50 | E60: 6551.15 | F60: 6476.15 | G60: 6426.80 | H60: 6675.50 | I60: 6724.85 | J60: 6799.85 | K60: 6649.85 | L60: 6525.5 | M60: 12.38741
A61: 51 | B61: BALAMINES | C61: 3198.7 | D61: 3195.10 | E61: 3160.60 | F61: 3122.50 | G61: 3088.00 | H61: 3233.20 | I61: 3267.70 | J61: 3305.80 | K61: 3229.6 | L61: 3157 | M61: 0.30274
A62: 52 | B62: BALKRISIND | C62: 2103.95 | D62: 2111.65 | E62: 2075.40 | F62: 2046.85 | G62: 2010.60 | H62: 2140.20 | I62: 2176.45 | J62: 2205.00 | K62: 2147.9 | L62: 2083.1 | M62: 2.95744
A63: 53 | B63: BALRAMCHIN | C63: 446.2 | D63: 444.30 | E63: 437.10 | F63: 428.00 | G63: 420.80 | H63: 453.40 | I63: 460.60 | J63: 469.70 | K63: 451.5 | L63: 435.2 | M63: 21.8989
A64: 54 | B64: BANDHANBNK | C64: 336.5 | D64: 333.87 | E64: 329.73 | F64: 322.97 | G64: 318.83 | H64: 340.63 | I64: 344.77 | J64: 351.53 | K64: 338 | L64: 327.1 | M64: 44.45938
A65: 55 | B65: BANKBARODA | C65: 112.75 | D65: 112.28 | E65: 111.32 | F65: 109.88 | G65: 108.92 | H65: 113.72 | I65: 114.68 | J65: 116.12 | K65: 113.25 | L65: 110.85 | M65: 145.26547
A66: 56 | B66: BANKINDIA | C66: 47.7 | D66: 47.78 | E66: 47.27 | F66: 46.83 | G66: 46.32 | H66: 48.22 | I66: 48.73 | J66: 49.17 | K66: 48.3 | L66: 47.35 | M66: 15.1551
A67: 57 | B67: BASF | C67: 2653 | D67: 2659.17 | E67: 2624.93 | F67: 2596.87 | G67: 2562.63 | H67: 2687.23 | I67: 2721.47 | J67: 2749.53 | K67: 2693.4 | L67: 2631.1 | M67: 0.23609
A68: 58 | B68: BATAINDIA | C68: 1967.8 | D68: 1950.62 | E68: 1930.23 | F68: 1892.67 | G68: 1872.28 | H68: 1988.18 | I68: 2008.57 | J68: 2046.13 | K68: 1971 | L68: 1913.05 | M68: 1.39236
A69: 59 | B69: BAYERCROP | C69: 4690.95 | D69: 4680.65 | E69: 4627.30 | F69: 4563.65 | G69: 4510.30 | H69: 4744.30 | I69: 4797.65 | J69: 4861.30 | K69: 4734 | L69: 4617 | M69: 0.04056
A70: 60 | B70: BBTC | C70: 978.65 | D70: 981.22 | E70: 962.43 | F70: 946.22 | G70: 927.43 | H70: 997.43 | I70: 1016.22 | J70: 1032.43 | K70: 1000 | L70: 965 | M70: 1.27356
A71: 61 | B71: BDL | C71: 714.8 | D71: 721.72 | E71: 701.13 | F71: 687.47 | G71: 666.88 | H71: 735.38 | I71: 755.97 | J71: 769.63 | K71: 742.3 | L71: 708.05 | M71: 11.34964
A72: 62 | B72: BEL | C72: 238.15 | D72: 237.08 | E72: 234.77 | F72: 231.38 | G72: 229.07 | H72: 240.47 | I72: 242.78 | J72: 246.17 | K72: 239.4 | L72: 233.7 | M72: 46.47385
A73: 63 | B73: BEML | C73: 1631.95 | D73: 1644.65 | E73: 1611.50 | F73: 1591.05 | G73: 1557.90 | H73: 1665.10 | I73: 1698.25 | J73: 1718.70 | K73: 1677.8 | L73: 1624.2 | M73: 0.86743
A74: 64 | B74: BERGEPAINT | C74: 713.35 | D74: 711.52 | E74: 707.38 | F74: 701.42 | G74: 697.28 | H74: 717.48 | I74: 721.62 | J74: 727.58 | K74: 715.65 | L74: 705.55 | M74: 1.61853
A75: 65 | B75: BHARATFORG | C75: 678.45 | D75: 681.00 | E75: 671.55 | F75: 664.65 | G75: 655.20 | H75: 687.90 | I75: 697.35 | J75: 704.25 | K75: 690.45 | L75: 674.1 | M75: 13.39651
A76: 66 | B76: BHARATRAS | C76: 13797.05 | D76: 13767.03 | E76: 13553.77 | F76: 13310.48 | G76: 13097.22 | H76: 14010.32 | I76: 14223.58 | J76: 14466.87 | K76: 13980.3 | L76: 13523.75 | M76: 0.01879
A77: 67 | B77: BHARTIARTL | C77: 741.35 | D77: 738.22 | E77: 733.48 | F77: 725.62 | G77: 720.88 | H77: 746.08 | I77: 750.82 | J77: 758.68 | K77: 742.95 | L77: 730.35 | M77: 39.38533
A78: 68 | B78: BHEL | C78: 52.4 | D78: 52.12 | E78: 51.63 | F78: 50.87 | G78: 50.38 | H78: 52.88 | I78: 53.37 | J78: 54.13 | K78: 52.6 | L78: 51.35 | M78: 162.80662
A79: 69 | B79: BIOCON | C79: 372.8 | D79: 371.22 | E79: 364.88 | F79: 356.97 | G79: 350.63 | H79: 379.13 | I79: 385.47 | J79: 393.38 | K79: 377.55 | L79: 363.3 | M79: 31.55507
A80: 70 | B80: BIRLACORPN | C80: 1051.2 | D80: 1062.37 | E80: 1034.73 | F80: 1018.27 | G80: 990.63 | H80: 1078.83 | I80: 1106.47 | J80: 1122.93 | K80: 1090 | L80: 1045.9 | M80: 0.6692
A81: 71 | B81: BLUEDART | C81: 7042.75 | D81: 6964.22 | E81: 6828.43 | F81: 6614.12 | G81: 6478.33 | H81: 7178.53 | I81: 7314.32 | J81: 7528.63 | K81: 7100 | L81: 6749.9 | M81: 0.16233
A82: 72 | B82: BLUESTARCO | C82: 1139.9 | D82: 1131.37 | E82: 1118.53 | F82: 1097.17 | G82: 1084.33 | H82: 1152.73 | I82: 1165.57 | J82: 1186.93 | K82: 1144.2 | L82: 1110 | M82: 0.38552
A83: 73 | B83: BOSCHLTD | C83: 14460.55 | D83: 14430.98 | E83: 14259.57 | F83: 14058.58 | G83: 13887.17 | H83: 14631.97 | I83: 14803.38 | J83: 15004.37 | K83: 14602.4 | L83: 14230 | M83: 0.18509
A84: 74 | B84: BPCL | C84: 366.45 | D84: 364.02 | E84: 360.08 | F84: 353.72 | G84: 349.78 | H84: 370.38 | I84: 374.32 | J84: 380.68 | K84: 367.95 | L84: 357.65 | M84: 32.00238
A85: 75 | B85: BRIGADE | C85: 455.95 | D85: 453.65 | E85: 443.30 | F85: 430.65 | G85: 420.30 | H85: 466.30 | I85: 476.65 | J85: 489.30 | K85: 464 | L85: 441 | M85: 4.40716
A86: 76 | B86: BRITANNIA | C86: 3271.3 | D86: 3253.07 | E86: 3221.23 | F86: 3171.17 | G86: 3139.33 | H86: 3303.13 | I86: 3334.97 | J86: 3385.03 | K86: 3284.9 | L86: 3203 | M86: 2.15783
A87: 77 | B87: BSE | C87: 890.55 | D87: 898.52 | E87: 868.03 | F87: 845.52 | G87: 815.03 | H87: 921.03 | I87: 951.52 | J87: 974.03 | K87: 929 | L87: 876 | M87: 20.65055
A88: 78 | B88: BSOFT | C88: 406.65 | D88: 409.48 | E88: 402.17 | F88: 397.68 | G88: 390.37 | H88: 413.97 | I88: 421.28 | J88: 425.77 | K88: 416.8 | L88: 405 | M88: 15.28762
A89: 79 | B89: INTELLECT | C89: 787.55 | D89: 783.32 | E89: 772.38 | F89: 757.22 | G89: 746.28 | H89: 798.48 | I89: 809.42 | J89: 824.58 | K89: 794.25 | L89: 768.15 | M89: 2.70717
A90: 80 | B90: CAMS | C90: 2439.65 | D90: 2448.15 | E90: 2419.50 | F90: 2399.35 | G90: 2370.70 | H90: 2468.30 | I90: 2496.95 | J90: 2517.10 | K90: 2476.8 | L90: 2428 | M90: 0.6318
A91: 81 | B91: CANBK | C91: 229.75 | D91: 228.73 | E91: 227.12 | F91: 224.48 | G91: 222.87 | H91: 231.37 | I91: 232.98 | J91: 235.62 | K91: 230.35 | L91: 226.1 | M91: 46.88902
A92: 82 | B92: CANFINHOME | C92: 642.4 | D92: 634.10 | E92: 618.55 | F92: 594.70 | G92: 579.15 | H92: 657.95 | I92: 673.50 | J92: 697.35 | K92: 649.65 | L92: 610.25 | M92: 52.45547
A93: 83 | B93: CAPLIPOINT | C93: 695.05 | D93: 696.20 | E93: 685.75 | F93: 676.45 | G93: 666.00 | H93: 705.50 | I93: 715.95 | J93: 725.25 | K93: 706.65 | L93: 686.9 | M93: 0.57313
A94: 84 | B94: CARBORUNIV | C94: 763.1 | D94: 764.02 | E94: 750.08 | F94: 737.07 | G94: 723.13 | H94: 777.03 | I94: 790.97 | J94: 803.98 | K94: 777.95 | L94: 751 | M94: 0.8123
A95: 85 | B95: CASTROLIND | C95: 108.5 | D95: 108.05 | E95: 107.10 | F95: 105.70 | G95: 104.75 | H95: 109.45 | I95: 110.40 | J95: 111.80 | K95: 109 | L95: 106.65 | M95: 10.19753
A96: 86 | B96: CCL | C96: 401.3 | D96: 402.18 | E96: 396.02 | F96: 390.73 | G96: 384.57 | H96: 407.47 | I96: 413.63 | J96: 418.92 | K96: 408.35 | L96: 396.9 | M96: 1.8214
A97: 87 | B97: CDSL | C97: 1294.85 | D97: 1315.28 | E97: 1269.57 | F97: 1244.28 | G97: 1198.57 | H97: 1340.57 | I97: 1386.28 | J97: 1411.57 | K97: 1361 | L97: 1290 | M97: 17.32156
A98: 88 | B98: CEATLTD | C98: 1125.35 | D98: 1124.73 | E98: 1111.62 | F98: 1097.88 | G98: 1084.77 | H98: 1138.47 | I98: 1151.58 | J98: 1165.32 | K98: 1137.85 | L98: 1111 | M98: 0.48583
A99: 89 | B99: CENTRALBK | C99: 18.5 | D99: 18.47 | E99: 18.28 | F99: 18.07 | G99: 17.88 | H99: 18.68 | I99: 18.87 | J99: 19.08 | K99: 18.65 | L99: 18.25 | M99: 13.10826
A100: 90 | B100: CENTURYPLY | C100: 654.15 | D100: 646.72 | E100: 627.43 | F100: 600.72 | G100: 581.43 | H100: 673.43 | I100: 692.72 | J100: 719.43 | K100: 666 | L100: 620 | M100: 3.53815
A101: 91 | B101: CENTURYTEX | C101: 832.65 | D101: 834.77 | E101: 823.88 | F101: 815.12 | G101: 804.23 | H101: 843.53 | I101: 854.42 | J101: 863.18 | K101: 845.65 | L101: 826 | M101: 1.62684
A102: 92 | B102: CERA | C102: 4143.1 | D102: 4141.10 | E102: 4092.20 | F102: 4041.30 | G102: 3992.40 | H102: 4192.00 | I102: 4240.90 | J102: 4291.80 | K102: 4190 | L102: 4090.2 | M102: 0.05013
A103: 93 | B103: CESC | C103: 84.3 | D103: 84.45 | E103: 83.50 | F103: 82.70 | G103: 81.75 | H103: 85.25 | I103: 86.20 | J103: 87.00 | K103: 85.4 | L103: 83.65 | M103: 13.79011
A104: 94 | B104: CGCL | C104: 756 | D104: 740.18 | E104: 706.37 | F104: 656.73 | G104: 622.92 | H104: 789.82 | I104: 823.63 | J104: 873.27 | K104: 774 | L104: 690.55 | M104: 2.50137
A105: 95 | B105: CGPOWER | C105: 192.6 | D105: 185.77 | E105: 171.33 | F105: 150.07 | G105: 135.63 | H105: 207.03 | I105: 221.47 | J105: 242.73 | K105: 200.2 | L105: 164.5 | M105: 75.83941
A106: 96 | B106: CHALET | C106: 305.9 | D106: 303.92 | E106: 297.83 | F106: 289.77 | G106: 283.68 | H106: 311.98 | I106: 318.07 | J106: 326.13 | K106: 310 | L106: 295.85 | M106: 4.55158
A107: 97 | B107: CHAMBLFERT | C107: 461.4 | D107: 458.17 | E107: 451.33 | F107: 441.27 | G107: 434.43 | H107: 468.23 | I107: 475.07 | J107: 485.13 | K107: 465 | L107: 448.1 | M107: 11.16777
A108: 98 | B108: CHOLAFIN | C108: 746.5 | D108: 741.52 | E108: 733.13 | F108: 719.77 | G108: 711.38 | H108: 754.88 | I108: 763.27 | J108: 776.63 | K108: 749.9 | L108: 728.15 | M108: 10.31975
A109: 99 | B109: CHOLAHLDNG | C109: 632.5 | D109: 637.85 | E109: 624.75 | F109: 617.00 | G109: 603.90 | H109: 645.60 | I109: 658.70 | J109: 666.45 | K109: 650.95 | L109: 630.1 | M109: 0.43385
A110: 100 | B110: CIPLA | C110: 976.6 | D110: 979.38 | E110: 969.02 | F110: 961.43 | G110: 951.07 | H110: 986.97 | I110: 997.33 | J110: 1004.92 | K110: 989.75 | L110: 971.8 | M110: 17.67117
A111: 101 | B111: COALINDIA | C111: 187.65 | D111: 185.13 | E111: 181.37 | F111: 175.08 | G111: 171.32 | H111: 191.42 | I111: 195.18 | J111: 201.47 | K111: 188.9 | L111: 178.85 | M111: 212.89439
A112: 102 | B112: COCHINSHIP | C112: 336.65 | D112: 335.82 | E112: 331.63 | F112: 326.62 | G112: 322.43 | H112: 340.83 | I112: 345.02 | J112: 350.03 | K112: 340 | L112: 330.8 | M112: 1.30347
A113: 103 | B113: COFORGE | C113: 4116.55 | D113: 4117.42 | E113: 4059.83 | F113: 4003.12 | G113: 3945.53 | H113: 4174.13 | I113: 4231.72 | J113: 4288.43 | K113: 4175 | L113: 4060.7 | M113: 1.3013
A114: 104 | B114: COLPAL | C114: 1643 | D114: 1649.43 | E114: 1626.87 | F114: 1610.73 | G114: 1588.17 | H114: 1665.57 | I114: 1688.13 | J114: 1704.27 | K114: 1672 | L114: 1633.3 | M114: 1.92906
A115: 105 | B115: CONCOR | C115: 644.5 | D115: 647.05 | E115: 633.10 | F115: 621.70 | G115: 607.75 | H115: 658.45 | I115: 672.40 | J115: 683.80 | K115: 661 | L115: 635.65 | M115: 12.42193
A116: 106 | B116: COROMANDEL | C116: 910.1 | D116: 905.57 | E116: 893.18 | F116: 876.27 | G116: 863.88 | H116: 922.48 | I116: 934.87 | J116: 951.78 | K116: 917.95 | L116: 888.65 | M116: 10.40924
A117: 107 | B117: CREDITACC | C117: 1035.4 | D117: 1038.15 | E117: 1019.25 | F117: 1003.10 | G117: 984.20 | H117: 1054.30 | I117: 1073.20 | J117: 1089.35 | K117: 1057.05 | L117: 1022 | M117: 1.27219
A118: 108 | B118: CRISIL | C118: 3672.75 | D118: 3722.90 | E118: 3582.25 | F118: 3491.75 | G118: 3351.10 | H118: 3813.40 | I118: 3954.05 | J118: 4044.55 | K118: 3863.55 | L118: 3632.4 | M118: 2.78873
A119: 109 | B119: CROMPTON | C119: 378.55 | D119: 380.40 | E119: 375.60 | F119: 372.65 | G119: 367.85 | H119: 383.35 | I119: 388.15 | J119: 391.10 | K119: 385.2 | L119: 377.45 | M119: 8.66725
A120: 110 | B120: CSBBANK | C120: 210.8 | D120: 210.63 | E120: 207.27 | F120: 203.73 | G120: 200.37 | H120: 214.17 | I120: 217.53 | J120: 221.07 | K120: 214 | L120: 207.1 | M120: 1.53162
A121: 111 | B121: CUB | C121: 134.05 | D121: 134.77 | E121: 132.43 | F121: 130.82 | G121: 128.48 | H121: 136.38 | I121: 138.72 | J121: 140.33 | K121: 137.1 | L121: 133.15 | M121: 6.51115
A122: 112 | B122: CUMMINSIND | C122: 1031 | D122: 1026.53 | E122: 1015.47 | F122: 999.93 | G122: 988.87 | H122: 1042.07 | I122: 1053.13 | J122: 1068.67 | K122: 1037.6 | L122: 1011 | M122: 3.80054
A123: 113 | B123: CYIENT | C123: 866.2 | D123: 864.47 | E123: 850.83 | F123: 835.47 | G123: 821.83 | H123: 879.83 | I123: 893.47 | J123: 908.83 | K123: 878.1 | L123: 849.1 | M123: 3.60313
A124: 114 | B124: DABUR | C124: 557.2 | D124: 555.30 | E124: 551.15 | F124: 545.10 | G124: 540.95 | H124: 561.35 | I124: 565.50 | J124: 571.55 | K124: 559.45 | L124: 549.25 | M124: 10.89778
A125: 115 | B125: DALBHARAT | C125: 1501.75 | D125: 1499.08 | E125: 1479.02 | F125: 1456.28 | G125: 1436.22 | H125: 1521.82 | I125: 1541.88 | J125: 1564.62 | K125: 1519.15 | L125: 1476.35 | M125: 0.8245
A126: 116 | B126: DBL | C126: 255.9 | D126: 257.60 | E126: 252.30 | F126: 248.70 | G126: 243.40 | H126: 261.20 | I126: 266.50 | J126: 270.10 | K126: 262.9 | L126: 254 | M126: 3.11496
A127: 117 | B127: DCBBANK | C127: 80.1 | D127: 79.65 | E127: 78.80 | F127: 77.50 | G127: 76.65 | H127: 80.95 | I127: 81.80 | J127: 83.10 | K127: 80.5 | L127: 78.35 | M127: 3.32309
A128: 118 | B128: DCMSHRIRAM | C128: 1155.35 | D128: 1157.78 | E128: 1145.57 | F128: 1135.78 | G128: 1123.57 | H128: 1167.57 | I128: 1179.78 | J128: 1189.57 | K128: 1170 | L128: 1148 | M128: 1.52233
A129: 119 | B129: DEEPAKNTR | C129: 2298.3 | D129: 2301.87 | E129: 2265.88 | F129: 2233.47 | G129: 2197.48 | H129: 2334.28 | I129: 2370.27 | J129: 2402.68 | K129: 2337.85 | L129: 2269.45 | M129: 6.23462
A130: 120 | B130: DELTACORP | C130: 264.9 | D130: 262.38 | E130: 259.22 | F130: 253.53 | G130: 250.37 | H130: 268.07 | I130: 271.23 | J130: 276.92 | K130: 265.55 | L130: 256.7 | M130: 29.25169
A131: 121 | B131: DHANI | C131: 53.7 | D131: 55.17 | E131: 52.03 | F131: 50.37 | G131: 47.23 | H131: 56.83 | I131: 59.97 | J131: 61.63 | K131: 58.3 | L131: 53.5 | M131: 25.75294
A132: 122 | B132: DHANUKA | C132: 708 | D132: 709.40 | E132: 701.80 | F132: 695.60 | G132: 688.00 | H132: 715.60 | I132: 723.20 | J132: 729.40 | K132: 717 | L132: 703.2 | M132: 0.16453
A133: 123 | B133: DIVISLAB | C133: 4509.65 | D133: 4509.63 | E133: 4465.07 | F133: 4420.48 | G133: 4375.92 | H133: 4554.22 | I133: 4598.78 | J133: 4643.37 | K133: 4554.2 | L133: 4465.05 | M133: 3.00278
A134: 124 | B134: DIXON | C134: 3994.85 | D134: 4076.78 | E134: 3885.92 | F134: 3776.98 | G134: 3586.12 | H134: 4185.72 | I134: 4376.58 | J134: 4485.52 | K134: 4267.65 | L134: 3967.85 | M134: 14.59355
A135: 125 | B135: DLF | C135: 367.55 | D135: 367.82 | E135: 363.93 | F135: 360.32 | G135: 356.43 | H135: 371.43 | I135: 375.32 | J135: 378.93 | K135: 371.7 | L135: 364.2 | M135: 36.06478
A136: 126 | B136: DMART | C136: 3983.35 | D136: 3956.72 | E136: 3915.63 | F136: 3847.92 | G136: 3806.83 | H136: 4024.43 | I136: 4065.52 | J136: 4133.23 | K136: 3997.8 | L136: 3889 | M136: 2.65831
A137: 127 | B137: DRREDDY | C137: 4123.9 | D137: 4113.05 | E137: 4080.85 | F137: 4037.80 | G137: 4005.60 | H137: 4156.10 | I137: 4188.30 | J137: 4231.35 | K137: 4145.25 | L137: 4070 | M137: 1.8506
A138: 128 | B138: ECLERX | C138: 2358 | D138: 2359.13 | E138: 2320.27 | F138: 2282.53 | G138: 2243.67 | H138: 2396.87 | I138: 2435.73 | J138: 2473.47 | K138: 2398 | L138: 2321.4 | M138: 0.20827
A139: 129 | B139: EDELWEISS | C139: 59.6 | D139: 59.63 | E139: 59.07 | F139: 58.53 | G139: 57.97 | H139: 60.17 | I139: 60.73 | J139: 61.27 | K139: 60.2 | L139: 59.1 | M139: 8.2704
A140: 130 | B140: EICHERMOT | C140: 2552.5 | D140: 2566.93 | E140: 2507.12 | F140: 2461.73 | G140: 2401.92 | H140: 2612.32 | I140: 2672.13 | J140: 2717.52 | K140: 2626.75 | L140: 2521.55 | M140: 4.97152
A141: 131 | B141: EIDPARRY | C141: 529.55 | D141: 530.22 | E141: 522.58 | F141: 515.62 | G141: 507.98 | H141: 537.18 | I141: 544.82 | J141: 551.78 | K141: 537.85 | L141: 523.25 | M141: 2.47835
A142: 132 | B142: EIHOTEL | C142: 165.7 | D142: 163.88 | E142: 159.82 | F142: 153.93 | G142: 149.87 | H142: 169.77 | I142: 173.83 | J142: 179.72 | K142: 167.95 | L142: 158 | M142: 18.09568
A143: 133 | B143: ELGIEQUIP | C143: 338.85 | D143: 342.15 | E143: 329.35 | F143: 319.85 | G143: 307.05 | H143: 351.65 | I143: 364.45 | J143: 373.95 | K143: 354.95 | L143: 332.65 | M143: 3.04032
A144: 134 | B144: EMAMILTD | C144: 490.4 | D144: 488.78 | E144: 484.27 | F144: 478.13 | G144: 473.62 | H144: 494.92 | I144: 499.43 | J144: 505.57 | K144: 493.3 | L144: 482.65 | M144: 2.56314
A145: 135 | B145: ENDURANCE | C145: 1231.65 | D145: 1222.10 | E145: 1196.20 | F145: 1160.75 | G145: 1134.85 | H145: 1257.55 | I145: 1283.45 | J145: 1318.90 | K145: 1248 | L145: 1186.65 | M145: 1.6046
A146: 136 | B146: ENGINERSIN | C146: 64.05 | D146: 64.22 | E146: 63.73 | F146: 63.42 | G146: 62.93 | H146: 64.53 | I146: 65.02 | J146: 65.33 | K146: 64.7 | L146: 63.9 | M146: 4.84404
A147: 137 | B147: EPL | C147: 169.45 | D147: 170.95 | E147: 162.90 | F147: 156.35 | G147: 148.30 | H147: 177.50 | I147: 185.55 | J147: 192.10 | K147: 179 | L147: 164.4 | M147: 2.66245
A148: 138 | B148: EQUITAS | C148: 108.05 | D148: 108.10 | E148: 105.05 | F148: 102.05 | G148: 99.00 | H148: 111.10 | I148: 114.15 | J148: 117.15 | K148: 111.15 | L148: 105.1 | M148: 5.98946
A149: 139 | B149: EQUITASBNK | C149: 53.6 | D149: 53.82 | E149: 53.03 | F149: 52.47 | G149: 51.68 | H149: 54.38 | I149: 55.17 | J149: 55.73 | K149: 54.6 | L149: 53.25 | M149: 4.56659
A150: 140 | B150: ERIS | C150: 675.95 | D150: 676.75 | E150: 666.15 | F150: 656.35 | G150: 645.75 | H150: 686.55 | I150: 697.15 | J150: 706.95 | K150: 687.35 | L150: 666.95 | M150: 0.89183
A151: 141 | B151: ESCORTS | C151: 1577 | D151: 1591.25 | E151: 1551.25 | F151: 1525.50 | G151: 1485.50 | H151: 1617.00 | I151: 1657.00 | J151: 1682.75 | K151: 1631.25 | L151: 1565.5 | M151: 25.86739
A152: 142 | B152: EXIDEIND | C152: 151.55 | D152: 151.50 | E152: 150.25 | F152: 148.95 | G152: 147.70 | H152: 152.80 | I152: 154.05 | J152: 155.35 | K152: 152.75 | L152: 150.2 | M152: 14.60717
A153: 143 | B153: FACT | C153: 123.8 | D153: 123.82 | E153: 121.78 | F153: 119.77 | G153: 117.73 | H153: 125.83 | I153: 127.87 | J153: 129.88 | K153: 125.85 | L153: 121.8 | M153: 1.40395
A154: 144 | B154: FDC | C154: 269.55 | D154: 272.52 | E154: 262.03 | F154: 254.52 | G154: 244.03 | H154: 280.03 | I154: 290.52 | J154: 298.03 | K154: 283 | L154: 265 | M154: 0.42111
A155: 145 | B155: FEDERALBNK | C155: 94.55 | D155: 94.87 | E155: 93.18 | F155: 91.82 | G155: 90.13 | H155: 96.23 | I155: 97.92 | J155: 99.28 | K155: 96.55 | L155: 93.5 | M155: 95.17127
A156: 146 | B156: FINCABLES | C156: 394.8 | D156: 395.93 | E156: 391.87 | F156: 388.93 | G156: 384.87 | H156: 398.87 | I156: 402.93 | J156: 405.87 | K156: 400 | L156: 393 | M156: 0.60953
A157: 147 | B157: FINEORG | C157: 4479.2 | D157: 4483.57 | E157: 4412.28 | F157: 4345.37 | G157: 4274.08 | H157: 4550.48 | I157: 4621.77 | J157: 4688.68 | K157: 4554.85 | L157: 4416.65 | M157: 0.31536
A158: 148 | B158: FINPIPE | C158: 155.15 | D158: 154.58 | E158: 152.97 | F158: 150.78 | G158: 149.17 | H158: 156.77 | I158: 158.38 | J158: 160.57 | K158: 156.2 | L158: 152.4 | M158: 2.34987
A159: 149 | B159: FLUOROCHEM | C159: 2729.15 | D159: 2754.68 | E159: 2684.47 | F159: 2639.78 | G159: 2569.57 | H159: 2799.37 | I159: 2869.58 | J159: 2914.27 | K159: 2824.9 | L159: 2710 | M159: 0.22435
A160: 150 | B160: FORTIS | C160: 264.05 | D160: 265.12 | E160: 261.48 | F160: 258.92 | G160: 255.28 | H160: 267.68 | I160: 271.32 | J160: 273.88 | K160: 268.75 | L160: 262.55 | M160: 4.3466
A161: 151 | B161: FRETAIL | C161: 21.7 | D161: 21.70 | E161: 21.70 | F161: 21.70 | G161: 21.70 | H161: 21.70 | I161: 21.70 | J161: 21.70 | K161: 21.7 | L161: 21.7 | M161: 3.95357
A162: 152 | B162: FSL | C162: 122.5 | D162: 122.58 | E162: 121.17 | F162: 119.83 | G162: 118.42 | H162: 123.92 | I162: 125.33 | J162: 126.67 | K162: 124 | L162: 121.25 | M162: 22.09672
A163: 153 | B163: GAEL | C163: 318.8 | D163: 322.07 | E163: 312.73 | F163: 306.67 | G163: 297.33 | H163: 328.13 | I163: 337.47 | J163: 343.53 | K163: 331.4 | L163: 316 | M163: 4.58031
A164: 154 | B164: GAIL | C164: 157.55 | D164: 157.93 | E164: 156.22 | F164: 154.88 | G164: 153.17 | H164: 159.27 | I164: 160.98 | J164: 162.32 | K164: 159.65 | L164: 156.6 | M164: 62.04947
A165: 155 | B165: GALAXYSURF | C165: 2959.9 | D165: 2944.33 | E165: 2888.67 | F165: 2817.43 | G165: 2761.77 | H165: 3015.57 | I165: 3071.23 | J165: 3142.47 | K165: 3000 | L165: 2873.1 | M165: 0.13187
A166: 156 | B166: GARFIBRES | C166: 2972.25 | D166: 2992.38 | E166: 2931.87 | F166: 2891.48 | G166: 2830.97 | H166: 3032.77 | I166: 3093.28 | J166: 3133.67 | K166: 3052.9 | L166: 2952 | M166: 0.09048
A167: 157 | B167: GESHIP | C167: 382.05 | D167: 382.67 | E167: 377.43 | F167: 372.82 | G167: 367.58 | H167: 387.28 | I167: 392.52 | J167: 397.13 | K167: 387.9 | L167: 378.05 | M167: 0.79351
A168: 158 | B168: GICRE | C168: 133.8 | D168: 131.43 | E168: 127.87 | F168: 121.93 | G168: 118.37 | H168: 137.37 | I168: 140.93 | J168: 146.87 | K168: 135 | L168: 125.5 | M168: 62.55922
A169: 159 | B169: GILLETTE | C169: 5196.7 | D169: 5191.67 | E169: 5128.33 | F169: 5059.97 | G169: 4996.63 | H169: 5260.03 | I169: 5323.37 | J169: 5391.73 | K169: 5255 | L169: 5123.3 | M169: 0.042
A170: 160 | B170: GLAND | C170: 3205.05 | D170: 3212.83 | E170: 3185.72 | F170: 3166.38 | G170: 3139.27 | H170: 3232.17 | I170: 3259.28 | J170: 3278.62 | K170: 3239.95 | L170: 3193.5 | M170: 1.05016
A171: 161 | B171: GLAXO | C171: 1552.05 | D171: 1558.75 | E171: 1539.30 | F171: 1526.55 | G171: 1507.10 | H171: 1571.50 | I171: 1590.95 | J171: 1603.70 | K171: 1578.2 | L171: 1546 | M171: 0.11398
A172: 162 | B172: GLENMARK | C172: 437.45 | D172: 434.98 | E172: 430.77 | F172: 424.08 | G172: 419.87 | H172: 441.67 | I172: 445.88 | J172: 452.57 | K172: 439.2 | L172: 428.3 | M172: 5.16075
A173: 163 | B173: GMMPFAUDLR | C173: 4540.35 | D173: 4532.43 | E173: 4470.62 | F173: 4400.88 | G173: 4339.07 | H173: 4602.17 | I173: 4663.98 | J173: 4733.72 | K173: 4594.25 | L173: 4462.7 | M173: 0.13824
A174: 164 | B174: GNFC | C174: 833 | D174: 829.45 | E174: 822.25 | F174: 811.50 | G174: 804.30 | H174: 840.20 | I174: 847.40 | J174: 858.15 | K174: 836.65 | L174: 818.7 | M174: 11.59287
A175: 165 | B175: GODFRYPHLP | C175: 1213.35 | D175: 1219.12 | E175: 1189.23 | F175: 1165.12 | G175: 1135.23 | H175: 1243.23 | I175: 1273.12 | J175: 1297.23 | K175: 1249 | L175: 1195 | M175: 0.96956
A176: 166 | B176: GODREJAGRO | C176: 572.2 | D176: 565.60 | E176: 542.60 | F176: 513.00 | G176: 490.00 | H176: 595.20 | I176: 618.20 | J176: 647.80 | K176: 588.6 | L176: 536 | M176: 31.18675
A177: 167 | B177: GODREJCP | C177: 771.85 | D177: 777.30 | E177: 762.55 | F177: 753.25 | G177: 738.50 | H177: 786.60 | I177: 801.35 | J177: 810.65 | K177: 792.05 | L177: 768 | M177: 9.22151
A178: 168 | B178: GODREJIND | C178: 486.65 | D178: 486.48 | E178: 480.17 | F178: 473.68 | G178: 467.37 | H178: 492.97 | I178: 499.28 | J178: 505.77 | K178: 492.8 | L178: 480 | M178: 0.95002
A179: 169 | B179: GODREJPROP | C179: 1615.75 | D179: 1596.60 | E179: 1563.20 | F179: 1510.65 | G179: 1477.25 | H179: 1649.15 | I179: 1682.55 | J179: 1735.10 | K179: 1630 | L179: 1544.05 | M179: 9.89562
A180: 170 | B180: GPPL | C180: 87.55 | D180: 87.48 | E180: 86.17 | F180: 84.78 | G180: 83.47 | H180: 88.87 | I180: 90.18 | J180: 91.57 | K180: 88.8 | L180: 86.1 | M180: 7.43674
A181: 171 | B181: GRANULES | C181: 277.45 | D181: 278.95 | E181: 274.95 | F181: 272.45 | G181: 268.45 | H181: 281.45 | I181: 285.45 | J181: 287.95 | K181: 282.95 | L181: 276.45 | M181: 4.91196
A182: 172 | B182: GRAPHITE | C182: 509.1 | D182: 513.42 | E182: 501.93 | F182: 494.77 | G182: 483.28 | H182: 520.58 | I182: 532.07 | J182: 539.23 | K182: 524.9 | L182: 506.25 | M182: 5.5658
A183: 173 | B183: GRASIM | C183: 1679.55 | D183: 1675.23 | E183: 1661.52 | F183: 1643.48 | G183: 1629.77 | H183: 1693.27 | I183: 1706.98 | J183: 1725.02 | K183: 1688.95 | L183: 1657.2 | M183: 4.37101
A184: 174 | B184: GREAVESCOT | C184: 161.05 | D184: 161.30 | E184: 158.15 | F184: 155.25 | G184: 152.10 | H184: 164.20 | I184: 167.35 | J184: 170.25 | K184: 164.45 | L184: 158.4 | M184: 24.88063
A185: 175 | B185: GRINDWELL | C185: 1700.55 | D185: 1700.88 | E185: 1669.77 | F185: 1638.98 | G185: 1607.87 | H185: 1731.67 | I185: 1762.78 | J185: 1793.57 | K185: 1732 | L185: 1670.1 | M185: 0.34968
A186: 176 | B186: GSFC | C186: 171 | D186: 169.62 | E186: 167.28 | F186: 163.57 | G186: 161.23 | H186: 173.33 | I186: 175.67 | J186: 179.38 | K186: 171.95 | L186: 165.9 | M186: 17.1559
A187: 177 | B187: GSPL | C187: 265.15 | D187: 263.87 | E187: 260.38 | F187: 255.62 | G187: 252.13 | H187: 268.63 | I187: 272.12 | J187: 276.88 | K187: 267.35 | L187: 259.1 | M187: 4.88032
A188: 178 | B188: GUJALKALI | C188: 1007.05 | D188: 1010.58 | E188: 976.47 | F188: 945.88 | G188: 911.77 | H188: 1041.17 | I188: 1075.28 | J188: 1105.87 | K188: 1044.7 | L188: 980 | M188: 17.82079
A189: 179 | B189: GUJGASLTD | C189: 495.9 | D189: 490.97 | E189: 484.93 | F189: 473.97 | G189: 467.93 | H189: 501.93 | I189: 507.97 | J189: 518.93 | K189: 497 | L189: 480 | M189: 19.96495
A190: 180 | B190: HAL | C190: 1575.2 | D190: 1583.65 | E190: 1560.20 | F190: 1545.20 | G190: 1521.75 | H190: 1598.65 | I190: 1622.10 | J190: 1637.10 | K190: 1607.1 | L190: 1568.65 | M190: 5.80754
A191: 181 | B191: HAPPSTMNDS | C191: 986.6 | D191: 987.53 | E191: 979.07 | F191: 971.53 | G191: 963.07 | H191: 995.07 | I191: 1003.53 | J191: 1011.07 | K191: 996 | L191: 980 | M191: 2.41178
A192: 182 | B192: HATHWAY | C192: 20.1 | D192: 19.97 | E192: 19.63 | F192: 19.17 | G192: 18.83 | H192: 20.43 | I192: 20.77 | J192: 21.23 | K192: 20.3 | L192: 19.5 | M192: 45.39575
A193: 183 | B193: HATSUN | C193: 1059.35 | D193: 1057.38 | E193: 1049.77 | F193: 1040.18 | G193: 1032.57 | H193: 1066.97 | I193: 1074.58 | J193: 1084.17 | K193: 1065 | L193: 1047.8 | M193: 0.3008
A194: 184 | B194: HAVELLS | C194: 1289.85 | D194: 1294.53 | E194: 1278.17 | F194: 1266.48 | G194: 1250.12 | H194: 1306.22 | I194: 1322.58 | J194: 1334.27 | K194: 1310.9 | L194: 1282.85 | M194: 7.82353
A195: 185 | B195: HCLTECH | C195: 1066.9 | D195: 1070.30 | E195: 1058.60 | F195: 1050.30 | G195: 1038.60 | H195: 1078.60 | I195: 1090.30 | J195: 1098.60 | K195: 1082 | L195: 1062 | M195: 25.84604
A196: 186 | B196: HDFC | C196: 2264 | D196: 2239.33 | E196: 2208.67 | F196: 2153.33 | G196: 2122.67 | H196: 2294.67 | I196: 2325.33 | J196: 2380.67 | K196: 2270 | L196: 2184 | M196: 38.78583
A197: 187 | B197: HDFCAMC | C197: 2028.8 | D197: 2025.53 | E197: 2012.27 | F197: 1995.73 | G197: 1982.47 | H197: 2042.07 | I197: 2055.33 | J197: 2071.87 | K197: 2038.8 | L197: 2009 | M197: 2.14189
A198: 188 | B198: HDFCBANK | C198: 1403.7 | D198: 1390.73 | E198: 1375.02 | F198: 1346.33 | G198: 1330.62 | H198: 1419.42 | I198: 1435.13 | J198: 1463.82 | K198: 1406.45 | L198: 1362.05 | M198: 97.47158
A199: 189 | B199: HDFCLIFE | C199: 579.85 | D199: 580.10 | E199: 574.45 | F199: 569.05 | G199: 563.40 | H199: 585.50 | I199: 591.15 | J199: 596.55 | K199: 585.75 | L199: 574.7 | M199: 30.25011
A200: 190 | B200: HEG | C200: 1192.4 | D200: 1201.12 | E200: 1178.38 | F200: 1164.37 | G200: 1141.63 | H200: 1215.13 | I200: 1237.87 | J200: 1251.88 | K200: 1223.85 | L200: 1187.1 | M200: 1.46295
A201: 191 | B201: HEIDELBERG | C201: 201.2 | D201: 201.58 | E201: 199.87 | F201: 198.53 | G201: 196.82 | H201: 202.92 | I201: 204.63 | J201: 205.97 | K201: 203.3 | L201: 200.25 | M201: 0.5552
A202: 192 | B202: HEMIPROP | C202: 115.8 | D202: 115.53 | E202: 114.27 | F202: 112.73 | G202: 111.47 | H202: 117.07 | I202: 118.33 | J202: 119.87 | K202: 116.8 | L202: 114 | M202: 4.41761
A203: 193 | B203: HEROMOTOCO | C203: 2487.3 | D203: 2480.33 | E203: 2455.07 | F203: 2422.83 | G203: 2397.57 | H203: 2512.57 | I203: 2537.83 | J203: 2570.07 | K203: 2505.6 | L203: 2448.1 | M203: 6.67551
A204: 194 | B204: HFCL | C204: 67.75 | D204: 68.58 | E204: 66.22 | F204: 64.68 | G204: 62.32 | H204: 70.12 | I204: 72.48 | J204: 74.02 | K204: 70.95 | L204: 67.05 | M204: 121.9634
A205: 195 | B205: HGS | C205: 1006.6 | D205: 1010.47 | E205: 997.38 | F205: 988.17 | G205: 975.08 | H205: 1019.68 | I205: 1032.77 | J205: 1041.98 | K205: 1023.55 | L205: 1001.25 | M205: 0.45805
A206: 196 | B206: HIKAL | C206: 381.45 | D206: 384.85 | E206: 376.80 | F206: 372.15 | G206: 364.10 | H206: 389.50 | I206: 397.55 | J206: 402.20 | K206: 392.9 | L206: 380.2 | M206: 1.07527
... 319 more rows

Sheet Bulk Deals
E6: Back To Main Page
A7: Subject : | B7: BULK DEAL | D7: =Main!B10 -> 2022-05-04
A9: Date | B9: Scrip code | C9: Scrip Name | D9: Client Name | E9: Buy / Sell | F9: Quantity Traded | G9: Trade Price / Wt.Avg.trade price | H9: Exchange
A10: 2022-05-02 | B10: 539621 | C10: BCLENTERPR | D10: TOPGAIN FINANCE PRIVATE LIMITED | E10: SELL | F10: 308,240 | G10: 3.8 | H10: BSE
A11: 2022-05-02 | B11: 539559 | C11: DDIL | D11: MANISHA CHORDIA . | E11: BUY | F11: 49,950 | G11: 16.7 | H11: BSE
A12: 2022-05-02 | B12: 540811 | C12: DML | D12: KINGSMAN WEALTH MANAGEMENT PRIVATE LIMITED | E12: BUY | F12: 50,000 | G12: 17 | H12: BSE
A13: 2022-05-02 | B13: 504351 | C13: EMPOWER | D13: AVANCE TECHNOLOGIES LIMITED | E13: SELL | F13: 12,500,000 | G13: 0.15 | H13: BSE
A14: 2022-05-02 | B14: 524590 | C14: HEMORGANIC | D14: HARSHAD BABUBHAI PATEL | E14: SELL | F14: 24,072 | G14: 73.55 | H14: BSE
A15: 2022-05-02 | B15: 524590 | C15: HEMORGANIC | D15: PURAV BHARATBHAI PATEL | E15: BUY | F15: 18,028 | G15: 72.82 | H15: BSE
A16: 2022-05-02 | B16: 541627 | C16: HITECHWIND | D16: SWARUPGUCHHAIT | E16: BUY | F16: 41,498 | G16: 3.29 | H16: BSE
A17: 2022-05-02 | B17: 540134 | C17: IISL | D17: SWARUPGUCHHAIT | E17: BUY | F17: 36,970 | G17: 4.03 | H17: BSE
A18: 2022-05-02 | B18: 501700 | C18: INDIANVSH | D18: ANJALI CREDIT PRIVATE LIMITED | E18: SELL | F18: 500,000 | G18: 52.1 | H18: BSE
A19: 2022-05-02 | B19: 509051 | C19: INDINFO | D19: NIRAJ RAJNIKANT SHAH | E19: BUY | F19: 7,500,000 | G19: 4.27 | H19: BSE
A20: 2022-05-02 | B20: 509051 | C20: INDINFO | D20: SHERWOOD SECURITIES PVT LTD | E20: SELL | F20: 49,000,000 | G20: 4.27 | H20: BSE
A21: 2022-05-02 | B21: 509051 | C21: INDINFO | D21: MAYANK GLOBAL FINANCE LIMITED | E21: BUY | F21: 6,500,000 | G21: 4.27 | H21: BSE
A22: 2022-05-02 | B22: 530443 | C22: KIRANSY-B | D22: RITIKESHKUMAR | E22: BUY | F22: 27,119 | G22: 9.21 | H22: BSE
A23: 2022-05-02 | B23: 539910 | C23: KOCL | D23: ARTLINK VINTRADE LIMITED | E23: SELL | F23: 226,670 | G23: 5.91 | H23: BSE
A24: 2022-05-02 | B24: 539910 | C24: KOCL | D24: ALPHA LEON ENTERPRISES LLP | E24: SELL | F24: 132,498 | G24: 5.71 | H24: BSE
A25: 2022-05-02 | B25: 511557 | C25: PROFINC | D25: DIPAK MATHURBHAI SALVI | E25: SELL | F25: 1,736,740 | G25: 8.24 | H25: BSE
A26: 2022-05-02 | B26: 511557 | C26: PROFINC | D26: BHAVYA DHIMAN | E26: SELL | F26: 450,000 | G26: 8.24 | H26: BSE
A27: 2022-05-02 | B27: 541601 | C27: RAJNISH | D27: ANUSTUP TRADING PRIVATE LIMITED | E27: BUY | F27: 116,100 | G27: 180.82 | H27: BSE
A28: 2022-05-02 | B28: 541151 | C28: RIDINGS | D28: BEELINE MERCHANT BANKING PRIVATE LIMITED | E28: BUY | F28: 64,000 | G28: 6.71 | H28: BSE
A29: 2022-05-02 | B29: 538540 | C29: RLFL | D29: VENKATA SHILPA PERIKA | E29: SELL | F29: 276,000 | G29: 2.9 | H29: BSE
A30: 2022-05-02 | B30: 540821 | C30: SADHNA | D30: AAHUTI RASIK MISTRY | E30: BUY | F30: 100,000 | G30: 33.35 | H30: BSE
A31: 2022-05-02 | B31: 540821 | C31: SADHNA | D31: HIGH SPIRITS SALES AGENCIES PRIVATE LIMITED | E31: SELL | F31: 66,694 | G31: 33.35 | H31: BSE
A32: 2022-05-02 | B32: 539833 | C32: SICLTD | D32: GANDU MADAN MOHAN REDDY | E32: BUY | F32: 451,000 | G32: 0.84 | H32: BSE
A33: 2022-05-02 | B33: 539584 | C33: SIPTL | D33: DIPAK KANAIYALAL PATEL | E33: SELL | F33: 284,446 | G33: 1.39 | H33: BSE
A34: 2022-05-02 | B34: 543274 | C34: SUUMAYA | D34: KULINSHANTILALVORA | E34: SELL | F34: 124,200 | G34: 79.97 | H34: BSE
A35: 2022-05-02 | B35: 543274 | C35: SUUMAYA | D35: KOTHARI PRODUCTS LIMITED | E35: BUY | F35: 250,200 | G35: 79.37 | H35: BSE
A36: 2022-05-02 | B36: 531644 | C36: TOKYOFIN | D36: MANILAL BACHU GADA | E36: SELL | F36: 39,000 | G36: 10 | H36: BSE
A37: 2022-05-02 | B37: 531203 | C37: TRADEWELL | D37: RASHMI GUPTA | E37: BUY | F37: 30,200 | G37: 29.65 | H37: BSE
A38: 2022-05-02 | B38: 531203 | C38: TRADEWELL | D38: KAMAL MANCHANDA | E38: SELL | F38: 30,000 | G38: 29.65 | H38: BSE
A39: 2022-05-02 | B39: DRCSYSTEMS | C39: DRC Systems India Limited | D39: JAKSH FINANCIALS PRIVATE LIMITED . | E39: BUY | F39: 302,273 | G39: 45.29 | H39: NSE
A40: 2022-05-02 | B40: GOKEX | C40: Gokaldas Exports Limited | D40: XTX MARKETS LLP | E40: BUY | F40: 530,137 | G40: 440.12 | H40: NSE
A41: 2022-05-02 | B41: GOKEX | C41: Gokaldas Exports Limited | D41: GRAVITON RESEARCH CAPITAL LLP | E41: BUY | F41: 315,686 | G41: 435.81 | H41: NSE
A42: 2022-05-02 | B42: HISARMETAL | C42: Hisar Metal Ind. Limited | D42: SHIKHAR SINGH | E42: BUY | F42: 27,869 | G42: 138.87 | H42: NSE
A43: 2022-05-02 | B43: RIIL | C43: Reliance Indl Infra Ltd | D43: HRTI PRIVATE LIMITED | E43: BUY | F43: 116,816 | G43: 1111.66 | H43: NSE
A44: 2022-05-02 | B44: RIIL | C44: Reliance Indl Infra Ltd | D44: QE SECURITIES | E44: BUY | F44: 131,423 | G44: 1115.64 | H44: NSE
A45: 2022-05-02 | B45: RIIL | C45: Reliance Indl Infra Ltd | D45: XTX MARKETS LLP | E45: BUY | F45: 329,081 | G45: 1115.46 | H45: NSE
A46: 2022-05-02 | B46: RIIL | C46: Reliance Indl Infra Ltd | D46: GRAVITON RESEARCH CAPITAL LLP | E46: BUY | F46: 376,039 | G46: 1117.05 | H46: NSE
A47: 2022-05-02 | B47: RUPA | C47: Rupa & Company Ltd | D47: XTX MARKETS LLP | E47: BUY | F47: 530,157 | G47: 559.93 | H47: NSE
A48: 2022-05-02 | B48: VIVIDHA | C48: Visagar Polytex Ltd | D48: ADROIT FINANCIAL SERVICES PVT LTD | E48: BUY | F48: 1,873,183 | G48: 1.76 | H48: NSE
A49: 2022-05-02 | B49: WALPAR | C49: Walpar Nutritions Limited | D49: VINEETA SINGH | E49: BUY | F49: 24,000 | G49: 38.92 | H49: NSE
A50: 2022-05-02 | B50: ZEELEARN | C50: Zee Learn Limited | D50: ALPHA LEON ENTERPRISES LLP | E50: BUY | F50: 3,335,727 | G50: 7.3 | H50: NSE
A51: 2022-05-02 | B51: ZEELEARN | C51: Zee Learn Limited | D51: TOPGAIN FINANCE PRIVATE LIMITED | E51: BUY | F51: 3,114,582 | G51: 7.32 | H51: NSE
A52: 2022-05-02 | B52: DIL | C52: Debock Industries Limited | D52: GAURAV JAIN | E52: SELL | F52: 150,000 | G52: 116.83 | H52: NSE
A53: 2022-05-02 | B53: DRCSYSTEMS | C53: DRC Systems India Limited | D53: OLGA TRADING PRIVATE LIMITED | E53: SELL | F53: 272,770 | G53: 45.3 | H53: NSE
A54: 2022-05-02 | B54: ESCORTS | C54: Escorts India Ltd. | D54: ISHARES CORE TOTAL INTERNATIONAL STOCK MAURITIUS CO | E54: SELL | F54: 1,333,741 | G54: 1580.75 | H54: NSE
A55: 2022-05-02 | B55: FCONSUMER | C55: Future Consumer Ltd | D55: VISTRA ITCL INDIA LIMITED | E55: SELL | F55: 13,373,596 | G55: 2.42 | H55: NSE
A56: 2022-05-02 | B56: FMNL | C56: Future Mkt Networks Ltd | D56: IDBI TRUSTEESHIP SERVICES LTD | E56: SELL | F56: 1,284,935 | G56: 5.9 | H56: NSE
A57: 2022-05-02 | B57: GOKEX | C57: Gokaldas Exports Limited | D57: GRAVITON RESEARCH CAPITAL LLP | E57: SELL | F57: 315,686 | G57: 436.57 | H57: NSE
A58: 2022-05-02 | B58: GOKEX | C58: Gokaldas Exports Limited | D58: XTX MARKETS LLP | E58: SELL | F58: 533,182 | G58: 441.02 | H58: NSE
A59: 2022-05-02 | B59: KRISHIVAL | C59: Empyrean Cashews Limited | D59: PRISMX GLOBAL VENTURES LIMITED | E59: SELL | F59: 180,000 | G59: 128.6 | H59: NSE
A60: 2022-05-02 | B60: MCDHOLDING | C60: McDowell Holdings Limited | D60: BAISIWALA SAMEER AJAY | E60: SELL | F60: 88,615 | G60: 76.14 | H60: NSE
A61: 2022-05-02 | B61: RIIL | C61: Reliance Indl Infra Ltd | D61: XTX MARKETS LLP | E61: SELL | F61: 328,234 | G61: 1116.31 | H61: NSE
A62: 2022-05-02 | B62: RIIL | C62: Reliance Indl Infra Ltd | D62: QE SECURITIES | E62: SELL | F62: 131,083 | G62: 1112.89 | H62: NSE
A63: 2022-05-02 | B63: RIIL | C63: Reliance Indl Infra Ltd | D63: HRTI PRIVATE LIMITED | E63: SELL | F63: 114,882 | G63: 1113.76 | H63: NSE
A64: 2022-05-02 | B64: RIIL | C64: Reliance Indl Infra Ltd | D64: GRAVITON RESEARCH CAPITAL LLP | E64: SELL | F64: 376,039 | G64: 1117.43 | H64: NSE
A65: 2022-05-02 | B65: RUPA | C65: Rupa & Company Ltd | D65: XTX MARKETS LLP | E65: SELL | F65: 545,601 | G65: 559.82 | H65: NSE
A66: 2022-05-02 | B66: VCL | C66: Vaxtex Cotfab Limited | D66: SHANI BHATI | E66: SELL | F66: 350,000 | G66: 26.84 | H66: NSE
A67: 2022-05-02 | B67: VIVIDHA | C67: Visagar Polytex Ltd | D67: ADROIT FINANCIAL SERVICES PVT LTD | E67: SELL | F67: 1,494,883 | G67: 1.76 | H67: NSE
A68: 2022-05-02 | B68: ZEELEARN | C68: Zee Learn Limited | D68: TOPGAIN FINANCE PRIVATE LIMITED | E68: SELL | F68: 1,941,480 | G68: 7.39 | H68: NSE
A69: 2022-05-02 | B69: ZEELEARN | C69: Zee Learn Limited | D69: COPTHALL MAURITIUS INVESTMENT LIMITED | E69: SELL | F69: 4,500,000 | G69: 7.34 | H69: NSE
A70: 2022-05-02 | B70: ZEELEARN | C70: Zee Learn Limited | D70: ALPHA LEON ENTERPRISES LLP | E70: SELL | F70: 3,335,727 | G70: 7.32 | H70: NSE

Sheet Call Tracker (Equity & F&O)
M5: Back To Main Page
A6: Retail Research Technical Calls & Fundamental Performance Report for the month of Apr-2022
M7: =Main!B10 -> 2022-05-04
B8: Positional Call
A9: Sr.no | B9: Date | D9: Company | E9: Rec | F9: Rec Price | G9: Stop Loss*** | H9: Call Closed At | I9: Target | J9: Remark | K9: Profit / Loss per Share | L9: All charges | M9: Net Gain / Loss % | N9: Status | O9: Closed Date | P9: Market Closing Price
A10: 1 | B10: 2022-03-21 | D10: WHIRLPOOL | E10: Buy | F10: 1640 | G10: 1530 | H10: 1675 | I10: 1800-1900 | J10: Profit of Rs.35/- | K10: =H10-F10 -> 35 | L10: =(F10*-0.7)/100 -> -11.48 | M10: =(K10+L10)/F10 -> 1.43% | N10: Successful | O10: 2022-05-02 | P10: =VLOOKUP(D10,'MidCap Intra'!B18:C572,2,0) -> 1646.1 | R10: H
A11: 2 | B11: 2022-04-13 | D11: CAMS | E11: Buy | F11: 2580-2610 | G11: 2395 | I11: 2800-2900 | J11: Open | P11: =VLOOKUP(D11,'MidCap Intra'!B26:C580,2,0) -> 2439.65 | R11: H
A12: 3 | B12: 2022-04-19 | D12: REDINGTON | E12: Buy | F12: 157-159 | G12: 149 | I12: 170-180 | J12: Open | P12: =VLOOKUP(D12,'MidCap Intra'!B27:C581,2,0) -> 150.45 | R12: H
A13: 4 | B13: 2022-04-20 | D13: IRCTC | E13: Buy | F13: 750-760 | G13: 695 | I13: 830-900 | J13: Open | P13: =VLOOKUP(D13,'MidCap Intra'!B28:C582,2,0) -> 737.5 | R13: H
A17: CLBS = Closing Basis ***
A18: Dividend adjusted <> | F18: Reinitiated $
A19: Part book {} | D19: s | F19: Revised stoploss #
B21: Momentum Call
A22: Sr.no | B22: Date | D22: Company | E22: Rec | F22: Rec Price | G22: Stop Loss | H22: Call Closed At | I22: Target | J22: Remark | K22: Profit / Loss per Share/Lot | L22: All charges | M22: Net Gain / Loss % | N22: Status | O22: Closed Date
A23: 1 | B23: 2022-04-20 | D23: CANBK | E23: Buy | F23: 233-234 | G23: 227 | I23: 242-250 | J23: Open | R23: H
A24: 2 | B24: 2022-04-21 | D24: SUPREMEIND | E24: Buy | F24: 1975-1985 | G24: 1920 | I24: 2050-2100 | J24: Open | R24: H
A25: 3 | B25: 2022-04-21 | D25: HDFCBANK | E25: Buy | F25: 1370-1380 | G25: 1340 | I25: 1450 | J25: Open | R25: H
A26: 4 | B26: 2022-04-22 | D26: MTARTECH | E26: Buy | F26: 1705-1715 | G26: 1647 | I26: 1760-1800 | J26: Open | R26: H
A27: 5 | B27: 2022-04-25 | D27: TATAPOWER | E27: Buy | F27: 247-250 | G27: 240 | I27: 265 | J27: Open | R27: H
A28: 6 | B28: 2022-04-28 | D28: AEGISCHEM | E28: Buy | F28: 219-220 | G28: 214 | I28: 230-232 | J28: Open
A31: CLBS = Closing Basis *** | H31: *
A32: Dividend adjusted <> | F32: Reinitiated $
F33: Revised stoploss #
A35: Master Trade High Risk
A36: Sr.no | B36: Date | D36: Company | E36: Rec | F36: Rec Price | G36: Stop Loss | H36: Call Closed At | I36: Target | J36: Remark | K36: Profit / Loss per share | L36: All charges | M36: Gain / Loss per Lot | N36: Lot | O36: Status | P36: Closed Date
A37: 1 | B37: 2022-04-29 | D37: APOLLOHOSP MAY FUT | E37: Buy | F37: 4545 | G37: 4440 | H37: 4440 | I37: 4700-4750 | J37: Loss of Rs.105/- | K37: =H37-F37 -> -105 | L37: 100.00 | M37: =(K37*N37)-L37 -> -13225.0 | N37: 125 | O37: Unsuccessful | P37: 2022-05-02
A38: 2 | B38: 2022-04-29 | D38: HDFCAMC MAY FUT | E38: Buy | F38: 2055-2065 | G38: 1990 | I38: 2150-2180 | J38: Open
A39: 3 | B39: 2022-05-02 | D39: COLPAL MAY FUT | E39: Buy | F39: 1623-1626 | G39: 1585 | I39: 1670-1720 | J39: Open
A43: Master Trade Medium Risk
A44: Sr.no | B44: Date | D44: Company | E44: Rec | F44: Rec Price | G44: Stop Loss | H44: Call Closed At | I44: Target | J44: Remark | K44: Profit/ Loss per lot | L44: All charges | M44: Gain / Loss per Lot | N44: Lot | O44: Status | P44: Closed Date
A45: 1 | B45: 2022-05-02 | D45: HDFC MAY 2300 CE | E45: Buy | F45: 54-57 | G45: 29 | I45: 70-80 | J45: Open | R45: N
A46: 2 | B46: 2022-05-02 | D46: NIFTY 17000 PE 05-MAY | E46: Buy | F46: 80-85 | G46: 40 | I46: 140-165 | J46: Open
A49: Techno -Funda (positional)
A50: Sr.no | B50: Date | D50: Company | E50: Rec | F50: Rec Price | G50: Stop Loss*** | H50: Call Closed At | I50: Target | J50: Remark | K50: Profit / Loss per Share/Lot | L50: All charges | M50: Net Gain / Loss % | N50: Status | O50: Closed Date | P50: Market Closing Price
A51: 1 | B51: 2021-10-19 | D51: ITC | E51: Buy<> | F51: 235.25 | G51: 198 | I51: 320-340 | J51: Open | R51: H
A52: 2 | B52: 2022-03-31 | D52: KEC | E52: Buy | F52: 379 | G52: 348 | H52: 406 | I52: 420-450 | J52: Part profit of Rs.27/- | K52: =H52-F52 -> 27 | L52: =(F52*-0.7)/100 -> -2.65 | M52: =(K52+L52)/F52 -> 6.42% | N52: Successful | O52: 2022-04-06 | P52: =VLOOKUP(D52,'MidCap Intra'!B86:C640,2,0) -> 397.6 | R52: H
A53: 3 | B53: 2022-04-07 | D53: JKLAKSHMI | E53: Buy | F53: 445-455 | G53: 398 | I53: 520-560 | J53: Open | R53: H
A55: CLBS = Closing Basis *** | F55: Reinitiated $
A56: Dividend adjusted <> | F56: Revised stoploss # | H56: .................
B58: Intrday Call
A59: Sr.no | B59: Date | D59: Company | E59: Rec | F59: Rec Price | G59: Stop Loss | H59: Call Closed At | I59: Target | J59: Remark | K59: Profit / Loss per Share/Lot | L59: Gain / Loss per Lot | M59: Lot | N59: All charges | O59: Net Gain / Loss % | P59: Status | Q59: Closed Date
B72: Investment Idea
A73: Sr.no | B73: Date | D73: Company | E73: Rec | F73: Rec Price | G73: Point of Review | H73: Close Rate | I73: Target | J73: Remark | K73: Profit / Loss per Share | L73: Gain / Loss % | M73: Status | N73: Closed Date
A74: 1 | B74: 2013-11-01 | D74: L&T Finance Holding | E74: Accu | F74: 82.00 | G74: - | H74: 100 | I74: 100.00 | J74: Target Achieved | K74: =H74-F74 -> 18.00 | L74: =K74/F74 -> 21.95% | M74: Successful | N74: 2016-10-14
A75: 2 | B75: 2014-06-04 | D75: Finolex Inds | E75: Buy | F75: 257.00 | G75: - | H75: 300 | I75: 300.00 | J75: Target Achieved | K75: 43.00 | L75: 16.73% | M75: Successful | N75: 2014-07-02
A76: 3 | B76: 2014-07-08 | D76: JK Cement | E76: Buy | F76: 393.00 | G76: - | H76: 468 | I76: 468.00 | J76: Target Achieved | K76: 75.00 | L76: 19.08% | M76: Successful | N76: 2014-08-12
A77: 4 | B77: 2014-08-06 | D77: Finolex Cables | E77: Buy | F77: 205.00 | G77: - | H77: 275 | I77: 250.00 | J77: Target Achieved | K77: 70.00 | L77: 34.15% | M77: Successful | N77: 2014-11-19
A78: 5 | B78: 2014-09-04 | D78: Exide Inds | E78: Buy | F78: 162.00 | G78: - | H78: 190 | I78: 190.00 | J78: Target Achieved | K78: 28.00 | L78: 17.28% | M78: Successful | N78: 2015-01-02
A79: 6 | B79: 2014-09-04 | D79: Deepak Nitrite | E79: Buy | F79: 75.00 | G79: - | H79: 91.5 | I79: 95-100 | J79: Profit of Rs.16.50/- | K79: 16.50 | L79: 22.00% | M79: Successful | N79: 2014-11-11
A80: 7 | B80: 2014-10-01 | D80: Mercks | E80: Buy | F80: 850.00 | G80: - | H80: 982.5 | I80: 1050.00 | J80: Profit of Rs.132.50/- | K80: 132.50 | L80: 15.59% | M80: Successful | N80: 2015-02-04
A81: 8 | B81: 2014-10-01 | D81: Grindwell Norton | E81: Buy | F81: 475.00 | G81: - | H81: 515 | I81: 600.00 | J81: Profit of Rs.40/- | K81: 40.00 | L81: 8.42% | M81: Successful | N81: 2014-10-27
A82: 9 | B82: 2014-10-01 | D82: Snowman Logistics | E82: Buy | F82: 86.00 | G82: - | H82: 99 | I82: 140.00 | J82: Profit of Rs.13.00/- | K82: 13.00 | L82: 15.12% | M82: Successful | N82: 2014-10-27
A83: 10 | B83: 2014-10-14 | D83: Birla Corp | E83: Buy | F83: 496.60 | G83: - | H83: 621 | I83: 580.00 | J83: Target Achieved | K83: 124.40 | L83: 25.05% | M83: Successful | N83: 2016-08-23
A84: 11 | B84: 2014-10-14 | D84: Ultratech Cem | E84: Buy | F84: 2481.90 | G84: - | H84: 2840 | I84: 2870.00 | J84: Profit of Rs.358.10/- | K84: 358.10 | L84: 14.43% | M84: Successful | N84: 2015-01-13
A85: 12 | B85: 2014-10-16 | D85: Sintex Inds | E85: Buy | F85: 84.50 | G85: - | H85: 93 | I85: 110.00 | J85: Profit of Rs.8.50/- | K85: 8.50 | L85: 10.06% | M85: Successful | N85: 2014-10-27
A86: 13 | B86: 2014-10-16 | D86: HSIL | E86: Buy | F86: 401.00 | G86: - | H86: 428 | I86: 450.00 | J86: Profit of Rs.27.00/- | K86: 27.00 | L86: 6.73% | M86: Successful | N86: 2015-01-16
A87: 14 | B87: 2014-10-16 | D87: Eveready Inds | E87: Buy | F87: 101.00 | G87: - | H87: 112 | I87: 120.00 | J87: Profit of Rs.11.00/- | K87: 11.00 | L87: 10.89% | M87: Successful | N87: 2014-10-27
A88: 15 | B88: 2014-11-11 | D88: Pennar Inds | E88: Buy | F88: 59.00 | G88: - | H88: 76 | I88: 76.00 | J88: Target Achieved | K88: 17.00 | L88: 28.81% | M88: Successful | N88: 2017-10-24
A89: 16 | B89: 2014-11-11 | D89: Snowman Logistics | E89: Buy | F89: 99.00 | G89: - | H89: 120 | I89: 120.00 | J89: Profit of Rs.21/- | K89: 21.00 | L89: 21.21% | M89: Successful | N89: 2014-11-17
A90: 17 | B90: 2014-11-13 | D90: Dharamsi Morarji Chem | E90: Buy | F90: 22.00 | G90: - | H90: 33.55 | I90: 32.00 | J90: Profit of Rs 11.55/- | K90: 11.55 | L90: 52.50% | M90: Successful | N90: 2015-07-03
A91: 18 | B91: 2014-12-03 | D91: Tatachem | E91: Buy | F91: 440.00 | G91: - | H91: 520 | I91: 520.00 | J91: Profit of Rs 80.00/- | K91: 80.00 | L91: 18.18% | M91: Successful | N91: 2015-07-23
A92: 19 | B92: 2014-12-03 | D92: Advanta | E92: Buy | F92: 360.00 | G92: - | H92: 427 | I92: 425.00 | J92: Profit of Rs.67.00/- | K92: 67.00 | L92: 18.61% | M92: Successful | N92: 2015-02-23
A93: 20 | B93: 2015-01-08 | D93: GDL | E93: Buy | F93: 360.00 | G93: - | H93: 455 | I93: 420.00 | J93: Profit of Rs.95.00/- | K93: 95.00 | L93: 26.39% | M93: Successful | N93: 2015-01-20
A94: 21 | B94: 2015-01-08 | D94: NRB Bearing | E94: Buy | F94: 130.00 | H94: 175.5 | I94: 165.00 | J94: Profit of Rs 45.50/- | K94: 45.50 | L94: 35.00% | M94: Successful | N94: 2017-12-19
A95: 22 | B95: 2015-02-05 | D95: GSFC | E95: Accu | F95: 98.00 | H95: 120 | I95: 120.00 | J95: Target Achieved | K95: 22.00 | L95: 22.45% | M95: Successful | N95: 2017-01-18
A96: 23 | B96: 2015-02-05 | D96: Sundrmfast | E96: Accu | F96: 196.00 | H96: 262 | I96: 255.00 | J96: Target Achieved | K96: 66.00 | L96: 33.67% | M96: Successful | N96: 2016-08-17
A97: 24 | B97: 2015-03-04 | D97: GPPL | E97: Accu | F97: 235 | H97: 77.00 | I97: 280-285 | J97: Loss of Rs.158/- | K97: -158.00 | L97: -67.23% | M97: Unsuccessful | N97: 2019-02-26
A98: 25 | B98: 2015-03-04 | D98: ORIENTCEM | E98: Accu | F98: 185.00 | H98: 224 | I98: 220-225 | J98: Target Achieved | K98: 39.00 | L98: 21.08% | M98: Successful | N98: 2016-10-04
A99: 26 | B99: 2015-03-27 | D99: PFS | E99: Accu | F99: 49.5 | H99: 15.85 | I99: 67.00 | J99: Loss of Rs.33.65/- | K99: -33.65 | L99: -68% | M99: Unsuccessful | N99: 2019-06-11
A100: 27 | B100: 2015-03-30 | D100: Walchandnagar Ind Ltd | E100: Accu | F100: 183.50 | H100: 219 | I100: 218.00 | J100: Profit of Rs.35.50/- | K100: 35.50 | L100: 19.35% | M100: Successful | N100: 2015-04-09
A101: 28 | B101: 2015-04-20 | D101: Kalpataru Power Transmission Ltd | E101: Accu | F101: =(227+237)/2 -> 232.00 | H101: 298 | I101: 298.00 | J101: Target Achieved | K101: 66.00 | L101: 28.45% | M101: Successful | N101: 2017-03-29
A102: 29 | B102: 2015-05-04 | D102: Mastek Ltd | E102: Buy | F102: 385.00 | H102: =212.5+331 -> 543.5 | I102: 510.00 | J102: Profit of Rs 158.50/- | K102: 158.50 | L102: 41.17% | M102: Successful | N102: 2015-08-19
A103: 30 | B103: 2015-05-04 | D103: Suprajit Eng | E103: Buy | F103: 115.50 | H103: 146 | I103: 142.00 | J103: Profit of Rs 30.50/- | K103: 30.50 | L103: 26.41% | M103: Successful | N103: 2015-07-17
A104: 31 | B104: 2015-05-27 | D104: TCI | E104: Buy | F104: 237.50 | H104: 279.5 | I104: 278.00 | J104: Target Achieved | K104: 42.00 | L104: 17.68% | M104: Successful | N104: 2015-08-06
A105: 32 | B105: 2015-06-19 | D105: HSIL | E105: Accu | F105: 340.00 | H105: 448 | I105: 448.00 | J105: Target Achieved | K105: 108.00 | L105: 31.76% | M105: Successful | N105: 2017-10-10
A106: 33 | B106: 2015-07-06 | D106: Capital First | E106: Accu | F106: 390.00 | H106: 460 | I106: 460.00 | J106: Target Achieved | K106: 70.00 | L106: 17.95% | M106: Successful | N106: 2016-04-18
A107: 34 | B107: 2015-07-10 | D107: Dolphin OffShore | E107: Accu | F107: 122.5 | H107: 61.00 | I107: 172.00 | J107: Loss of Rs.61.50/- | K107: -61.50 | L107: -50.20% | M107: Unsuccessful | N107: 2018-08-21
A108: 35 | B108: 2015-08-03 | D108: Allcargo logistics | E108: Accu | F108: 297.50 | H108: 350 | I108: 360.00 | J108: Profit of Rs 52.50/- | K108: 52.50 | L108: 17.65% | M108: Successful | N108: 2015-08-16
A109: 36 | B109: 2015-08-03 | D109: Camline Fine | E109: Accu | F109: 115.50 | H109: 149 | I109: 140.00 | J109: Profit of Rs 33.50/- | K109: 33.50 | L109: 29.00% | M109: Successful | N109: 2017-01-05
A110: 37 | B110: 2015-09-04 | D110: TCI | E110: Accu | F110: 226.00 | H110: 292 | I110: 292.00 | J110: Target Achieved | K110: 66.00 | L110: 29.20% | M110: Successful | N110: 2015-10-09
A111: 38 | B111: 2015-09-07 | D111: Kalpataru Power Transmission Ltd | E111: Accu | F111: 232.50 | H111: 312.5 | I111: 310.00 | J111: Target Achieved | K111: 80.00 | L111: 34.41% | M111: Successful | N111: 2017-03-29
A112: 39 | B112: 2015-09-21 | D112: LLOYD ELECTRIC & ENG LTD | E112: Accu | F112: 196.50 | H112: 238 | I112: 238.00 | J112: Target Achieved | K112: 41.50 | L112: 21.12% | M112: Successful | N112: 2015-10-14
A113: 40 | B113: 2015-09-24 | D113: L&T Finance Holding | E113: Accu | F113: 65.00 | H113: 82 | I113: 82.00 | J113: Target Achieved | K113: 17.00 | L113: 26.15% | M113: Successful | N113: 2016-07-27
A114: 41 | B114: 2015-10-14 | D114: KEC International ltd | E114: Accu | F114: 144.00 | H114: 182.5 | I114: 181.00 | J114: Target Achieved | K114: 38.50 | L114: 26.74% | M114: Successful | N114: 2017-03-23
A115: 42 | B115: 2015-10-14 | D115: Gruh Finance | E115: Accu | F115: 264.00 | H115: 311 | I115: 311.00 | J115: Target Achieved | K115: 47.00 | L115: 17.80% | M115: Successful | N115: 2016-08-22
A116: 43 | B116: 2015-11-10 | D116: Pidilitind | E116: Buy | F116: 549.50 | H116: 630 | I116: 630.00 | J116: Target Achieved | K116: 80.50 | L116: 14.65% | M116: Successful | N116: 2016-02-19
A117: 44 | B117: 2015-12-04 | D117: Zensar Technology | E117: Accu | F117: 1027.50 | H117: 1315 | I117: 1250.00 | J117: Target Achieved | K117: 287.50 | L117: 27.98% | M117: Successful | N117: 2018-05-24
A118: 45 | B118: 2015-12-29 | D118: Vinati Organics Ltd | E118: Accu | F118: 465.00 | H118: 540 | I118: 540.00 | J118: Target Achieved | K118: 75.00 | L118: 16.13% | M118: Successful | N118: 2016-06-09
A119: 46 | B119: 2016-01-11 | D119: GSFC | E119: Buy | F119: 81.00 | H119: 110 | I119: 110.00 | J119: Target Achieved | K119: 29.00 | L119: 35.80% | M119: Successful | N119: 2017-01-10
A120: 47 | B120: 2016-01-13 | D120: SSWL | E120: Buy | F120: 417.50 | H120: 547 | I120: 535.00 | J120: Target Achieved | K120: 129.50 | L120: 31.02% | M120: Successful | N120: 2016-07-27
A121: 48 | B121: 2016-02-08 | D121: Persistent System Ltd | E121: Accu | F121: 650.00 | H121: 800 | I121: 800.00 | J121: Target Achieved | K121: 150.00 | L121: 23.08% | M121: Successful | N121: 2018-02-23
A122: 49 | B122: 2016-03-04 | D122: UPL | E122: Accu | F122: 437.50 | H122: 504.5 | I122: 522.00 | J122: Profit of Rs.67/- | K122: 67.00 | L122: 15.31% | M122: Successful | N122: 2016-04-20
A123: 50 | B123: 2016-03-09 | D123: Ashoka Buildcon Ltd | E123: Accu | F123: 189.50 | H123: 218 | I123: 218.00 | J123: Target Achieved | K123: 28.50 | L123: 15.04% | M123: Successful | N123: 2017-10-26
A124: 51 | B124: 2016-04-11 | D124: PTC INDIA FIN SERV LTD | E124: Accu | F124: 36.5 | H124: 15.85 | I124: 60.00 | J124: Loss of Rs.20.65/- | K124: -20.65 | L124: -56.58% | M124: Unsuccessful | N124: 2019-06-11
A125: 52 | B125: 2016-04-12 | D125: CAMLINFINE $ | E125: Accu | F125: 93.00 | H125: 149 | I125: 140.00 | J125: Profit of Rs 56/- | K125: 56.00 | L125: 60.22% | M125: Successful | N125: 2017-01-05
A126: 53 | B126: 2016-04-12 | D126: Greaves Cotton Ltd. | E126: Accu | F126: 130.00 | H126: 150 | I126: 150-155 | J126: Target Achieved | K126: 20.00 | L126: 15.38% | M126: Successful | N126: 2016-07-13
A127: 54 | B127: 2016-04-13 | D127: DHFL | E127: Accu | F127: 196.00 | H127: 299 | I127: 299.00 | J127: Target Achieved | K127: 103.00 | L127: 52.55% | M127: Successful | N127: 2016-09-07
A128: 55 | B128: 2016-04-13 | D128: Magma | E128: Accu | F128: 88.00 | H128: 103 | I128: 103.00 | J128: Target Achieved | K128: 15.00 | L128: 17.05% | M128: Successful | N128: 2016-06-09
A129: 56 | B129: 2016-05-02 | D129: KEC International ltd $ | E129: Accu | F129: 127.50 | H129: 148 | I129: 148-150 | J129: Target Achieved | K129: =H129-F129 -> 20.50 | L129: =K129/F129 -> 16.08% | M129: Successful | N129: 2016-07-13
A130: 57 | B130: 2016-05-03 | D130: Mindtree | E130: Accu | F130: 675.00 | H130: 815 | I130: 790-800 | J130: Target Achieved | K130: =H130-F130 -> 140.00 | L130: =K130/F130 -> 20.74% | M130: Successful | N130: 2018-02-23
A131: 58 | B131: 2016-06-01 | D131: Atulauto | E131: Accu | F131: 500 | H131: 232.50 | I131: 565-570 | J131: Loss of Rs.267.50 /- | K131: =H131-F131 -> -267.50 | L131: =K131/F131 -> -53.50% | M131: Unsuccessful | N131: 2019-09-27
A132: 59 | B132: 2016-06-06 | D132: TRITURBINE | E132: Accu | F132: 110.00 | H132: 126.5 | I132: 125.00 | J132: Profit of Rs.16.50/- | K132: =H132-F132 -> 16.50 | L132: =K132/F132 -> 15.00% | M132: Successful | N132: 2016-07-01
A133: 60 | B133: 2016-06-17 | D133: Pennar Industries Ltd | E133: Accu | F133: 44.00 | H133: 69.5 | I133: 69.50 | J133: Profit of Rs.25.50/- | K133: =H133-F133 -> 25.50 | L133: =K133/F133 -> 57.95% | M133: Successful | N133: 2017-08-30
A134: 61 | B134: 2016-06-28 | D134: EVEREADY | E134: Accu | F134: 262.50 | H134: 340 | I134: 333.00 | J134: Profit of Rs.77.50/- | K134: 77.50 | L134: 29.52% | M134: Successful | N134: 2017-10-09
A135: 62 | B135: 2016-06-28 | D135: FIEMIND | E135: Accu | F135: 840.00 | H135: 1230 | I135: 1230.00 | J135: Target Achieved | K135: 390.00 | L135: 46.43% | M135: Successful | N135: 2016-10-06
A136: 63 | B136: 2016-07-05 | D136: Bajaj Corp Ltd | E136: Accu | F136: 395 | H136: =(468.5+342.5)/2 -> 405.50 | I136: 510.00 | J136: Profit of Rs.10.50/- | K136: =H136-F136 -> 10.50 | L136: =K136/F136 -> 3% | M136: Neutral | N136: 2019-05-21
A137: 64 | B137: 2016-08-02 | D137: GPPL $ | E137: Buy | F137: =169.5-12.8 -> 156.7 | H137: 77.00 | I137: 198-200 | J137: Loss of Rs.79.7/- | K137: -79.70 | L137: -50.86% | M137: Unsuccessful | N137: 2019-02-26
A138: 65 | B138: 2016-08-04 | D138: WONDERLA HOLIDAYS LTD | E138: Accu | F138: 400 | H138: 305.00 | I138: 475.00 | J138: Loss of Rs.95/- | K138: -95.00 | L138: -23.75% | M138: Unsuccessful | N138: 2019-05-21
A139: 66 | B139: 2016-08-11 | D139: CAMLINFINE | E139: Accu | F139: 86.50 | H139: 130 | I139: 130.00 | J139: Profit of Rs.43.50/- | K139: 43.50 | L139: 50.29% | M139: Successful | N139: 2017-12-22
A140: 67 | B140: 2016-08-18 | D140: GRANULES | E140: Accu | F140: 133.5 | H140: 126.50 | I140: 178.00 | J140: Exit | K140: -7.00 | L140: -5.24% | M140: Unsuccessful | N140: 2016-09-02
A141: 68 | B141: 2016-08-31 | D141: VA TECH WABAG | E141: Accu | F141: 560.00 | H141: 725 | I141: 725.00 | J141: Target Achieved | K141: 165.00 | L141: 29.46% | M141: Successful | N141: 2016-03-27
A142: 69 | B142: 2016-09-01 | D142: SKIPPER LIMITED | E142: Accu | F142: 160.50 | H142: 210 | I142: 210.00 | J142: Target Achieved | K142: 49.50 | L142: 30.84% | M142: Successful | N142: 2017-05-16
A143: 70 | B143: 2016-10-03 | D143: IFBIND | E143: Accu | F143: 430.00 | H143: 596 | I143: 575.00 | J143: Profit of Rs.166/- | K143: 166.00 | L143: 38.60% | M143: Successful | N143: 2017-02-03
A144: 71 | B144: 2016-10-14 | D144: ASIANTILES | E144: Accu | F144: 280.00 | H144: 345 | I144: 345.00 | J144: Target Achieved | K144: =H144-F144 -> 65.00 | L144: =K144/F144 -> 23.21% | M144: Successful | N144: 2017-03-20
A145: 72 | B145: 2016-10-14 | D145: DEEPIND | E145: Accu | F145: 245.00 | H145: 325.5 | I145: 330.00 | J145: Profit of Rs.80.5/- | K145: 80.50 | L145: =K145/F145 -> 32.86% | M145: Successful | N145: 2017-02-03
A146: 73 | B146: 2016-10-17 | D146: DCBBANK | E146: Accu | F146: 125.00 | H146: 160 | I146: 160.00 | J146: Target Achieved | K146: 35.00 | L146: 28.00% | M146: Successful | N146: 2017-03-09
A147: 74 | B147: 2016-10-17 | D147: ORIENTREF | E147: Accu | F147: 114.00 | H147: 145 | I147: 145.00 | J147: Target Achieved | K147: 31.00 | L147: =K147/F147 -> 27.19% | M147: Successful | N147: 2017-05-04
A148: 75 | B148: 2016-10-17 | D148: GANECOS | E148: Accu | F148: 212.00 | H148: 280 | I148: 276.00 | J148: Profit of Rs.68/- | K148: 68.00 | L148: =K148/F148 -> 32.08% | M148: Successful | N148: 2017-05-03
A149: 76 | B149: 2016-11-04 | D149: NBCC | E149: Accu | F149: 155.00 | H149: 210 | I149: 210.00 | J149: Profit of Rs.55/- | K149: 55.00 | L149: =K149/F149 -> 35.48% | M149: Successful | N149: 2017-07-28
A150: 77 | B150: 2016-12-06 | D150: PRECAM | E150: Accu | F150: 150.5 | H150: 72.50 | I150: 174.00 | J150: Loss of Rs.78/- | K150: -78.00 | L150: -51.83% | M150: Unsuccessful | N150: 2018-08-21
A151: 78 | B151: 2016-12-08 | D151: INFRATEL | E151: Accu | F151: 380.00 | H151: 478 | I151: 468.00 | J151: Target Achieved | K151: =H151-F151 -> 98.00 | L151: =K151/F151 -> 25.79% | M151: Successful | N151: 2017-10-17
A152: 79 | B152: 2016-12-30 | D152: GODREJPROP | E152: Accu | F152: 305.00 | H152: 375 | I152: 375.00 | J152: Target Achieved | K152: =H152-F152 -> 70.00 | L152: =K152/F152 -> 22.95% | M152: Successful | N152: 2017-02-02
A153: 80 | B153: 2017-01-04 | D153: DEEPAKNTR | E153: Accu | F153: 99.50 | H153: 158 | I153: 158.00 | J153: Target Achieved | K153: =H153-F153 -> 58.50 | L153: =K153/F153 -> 58.79% | M153: Successful | N153: 2017-06-12
A154: 81 | B154: 2017-01-04 | D154: DEEPAKNTR | E154: Accu | F154: 99.50 | H154: 158 | I154: 158.00 | J154: Target Achieved | K154: 58.50 | L154: 58.79% | M154: Successful | N154: 2017-06-12
A155: 82 | B155: 2017-02-20 | D155: RECLTD | E155: Accu | F155: 140.50 | H155: 220 | I155: 220.00 | J155: Target Achieved | K155: =H155-F155 -> 79.50 | L155: =K155/F155 -> 56.58% | M155: Successful | N155: 2017-05-09
A156: 83 | B156: 2017-02-20 | D156: SUBROS | E156: Accu | F156: 202.50 | H156: 234 | I156: 234.00 | J156: Target Achieved | K156: 31.50 | L156: 15.56% | M156: Successful | N156: 2017-04-11
A157: 84 | B157: 2017-03-24 | D157: VRLLOG | E157: Accu | F157: 300.50 | H157: 417.5 | I157: 420.00 | J157: Profit of Rs.117/- | K157: =H157-F157 -> 117.00 | L157: =K157/F157 -> 38.94% | M157: Successful | N157: 2017-12-01
A158: 85 | B158: 2017-03-24 | D158: FIEMIND | E158: Accu | F158: 850.00 | H158: 1042.5 | I158: 1023.00 | J158: Profit of Rs 192.50/- | K158: 192.50 | L158: 22.65% | M158: Successful | N158: 2017-04-05
A159: 86 | B159: 2017-04-05 | D159: RATNAMANI | E159: Accu | F159: 785.00 | H159: 930 | I159: 920.00 | J159: Profit of Rs.145/- | K159: =H159-F159 -> 145.00 | L159: =K159/F159 -> 18.47% | M159: Successful | N159: 2017-08-29
A160: 87 | B160: 2017-04-06 | D160: ZEEMEDIA | E160: Accu | F160: 40 | H160: 13.10 | I160: 60.00 | J160: Loss of Rs.26.9/- | K160: -26.90 | L160: -67.25% | M160: Unsuccessful | N160: 2018-02-07
A161: 88 | B161: 2017-04-12 | D161: DABUR | E161: Accu | F161: 289.50 | H161: 354 | I161: 360.00 | J161: Profit of Rs.64.5/- | K161: =H161-F161 -> 64.50 | L161: =K161/F161 -> 22.28% | M161: Successful | N161: 2017-11-01
A162: 89 | B162: 2017-04-20 | D162: KPRMILL | E162: Accu | F162: 700.00 | H162: 840 | I162: 840.00 | J162: Profit of Rs.140/- | K162: 140.00 | L162: 20.00% | M162: Successful | N162: 2017-06-07
A163: 90 | B163: 2017-06-01 | D163: ESSELPACK | E163: Accu | F163: 130.00 | H163: 144.25 | I163: 170.00 | J163: Profit of Rs.14.25/- | K163: 14.25 | L163: 10.96% | M163: Successful | N163: 2019-07-29
A164: 91 | B164: 2017-06-15 | D164: KEI | E164: Accu | F164: 214.50 | H164: 262 | I164: 262.00 | J164: Profit of Rs.47.5/- | K164: 47.50 | L164: 22.14% | M164: Successful | N164: 2017-08-30
A165: 92 | B165: 2017-07-17 | D165: MAYURUNIQ | E165: Accu | F165: 370.00 | H165: 447.5 | I165: 450.00 | J165: Target Achieved | K165: 77.50 | L165: 20.95% | M165: Successful | N165: 2017-10-27
A166: 93 | B166: 2017-07-27 | D166: RAMCOCEM | E166: Accu | F166: 657.50 | H166: 825 | I166: 820.00 | J166: Target Achieved | K166: 167.50 | L166: 25.48% | M166: Successful | N166: 2017-12-21
A167: 94 | B167: 2017-08-17 | D167: FINPIPE | E167: Accu | F167: 605.00 | H167: 750 | I167: 750.00 | J167: Profit of Rs.145/- | K167: 145.00 | L167: 23.97% | M167: Successful | N167: 2017-10-19
A168: 95 | B168: 2017-09-01 | D168: SHK | E168: Accu | F168: 255 | H168: 217.25 | I168: 320.00 | J168: Loss of Rs.37.75/- | K168: -37.75 | L168: -15% | M168: Unsuccessful | N168: 2019-07-15
A169: 96 | B169: 2017-09-19 | D169: SKIPPER | E169: Accu | F169: 215.00 | H169: 258 | I169: 258.00 | J169: Target Achieved | K169: 43.00 | L169: 20.00% | M169: Successful | N169: 2017-11-01
A170: 97 | B170: 2017-09-19 | D170: SKIPPER | E170: Accu | F170: 215.00 | H170: 258 | I170: 258.00 | J170: Target Achieved | K170: 43.00 | L170: 20.00% | M170: Successful | N170: 2017-11-01
A171: 98 | B171: 2017-09-20 | D171: CAMLINFINE$ | E171: Accu | F171: 75.00 | H171: 90 | I171: 90.00 | J171: Profit of Rs.15.00/- | K171: =H171-F171 -> 15.00 | L171: =K171/F171 -> 20.00% | M171: Successful | N171: 2017-10-11
A172: 99 | B172: 2017-10-03 | D172: GNA | E172: Accu | F172: 315.00 | H172: 392 | I172: 384.00 | J172: Profit of Rs.77/- | K172: 77.00 | L172: 24.44% | M172: Successful | N172: 2017-10-09
A173: 100 | B173: 2017-10-05 | D173: NOCIL | E173: Accu | F173: 145.00 | H173: 179 | I173: 180.00 | J173: Profit of Rs.34/- | K173: 34.00 | L173: 23.45% | M173: Successful | N173: 2017-10-17
A174: 101 | B174: 2017-10-06 | D174: CENTURYPLY | E174: Accu | F174: 256.00 | H174: 323 | I174: 320.00 | J174: Target Achieved | K174: 67.00 | L174: 26.17% | M174: Successful | N174: 2017-11-28
A175: 102 | B175: 2017-10-09 | D175: EIHOTEL | E175: Accu | F175: 137.50 | H175: 184 | I175: 183.00 | J175: Profit of Rs.46.5/- | K175: 46.50 | L175: 33.82% | M175: Successful | N175: 2018-01-08
A176: 103 | B176: 2017-10-10 | D176: NRBBEARING | E176: Accu | F176: 125.50 | H176: 158 | I176: 155.00 | J176: Profit of Rs.32.5/- | K176: 32.50 | L176: 25.90% | M176: Successful | N176: 2017-11-28
A177: 104 | B177: 2017-10-10 | D177: BOROSIL | E177: Accu | F177: 895.00 | H177: 1122.5 | I177: 1078.00 | J177: Profit of Rs.227.5/- | K177: 227.50 | L177: 25.42% | M177: Successful | N177: 2018-01-17
A178: 105 | B178: 2017-10-12 | D178: CYIENT | E178: Accu | F178: 525.00 | H178: 629 | I178: 629.00 | J178: Target Achieved | K178: 104.00 | L178: 19.81% | M178: Successful | N178: 2018-01-19
A179: 106 | B179: 2017-11-07 | D179: HATSUN | E179: Accu | F179: 740.00 | H179: 892.5 | I179: 900.00 | J179: Profit of Rs.152.5/- | K179: =H179-F179 -> 152.50 | L179: =K179/F179 -> 20.61% | M179: Successful | N179: 2017-11-13
A180: 107 | B180: 2017-12-04 | D180: SANGHIIND | E180: Accu | F180: 118.50 | H180: 143.5 | I180: 145.00 | J180: Profit of Rs.25/- | K180: =H180-F180 -> 25.00 | L180: =K180/F180 -> 21.10% | M180: Successful | N180: 2017-12-28
A181: 108 | B181: 2017-12-21 | D181: KAJARIACER | E181: Accu | F181: 715 | H181: 500.00 | I181: 872.00 | J181: Loss of Rs.215/- | K181: =H181-F181 -> -215.00 | L181: =K181/F181 -> -30.07% | M181: Unsuccessful | N181: 2019-07-24
A182: 109 | B182: 2017-12-29 | D182: GNA | E182: Accu | F182: 435.00 | H182: 542.5 | I182: 539.00 | J182: Target Achieved | K182: 107.50 | L182: 24.71% | M182: Successful | N182: 2018-04-16
A183: 110 | B183: 2017-12-29 | D183: ZENSARTECH | E183: Accu | F183: 885.00 | H183: 1090 | I183: 1084.00 | J183: Target Achieved | K183: 205.00 | L183: 23.16% | M183: Successful | N183: 2018-04-23
A184: 111 | B184: 2018-04-02 | D184: EVERESTIND | E184: Accu | F184: 478.50 | H184: 442 | I184: 613.00 | J184: Loss of Rs.36.50 /- | K184: =H184-F184 -> -36.50 | L184: =K184/F184 -> -7.63% | M184: Unsuccessful | N184: 2019-10-24
A185: 112 | B185: 2018-04-04 | D185: GPPL$ | E185: Accu | F185: =141.5-7.3 -> 134.2 | H185: 77.00 | I185: 180.00 | J185: Loss of Rs.57.2/- | K185: =H185-F185 -> -57.20 | L185: =K185/F185 -> -42.62% | M185: Unsuccessful | N185: 2019-02-26
A186: 113 | B186: 2018-04-19 | D186: MANPASAND | E186: Accu | F186: 430 | H186: 220.00 | I186: 537.00 | J186: Loss of Rs.210/- | K186: =H186-F186 -> -210.00 | L186: =K186/F186 -> -48.84% | M186: Unsuccessful | N186: 2018-06-01
A187: 114 | B187: 2018-04-30 | D187: HEIDELBERG | E187: Accu | F187: 153.5 | H187: 196 | I187: 196.00 | J187: Profit of Rs.42.50/- | K187: =H187-F187 -> 42.50 | L187: =K187/F187 -> 27.69% | M187: Successful | N187: 2019-05-20
A188: 115 | B188: 2018-07-25 | D188: ZEEMEDIA | E188: Accu | F188: 27.5 | H188: 13.10 | I188: 60.00 | J188: Loss of Rs.14.40/- | K188: -14.40 | L188: -52.36% | M188: Unsuccessful | N188: 2018-02-07
A189: 116 | B189: 2018-08-06 | D189: GABRIEL | E189: Accu | F189: 148.5 | H189: 102 | I189: 182.00 | J189: Loss of Rs.46.50/- | K189: =H189-F189 -> -46.50 | L189: =K189/F189 -> -31.31% | M189: Unsuccessful | N189: 2019-07-15
A190: 117 | B190: 2018-08-23 | D190: INDIANHUME | E190: Accu | F190: 285 | H190: 355 | I190: 364.00 | J190: Profit of Rs.70/- | K190: 70.00 | L190: 24.56% | M190: Successful | N190: 2018-12-21
A191: 118 | B191: 2018-08-29 | D191: GRINDWELL | E191: Accu | F191: 525 | H191: 585 | I191: 635.00 | J191: Profit of Rs.60- | K191: =H191-F191 -> 60.00 | L191: =K191/F191 -> 11.43% | M191: Successful | N191: 2019-07-16
A192: 119 | B192: 2018-10-22 | D192: FINPIPE | E192: Accu | F192: 475 | H192: 574 | I192: 570.00 | J192: Target Achieved | K192: 99.00 | L192: 20.84% | M192: Successful | N192: 2018-10-30
A193: 120 | B193: 2018-10-24 | D193: GULFOILLUB | E193: Accu | F193: 707.5 | H193: 872 | I193: 872.00 | J193: Target Achieved | K193: 164.50 | L193: 23.25% | M193: Successful | N193: 2019-01-17
A194: 121 | B194: 2018-10-25 | D194: DBCORP | E194: Accu | F194: 162 | H194: 204 | I194: 209.00 | J194: Profit of Rs.42/- | K194: 42.00 | L194: 25.93% | M194: Successful | N194: 2019-03-15
A195: 122 | B195: 2018-10-26 | D195: RITES | E195: Accu | F195: 240 | H195: 297 | I195: 297.00 | J195: Target Achieved | K195: 57.00 | L195: 23.75% | M195: Successful | N195: 2018-11-13
A196: 123 | B196: 2018-12-05 | D196: BRIGADE | E196: Accu | F196: 202.5 | H196: 255 | I196: 252.00 | J196: Target Achieved | K196: 52.50 | L196: 25.93% | M196: Successful | N196: 2019-03-18 | R196: V
A197: 124 | B197: 2018-12-31 | D197: JKCEMENT | E197: Accu | F197: 710 | H197: 866 | I197: 866.00 | J197: Target Achieved | K197: 156.00 | L197: 21.97% | M197: Successful | N197: 2019-03-29 | R197: V
A198: 125 | B198: 2019-02-26 | D198: MARICO | E198: Accu | F198: 337.25 | H198: 398.5 | I198: 411.00 | J198: Profit of Rs.61.25/- | K198: 61.25 | L198: 18.16% | M198: Successful | N198: 2019-10-22 | R198: V
A199: 126 | B199: 2019-04-04 | D199: ITDCEM | E199: Accu | F199: 130 | H199: 65 | I199: 158.00 | J199: Loss of Rs.65 /- | K199: -65.00 | L199: -50.00% | M199: Unsuccessful | N199: 2019-09-18 | R199: K
A200: 127 | B200: 2017-10-09 | D200: RECLTD | E200: Accu | F200: 141.5 | H200: 183.5 | I200: 210.00 | J200: Profit of Rs.42/- | K200: 42.00 | L200: 29.68% | M200: Successful | N200: 2017-11-03 | R200: K
A201: 128 | B201: 2017-12-05 | D201: ALLCARGO | E201: Accu | F201: 172.00 | H201: 155.25 | I201: 230.00 | J201: Loss of Rs.16.75/- | K201: -16.75 | L201: -9.74% | M201: Unsuccessful | N201: 2019-11-18 | R201: K
A202: 129 | B202: 2018-10-25 | D202: GODREJCP | E202: Accu | F202: 698.5 | H202: 890 | I202: 890.00 | J202: Profit of Rs.191.50/- | K202: 191.50 | L202: 27.42% | M202: Successful | N202: 2021-05-12 | R202: V
A203: 130 | B203: 2017-05-22 | D203: GREAVESCOT | E203: Accu | F203: 127.6 | H203: 138 | I203: 190.00 | J203: Profit of Rs.10.40 | K203: 10.40 | L203: 8.15% | M203: Successful | N203: 2019-11-05 | R203: K
A204: 131 | B204: 2018-02-27 | D204: MOLDTKPAC | E204: Accu | F204: 317 | H204: 382.5 | I204: 398.00 | J204: Profit of Rs.65.5 | K204: 65.50 | L204: 20.66% | M204: Successful | N204: 2021-02-11 | R204: K
A205: 132 | B205: 2018-03-05 | D205: LICHSGFIN | E205: Accu | F205: =510-14.4 -> 495.60 | H205: 350 | I205: 672.00 | J205: Loss of Rs.145.60/- | K205: -145.60 | L205: -29.38% | M205: Unsuccessful | N205: 2020-02-26 | R205: V
A206: 133 | B206: 2018-05-17 | D206: PHILIPCARB | E206: Accu | F206: 230.30 | H206: 102.5 | I206: 348.00 | J206: Loss of Rs.127.80/- | K206: -127.80 | L206: -55.49% | M206: Unsuccessful | N206: 2020-03-06 | R206: V
A207: 134 | B207: 2018-06-07 | D207: KEC | E207: Accu | F207: =342.5-5.1 -> 337.4 | H207: 412.5 | I207: 439.00 | J207: Profit of Rs.75.10 | K207: 75.10 | L207: 22.26% | M207: Successful | N207: 2021-02-03 | R207: K
A208: 135 | B208: 2018-07-04 | D208: ASHOKLEY | E208: Accu | F208: =127.5-5.53 -> 121.97 | H208: 122.50 | I208: 170.00 | J208: Profit of Rs.0.53/- | K208: 0.53 | L208: 0% | M208: Neutral | N208: 2021-08-23 | R208: V
A209: 136 | B209: 2018-07-13 | D209: FCONSUMER | E209: Accu | F209: 46.50 | H209: 17 | I209: 59.00 | J209: Loss of Rs.29.50/- | K209: =H209-F209 -> -29.50 | L209: =K209/F209 -> -63.44% | M209: Unsuccessful | N209: 2020-02-26 | R209: V
A210: 137 | B210: 2018-10-23 | D210: JKPAPER | E210: Accu | F210: 156.5 | H210: 207.5 | I210: 191.00 | J210: Target Achieved | K210: 51.00 | L210: 32.59% | M210: Successful | N210: 2021-06-22 | R210: V
A211: 138 | B211: 2018-12-05 | D211: CCL | E211: Accu | F211: 259.5 | H211: 320 | I211: 320.00 | J211: Target Achieved | K211: 60.50 | L211: 23.31% | M211: Successful | N211: 2021-05-07 | R211: V
A212: 139 | B212: 2018-12-05 | D212: VARROC | E212: Accu | F212: 715 | H212: 445 | I212: 840.00 | J212: Loss of Rs.270/- | K212: -270.00 | L212: -37.76% | M212: Unsuccessful | N212: 2019-12-01 | R212: V
A213: 140 | B213: 2019-01-04 | D213: MGL | E213: Accu | F213: 875 | H213: 1165 | I213: 1185.00 | J213: Profit of Rs.290/- | K213: 290.00 | L213: 33.14% | M213: Successful | N213: 2020-01-17 | R213: V
A214: 141 | B214: 2019-04-04 | D214: COCHINSHIP | E214: Accu | F214: =387-14.63 -> 372.37 | H214: 490 | I214: 490.00 | J214: Target Achieved | K214: 117.63 | L214: 31.59% | M214: Successful | N214: 2020-01-20 | R214: V
A215: 142 | B215: 2019-04-23 | D215: MAHINDCIE | E215: Buy | F215: 220 | H215: 127.5 | I215: 284.00 | J215: Loss of Rs.92.50/- | K215: -92.50 | L215: -42.05% | M215: Unsuccessful | N215: 2020-03-06 | R215: V
A216: 143 | B216: 2019-06-06 | D216: RADICO | E216: Buy | F216: 332.8 | H216: 405 | I216: 419.00 | J216: Profit of Rs.72.20/- | K216: 72.20 | L216: 21.69% | M216: Successful | N216: 2020-01-30 | R216: K
A217: 144 | B217: 2019-06-25 | D217: M&MFIN | E217: Accu | F217: 386 | H217: 395.00 | I217: 452.00 | J217: Profit of Rs.9/- | K217: 9.00 | L217: 2% | M217: Neutral | N217: 2020-02-07 | R217: K
A218: 145 | B218: 2019-08-30 | D218: INDHOTEL | E218: Accu | F218: 137.5 | H218: 138.50 | I218: 190.00 | J218: Profit of Rs.1/- | K218: =H218-F218 -> 1.00 | L218: =K218/F218 -> 1% | M218: Neutral | N218: 2021-08-24 | R218: V
A219: 146 | B219: 2019-09-23 | D219: KNRCON | E219: Accu | F219: 235 | H219: 295 | I219: 296.00 | J219: Profit of Rs.60/- | K219: =H219-F219 -> 60.00 | L219: =K219/F219 -> 25.53% | M219: Successful | N219: 2020-01-14 | R219: K
A220: 147 | B220: 2019-10-14 | D220: KEC$ | E220: Accu | F220: 277.5 | H220: 333 | I220: 333.00 | J220: Profit of Rs.55.50/- | K220: 55.50 | L220: 20.00% | M220: Successful | N220: 2020-01-16 | R220: V
A221: 148 | B221: 2019-10-14 | D221: MGL$ | E221: Accu | F221: 930 | H221: 1165 | I221: 1200.00 | J221: Profit of Rs.235/- | K221: 235.00 | L221: 25.27% | M221: Successful | N221: 2020-01-17 | R221: K
A222: 149 | B222: 2019-10-15 | D222: JKPAPER$ | E222: Accu | F222: 111.00 | H222: 141 | I222: 141.00 | J222: Profit of Rs.30/- | K222: 30.00 | L222: 27.03% | M222: Successful | N222: 2021-05-12 | R222: K
A223: 150 | B223: 2019-10-15 | D223: RADICO$ | E223: Accu | F223: 296.00 | H223: 370 | I223: 370.00 | J223: Target Achieved | K223: 74.00 | L223: 25.00% | M223: Successful | N223: 2020-01-23 | R223: K
A224: 151 | B224: 2019-10-16 | D224: MOLDTKPAC$ | E224: Accu | F224: 300.00 | H224: 382.5 | I224: 344.00 | J224: Profit of Rs.82.5/- | K224: 82.50 | L224: 27.50% | M224: Successful | N224: 2021-02-11 | R224: K
A225: 152 | B225: 2020-01-02 | D225: PSPPROJECT | E225: Accu | F225: 495.00 | H225: 595 | I225: 590.00 | J225: Profit of Rs.100/- | K225: 100.00 | L225: 20.20% | M225: Successful | N225: 2022-01-28 | R225: K
A226: 153 | B226: 2020-05-15 | D226: BEL | E226: Accu | F226: 67.50 | H226: 86 | I226: 86.00 | J226: Profit of Rs.18.50/- | K226: =H226-F226 -> 18.50 | L226: =K226/F226 -> 27.41% | M226: Successful | N226: 2020-06-26 | R226: K
A227: 154 | B227: 2020-07-23 | D227: RITES | E227: Accu | F227: 231.00 | H227: 281 | I227: 281.00 | J227: Target Achieved | K227: 50.00 | L227: 21.65% | M227: Successful | N227: 2021-06-11 | R227: K
A228: 155 | B228: 2020-09-18 | D228: IEX | E228: Accu | F228: 206 | H228: 248 | I228: 248.00 | J228: Target Achieved | K228: 42.00 | L228: 20.39% | M228: Successful | N228: 2021-01-18 | R228: K
A229: 156 | B229: 2020-11-05 | D229: IEX | E229: Accu | F229: 182.5 | H229: 248 | I229: 248.00 | J229: Target Achieved | K229: 65.50 | L229: 35.89% | M229: Successful | N229: 2021-01-18 | R229: K
A230: 157 | B230: 2020-11-05 | D230: CCL | E230: Accu | F230: 247.5 | H230: 320 | I230: 320.00 | J230: Target Achieved | K230: 72.50 | L230: 29.29% | M230: Successful | N230: 2021-05-07 | R230: K
... 20 more rows
